Workbook

Sheet G U I D E
B1: version #BRANDT-D2401-
B2: The background color of the fields in column J on the PRODUCT DATA sheet is set automatically based on the value (Ph), using the scale below. | D2: • | E2: The cells on each sheet are locked by default to protect the integrity of the workbook.
D3: • | E3: ONLY cells that are filled with light yellow are available to input data. Example >>
D4: • | E4: All other values are automatically calculated based on the variables in "yellow" cells on all worksheets
D5: • | E5: The GRIGG® Proven Foliar™ & GreenSpec™ product data is fixed (except for the Price per gal or L)
B6: Ph RANGE Scale | D6: • | E6: There are Two (2) variable products for both Liquid & granular to allow for the addition of 3rd party products.
B7: 0.00 | C7: < Pure Acid | D7: • | E7: Product weight is a calculation based on the relative density to water (Specific Gravity).
B8: 1.00 | D8: • | E8: Metric conversions and other international integrations are highlighted in violet >> | L8: or
B9: 2.00 | D9: • | E9: NO INFORMATION entered on this sheet will impact any other sheet; This is a calculator / information only page
B10: 3.00
B11: 4.00 | E11: IF you need to reverse engineer a weight or SG use the calculator below:
B12: 5.00 | E12: Specific Gravity | F12: lbs per 1.00 gal | G12: lbs per 2.50 gal | H12: kg per 1.00 L | I12: kg per 3.785306 L | J12: kg per 10.00 L
B13: 6.00
B14: 7.00 | E14: =(F14/E21) -> 0.0000 | G14: =F14*2.5 -> 0.000 | H14: =F14*0.119826427 -> 0.000 | I14: =H14*$E29 -> 0.000 | J14: =H14*10 -> 0.000
B15: 8.00 | E15: Specific Gravity | F15: lbs per 1.00 gal | G15: lbs per 2.50 gal | H15: kg per 1.00 L | I15: kg per 3.785306 L | J15: kg per 10.00 L
B16: 9.00
B17: 10.00 | F17: =(E17*E21) -> 0.0000 | G17: =F17*2.5 -> 0.000 | H17: =F17*0.119826427 -> 0.000 | I17: =H17*$E29 -> 0.000 | J17: =H17*10 -> 0.000
B18: 11.00
B19: 12.00 | E19: GENERAL ASSUMPTIONS used throughout this workbook
B20: 13.00 | D20: Weight of 1 US gal Water: | I20: Specific Gravity (sg) of Water:
B21: 14.00 | C21: < Pure Base | E21: 8.345404 | F21: lbs | G21: 3.7854118 | H21: kg | J21: 1
B24: If you select a nutrient TARGET, the Program combined nutrients will be compared to the input target. Use the KEY below for a symbol guide on the PROGRAM ANALYSIS sheet. | D24: One (1) US pound (lb) is: | G24: Conversion Calculator | J24: Conversion Calculator
E25: 0.453592 | F25: kg | G25: lb | H25: kg | J25: lb | K25: kg
H26: =G26*E25 -> 0 | J26: =K26/E25 -> 0
B28: If actual is >= 95% of target | C28: 5.000 | D28: One (1) US gallon (gal) is: | G28: Conversion Calculator | J28: Conversion Calculator
B29: If actual is >= 90% of target | C29: 4.000 | E29: 3.785306 | F29: L | G29: gal | H29: L | J29: gal | K29: L
B30: If actual is >= 85% of target | C30: 3.000 | H30: =G30*E29 -> 0 | J30: =K30/E29 -> 0
B31: If actual is >= 80% of target | C31: 2.000
B32: If actual is < 80% of target | C32: 1.000 | E32: 1 ACRE is: | J32: 1,000 Square Feet (FT2) is:
E33: 43,560.00 | F33: FT2 | G33: 0.4046856 | H33: Hectare | J33: 92.90304 | K33: m2
E35: Area Conversion Calculator
G36: Ft2 | H36: Acres | I36: m2 | J36: Hectare
E37: FT² | G37: *** | H37: =F37/43560 -> 0.000 | I37: =F37*0.092903 -> 0.000 | J37: =(F37/43560)*0.4046856 -> 0.000
E38: Acre | G38: =F38*43560 -> 0.000 | H38: *** | I38: =F38*4046.856 -> 0.000 | J38: =F38*0.4046856 -> 0.000
E39: m2 | G39: =F39*10.763911 -> 0.000 | H39: =F39/4046.856 -> 0.000 | I39: *** | J39: =(F39/10000) -> 0.000
E40: Hectare | G40: =F40*107639.11 -> 0.000 | H40: =F40*2.4710538 -> 0.000 | I40: =F40*10000 -> 0.000 | J40: ***
E42: Application Conversion Calculator
G43: fl.oz / 1,000 ft² | H43: gal / Acre | I43: lbs / 1,000 ft2 | J43: lbs / Acre | K43: ml / m2 | L43: L / Hectare | M43: g / m2 | N43: kg / Hectare
D44: Liquid } | E44: fl.oz / 1,000 ft² | G44: *** | H44: =F44*0.3403125 -> 0.0000 | I44: *** | J44: *** | K44: =(F44*0.318326823) -> 0.0000 | L44: =F44*3.18326823 -> 0.0000 | M44: *** | N44: ***
E45: gal / Acre | G45: =F45*2.93847567 -> 0.0000 | H45: *** | I45: *** | J45: *** | K45: =F45*0.935395623 -> 0.0000 | L45: =F45* 9.35395623 -> 0.0000 | M45: *** | N45: ***
D46: granular } | E46: lbs / 1,000 ft2 | G46: *** | H46: *** | I46: *** | J46: =F46*43.56 -> 0.0000 | K46: *** | L46: *** | M46: =F46*4.88242764 -> 0.0000 | N46: =F46*48.8242764 -> 0.0000
E47: lbs / Acre | G47: *** | H47: *** | I47: =F47*0.0229568411 -> 0.0000 | J47: *** | K47: *** | L47: *** | M47: =F47*0.112085116 -> 0.0000 | N47: =F47*1.12085116 -> 0.0000
D48: Liquid } | E48: ml / m2 | G48: =F48/0.318326823 -> 0.0000 | H48: =F48/0.935395623 -> 0.0000 | I48: *** | J48: *** | K48: *** | L48: =F48*10 -> 0.0000 | M48: *** | N48: ***
E49: L / Hectare | G49: =F49/3.18326823 -> 0.0000 | H49: =F49/9.35395623 -> 0.0000 | I49: *** | J49: *** | K49: =F49*0.1 -> 0.0000 | L49: *** | M49: *** | N49: ***
D50: granular } | E50: g / m2 | G50: *** | H50: *** | I50: =F50/4.88242764 -> 0.0000 | J50: =F50/0.112085116 -> 0.0000 | K50: *** | L50: *** | M50: *** | N50: =F50*10 -> 0.0000
E51: kg / Hectare | G51: *** | H51: *** | I51: =F51/48.8242764 -> 0.0000 | J51: =F51/1.12085116 -> 0.0000 | K51: *** | L51: *** | M51: =F51*0.1 -> 0.0000 | N51: ***

Sheet PRODUCT DATA
B1: =VERSION -> version #BRANDT-D2401- | D1: Global Discount: | E1: 100% | F1: % of MSRP | L1: NUTRIENT CONTENT / PERCENT of VOLUME
A2: order | B2: FID# | C2: BRANDT® LIQUIDS | D2: MSRP per gal or L | E2: Specific Gravity | F2: lbs per 1.00 gal | G2: lbs per 2.50 gal jug | H2: kg per 1.00 L | I2: kg per 3.785306 L | J2: kg per 10.00 L | K2: pH | L2: Total N | M2: P2O5 | N2: Elemental P | O2: K2O | P2: Elemental K | Q2: Ca | R2: Mg | S2: S | T2: Fe | U2: Mn | V2: Zn | W2: Cu | X2: B | Y2: Si | Z2: Mo | AA2: Co | AB2: HPO3 | AC2: ElementalP
A3: 1 | B3: 28018 | C3: BRANDT Foli-Cal | E3: 1.460 | F3: =E3*8.345404 -> 12.184 | G3: =F3*2.5 -> 30.461 | H3: =(F3*0.119826427) -> 1.460 | I3: =H3*3.785306 -> 5.527 | J3: =H3*10 -> 14.600 | L3: 5.000% | M3: 0.000% | N3: =M3*0.43642 -> 0.000% | O3: 0.000% | P3: =O3*0.83015 -> 0.000% | Q3: 10.000% | R3: 0.000% | S3: 0.000% | T3: 0.000% | U3: 0.000% | V3: 0.000% | W3: 0.000% | X3: 0.000% | Y3: 0.000% | Z3: 0.000% | AA3: 0.000% | AB3: 0.000% | AC3: =AB3*0.37775 -> 0.000%
A4: 2 | B4: 28117 | C4: BRANDT Manni-Plex Cal-Mag | E4: 1.410 | F4: 11.767 | G4: =F4*2.5 -> 29.418 | H4: =(F4*0.119826427) -> 1.410 | I4: =H4*3.785306 -> 5.337 | J4: =H4*10 -> 14.100 | L4: 7.000% | M4: 0.000% | N4: 0.000% | O4: 0.000% | P4: 0.000% | Q4: 5.300% | R4: 2.600% | S4: 0.000% | T4: 0.000% | U4: 0.000% | V4: 0.000% | W4: 0.000% | X4: 0.000% | Y4: 0.000% | Z4: 0.000% | AA4: 0.000% | AB4: 0.000% | AC4: 0.000%
A5: 3 | B5: 28126 | C5: BRANDT Manni-Plex Eagle | E5: 1.310 | F5: 10.932 | G5: =F5*2.5 -> 27.331 | H5: 1.310 | I5: 4.959 | J5: 13.100 | L5: 7.000% | M5: 0.000% | N5: 0.000% | O5: 14.000% | P5: 11.622% | Q5: 0.000% | R5: 0.000% | S5: 0.000% | T5: 0.500% | U5: 0.250% | V5: 0.000% | W5: 0.000% | X5: 0.000% | Y5: 0.000% | Z5: 0.000% | AA5: 0.000% | AB5: 0.000% | AC5: 0.000%
A6: 4 | B6: 28127 | C6: BRANDT Manni-Plex Fe | E6: 1.230 | F6: 10.265 | G6: =F6*2.5 -> 25.662 | H6: 1.230 | I6: 4.656 | J6: 12.300 | L6: 5.000% | M6: 0.000% | N6: 0.000% | O6: 0.000% | P6: 0.000% | Q6: 0.000% | R6: 0.000% | S6: 0.000% | T6: 5.000% | U6: 0.000% | V6: 0.000% | W6: 0.000% | X6: 0.000% | Y6: 0.000% | Z6: 0.000% | AA6: 0.000% | AB6: 0.000% | AC6: 0.000%
A7: 5 | B7: 28135 | C7: BRANDT Manni-Plex Grow | E7: 1.220 | F7: 10.181 | G7: 25.453 | H7: 1.220 | I7: 4.618 | J7: 12.200 | L7: 12.000% | M7: 0.000% | N7: 0.000% | O7: 6.000% | P7: 4.981% | Q7: 0.000% | R7: 0.000% | S7: 0.000% | T7: 0.500% | U7: 0.250% | V7: 0.000% | W7: 0.250% | X7: 0.000% | Y7: 0.000% | Z7: 0.000% | AA7: 0.000% | AB7: 0.000% | AC7: 0.000%
A8: 6 | B8: 28136 | C8: BRANDT Manni-Plex K | E8: 2.150 | F8: 17.943 | G8: 44.857 | H8: 2.150 | I8: 8.138 | J8: 21.500 | L8: 0.000% | M8: 0.000% | N8: 0.000% | O8: 20.000% | P8: 16.603% | Q8: 0.000% | R8: 0.000% | S8: 0.000% | T8: 5.000% | U8: 0.000% | V8: 0.000% | W8: 0.000% | X8: 0.000% | Y8: 0.000% | Z8: 0.000% | AA8: 0.000% | AB8: 0.000% | AC8: 0.000%
A9: 7 | B9: 28128 | C9: BRANDT Manni-Plex Mg | E9: 1.290 | F9: 10.766 | G9: 26.914 | H9: 1.290 | I9: 4.883 | J9: 12.900 | L9: 5.000% | M9: 0.000% | N9: 0.000% | O9: 0.000% | P9: 0.000% | Q9: 0.000% | R9: 4.000% | S9: 0.000% | T9: 0.000% | U9: 0.000% | V9: 0.000% | W9: 0.000% | X9: 0.000% | Y9: 0.000% | Z9: 0.000% | AA9: 0.000% | AB9: 0.000% | AC9: 0.000%
A10: 8 | B10: 28118 | C10: BRANDT Manni-Plex Mn | E10: 1.360 | F10: 11.350 | G10: 28.374 | H10: 1.360 | I10: 5.148 | J10: 13.600 | L10: 7.000% | M10: 0.000% | N10: 0.000% | O10: 0.000% | P10: 0.000% | Q10: 0.000% | R10: 0.000% | S10: 0.000% | T10: 0.000% | U10: 5.000% | V10: 0.000% | W10: 0.000% | X10: 0.000% | Y10: 0.000% | Z10: 0.000% | AA10: 0.000% | AB10: 0.000% | AC10: 0.000%
A11: 9 | B11: 28124 | C11: BRANDT Manni-Plex Root Builder | E11: 1.230 | F11: 10.265 | G11: 25.662 | H11: 1.230 | I11: 4.656 | J11: 12.300 | L11: 3.000% | M11: 0.000% | N11: 0.000% | O11: 0.000% | P11: 0.000% | Q11: 0.000% | R11: 0.500% | S11: 0.000% | T11: 0.000% | U11: 0.900% | V11: 4.700% | W11: 0.050% | X11: 0.200% | Y11: 0.000% | Z11: 0.000% | AA11: 0.000% | AB11: 0.000% | AC11: 0.000%
A12: 10 | B12: 28179 | C12: BRANDT Manni-Plex Si | E12: 1.180 | F12: 9.848 | G12: =F12*2.5 -> 24.619 | H12: 1.180 | I12: 4.467 | J12: 11.800 | L12: 0.000% | M12: 0.000% | N12: 0.000% | O12: 0.000% | P12: 0.000% | Q12: 0.000% | R12: 0.000% | S12: 0.000% | T12: 1.000% | U12: 0.000% | V12: 0.000% | W12: 0.000% | X12: 0.000% | Y12: 10.000% | Z12: 0.000% | AA12: 0.000% | AB12: 0.000% | AC12: 0.000%
A13: 11 | B13: 28129 | C13: BRANDT Manni-Plex Total Turf | E13: 1.490 | F13: 12.435 | G13: 31.087 | H13: 1.490 | I13: 5.640 | J13: 14.900 | L13: 5.000% | M13: 0.000% | N13: 0.000% | O13: 0.000% | P13: 0.000% | Q13: 0.000% | R13: 1.200% | S13: 0.000% | T13: 2.850% | U13: 0.450% | V13: 0.650% | W13: 0.000% | X13: 0.000% | Y13: 0.000% | Z13: 0.000% | AA13: 0.000% | AB13: 0.000% | AC13: 0.000%
A14: 12 | B14: 25139 | C14: BRANDT Manni-Plex Traffic | E14: 1.110 | F14: 9.263 | G14: 23.158 | H14: 1.110 | I14: 4.202 | J14: 11.100 | L14: 0.000% | M14: 0.000% | N14: 0.000% | O14: 6.000% | P14: 4.981% | Q14: 0.000% | R14: 0.000% | S14: 0.000% | T14: 0.000% | U14: 0.000% | V14: 0.000% | W14: 0.000% | X14: 0.000% | Y14: 0.000% | Z14: 0.000% | AA14: 0.000% | AB14: 0.000% | AC14: 0.000%
A15: 13 | B15: 28130 | C15: BRANDT Manni-Plex Ultra Turf | E15: 1.200 | F15: 10.014 | G15: 25.036 | H15: 1.200 | I15: 4.542 | J15: 12.000 | L15: 4.000% | M15: 0.000% | N15: 0.000% | O15: 2.000% | P15: 1.660% | Q15: 0.000% | R15: 0.500% | S15: 0.000% | T15: 2.000% | U15: 0.500% | V15: 0.000% | W15: 0.500% | X15: 0.250% | Y15: 0.000% | Z15: 0.250% | AA15: 0.000% | AB15: 0.000% | AC15: 0.000%
A16: 14 | B16: 28148 | C16: BRANDT Manni-Plex Ni 5% | E16: 1.230 | F16: 10.265 | G16: 25.662 | H16: 1.230 | I16: 4.656 | J16: 12.300 | L16: 7.000% | M16: 0.000% | N16: 0.000% | O16: 0.000% | P16: 0.000% | Q16: 0.000% | R16: 0.000% | S16: 0.000% | T16: 0.000% | U16: 0.000% | V16: 0.000% | W16: 0.000% | X16: 0.000% | Y16: 0.000% | Z16: 0.000% | AA16: 0.000% | AB16: 0.000% | AC16: 0.000%
A17: 15 | B17: 28119 | C17: BRANDT Manni-Plex Zn | E17: 1.570 | F17: 13.102 | G17: 32.756 | H17: 1.570 | I17: 5.943 | J17: 15.700 | L17: 3.000% | M17: 0.000% | N17: 0.000% | O17: 0.000% | P17: 0.000% | Q17: 0.000% | R17: 0.000% | S17: 0.000% | T17: 7.000% | U17: 0.000% | V17: 0.000% | W17: 0.000% | X17: 0.000% | Y17: 0.000% | Z17: 0.000% | AA17: 0.000% | AB17: 0.000% | AC17: 0.000%
A18: 16 | B18: 25019 | C18: BRANDT Organiplex 8% Ca | E18: 1.190 | F18: 9.931 | G18: 24.828 | H18: 1.190 | I18: 4.505 | J18: 11.900 | L18: 0.000% | M18: 0.000% | N18: 0.000% | O18: 0.000% | P18: 0.000% | Q18: 8.000% | R18: 0.000% | S18: 0.000% | T18: 0.000% | U18: 0.000% | V18: 0.000% | W18: 0.000% | X18: 0.000% | Y18: 0.000% | Z18: 0.000% | AA18: 0.000% | AB18: 0.000% | AC18: 0.000%
A19: 17 | B19: 25026 | C19: BRANDT Organiplex MicroMix | E19: 1.258 | F19: 10.499 | G19: 26.246 | H19: 1.258 | I19: 4.762 | J19: 12.580 | L19: 0.000% | M19: 0.000% | N19: 0.000% | O19: 0.000% | P19: 0.000% | Q19: 0.000% | R19: 0.000% | S19: 0.000% | T19: 2.000% | U19: 2.000% | V19: 2.000% | W19: 0.000% | X19: 0.000% | Y19: 0.000% | Z19: 0.000% | AA19: 0.000% | AB19: 0.000% | AC19: 0.000%
A20: 18 | B20: 25023 | C20: BRANDT Organiplex 4% Fe | E20: 1.205 | F20: 10.056 | G20: 25.141 | H20: 1.205 | I20: 4.561 | J20: 12.050 | L20: 0.000% | M20: 0.000% | N20: 0.000% | O20: 0.000% | P20: 0.000% | Q20: 0.000% | R20: 0.000% | S20: 0.000% | T20: 4.000% | U20: 0.000% | V20: 0.000% | W20: 0.000% | X20: 0.000% | Y20: 0.000% | Z20: 0.000% | AA20: 0.000% | AB20: 0.000% | AC20: 0.000%
A21: 19 | B21: 25024 | C21: BRANDT Organiplex 4% Mn | E21: 1.223 | F21: 10.206 | G21: 25.516 | H21: 1.223 | I21: 4.629 | J21: 12.230 | L21: 0.000% | M21: 0.000% | N21: 0.000% | O21: 0.000% | P21: 0.000% | Q21: 0.000% | R21: 0.000% | S21: 0.000% | T21: 0.000% | U21: 4.000% | V21: 0.000% | W21: 0.000% | X21: 0.250% | Y21: 0.000% | Z21: 0.000% | AA21: 0.000% | AB21: 0.000% | AC21: 0.000%
A22: 20 | B22: 32173 | C22: BRANDT Converge SRN 18-0-6 | E22: 1.280 | F22: 10.682 | G22: =F22*2.5 -> 26.705 | H22: 1.280 | I22: 4.845 | J22: 12.800 | L22: 18.000% | M22: 0.000% | N22: 0.000% | O22: 6.000% | P22: 4.981% | Q22: 0.000% | R22: 0.000% | S22: 0.000% | T22: 0.100% | U22: 0.050% | V22: 0.050% | W22: 0.050% | X22: 0.000% | Y22: 0.000% | Z22: 0.000% | AA22: 0.000% | AB22: 0.000% | AC22: 0.000%
A23: 21 | B23: 32057 | C23: BRANDT Converge SRN 18-3-6 | E23: 1.250 | F23: 10.432 | G23: 26.079 | H23: 1.250 | I23: 4.732 | J23: 12.500 | L23: 18.000% | M23: 3.000% | N23: 1.309% | O23: 6.000% | P23: 4.981% | Q23: 0.000% | R23: 0.000% | S23: 0.000% | T23: 0.100% | U23: 0.050% | V23: 0.050% | W23: 0.050% | X23: 0.000% | Y23: 0.000% | Z23: 0.000% | AA23: 0.000% | AB23: 0.000% | AC23: 0.000%
A24: 22 | B24: 32056 | C24: BRANDT Converge SRN 30-0-0 | E24: 1.238 | F24: 10.332 | G24: =F24*2.5 -> 25.829 | H24: 1.238 | I24: 4.686 | J24: 12.380 | L24: 30.000% | M24: 0.000% | N24: 0.000% | O24: 0.000% | P24: 0.000% | Q24: 0.000% | R24: 0.000% | S24: 0.000% | T24: 0.000% | U24: 0.000% | V24: 0.000% | W24: 0.000% | X24: 0.000% | Y24: 0.000% | Z24: 0.000% | AA24: 0.000% | AB24: 0.000% | AC24: 0.000%
A25: 23 | B25: 32202 | C25: BRANDT MKS | E25: 1.170 | F25: 9.764 | G25: =F25*2.5 -> 24.410 | H25: 1.170 | I25: 4.429 | J25: 11.700 | L25: 0.000% | M25: 0.000% | N25: 0.000% | O25: 4.000% | P25: 3.321% | Q25: 0.000% | R25: 2.100% | S25: 3.200% | T25: 0.000% | U25: 0.000% | V25: 0.000% | W25: 0.000% | X25: 0.000% | Y25: 0.000% | Z25: 0.000% | AA25: 0.000% | AB25: 0.000% | AC25: 0.000%
A26: 24 | B26: 32055 | C26: BRANDT Parco-Root XL | E26: 1.290 | F26: 10.766 | G26: =F26*2.5 -> 26.914 | H26: 1.290 | I26: 4.883 | J26: 12.900 | L26: 0.000% | M26: 0.000% | N26: 0.000% | O26: 0.000% | P26: 0.000% | Q26: 0.000% | R26: 1.500% | S26: 4.000% | T26: 3.500% | U26: 0.750% | V26: 0.750% | W26: 0.000% | X26: 0.160% | Y26: 0.000% | Z26: 0.003% | AA26: 0.000% | AB26: 0.000% | AC26: 0.000%
A27: 25 | B27: 32061 | C27: BRANDT Plant Start | E27: 1.430 | F27: 11.934 | G27: =F27*2.5 -> 29.835 | H27: 1.430 | I27: 5.413 | J27: 14.300 | L27: 8.000% | M27: 27.000% | N27: 11.783% | O27: 2.000% | P27: 1.660% | Q27: 0.000% | R27: 0.000% | S27: 0.000% | T27: 0.000% | U27: 0.000% | V27: 0.000% | W27: 0.000% | X27: 0.000% | Y27: 0.000% | Z27: 0.001% | AA27: 0.000% | AB27: 0.000% | AC27: 0.000%
A28: 26 | B28: 49010 | C28: N-Boost | E28: 1.010 | F28: 8.429 | G28: 21.072 | H28: 1.010 | I28: 3.823 | J28: 10.100 | L28: 0.000% | M28: 0.000% | N28: 0.000% | O28: 0.000% | P28: 0.000% | Q28: 0.000% | R28: 0.000% | S28: 0.000% | T28: 0.000% | U28: 0.000% | V28: 0.000% | W28: 0.000% | X28: 0.000% | Y28: 0.000% | Z28: 0.000% | AA28: 0.000% | AB28: 0.000% | AC28: 0.000%
A29: 27 | B29: 32210 | C29: BRANDT Liqui-Phi | E29: 1.580 | F29: 13.186 | G29: 32.964 | H29: 1.580 | I29: 5.981 | J29: 15.800 | L29: 0.000% | M29: 0.000% | N29: =M29*0.43642 -> 0.000% | O29: 25.000% | P29: =O29*0.83015 -> 20.754% | Q29: 0.000% | R29: 0.000% | S29: 0.000% | T29: 0.000% | U29: 0.000% | V29: 0.000% | W29: 0.000% | X29: 0.000% | Y29: 0.000% | Z29: 0.000% | AA29: 0.000% | AB29: 0.000% | AC29: =AB29*0.37775 -> 0.000%
A30: 28 | B30: 32209 | C30: BRANDT Mega-Phi | E30: 1.580 | F30: 13.186 | G30: 32.964 | H30: 1.580 | I30: 5.981 | J30: 15.800 | L30: 2.000% | M30: 0.000% | N30: 0.000% | O30: 16.000% | P30: 13.282% | Q30: 0.000% | R30: 0.000% | S30: 0.000% | T30: 0.000% | U30: 0.000% | V30: 0.000% | W30: 0.000% | X30: 0.000% | Y30: 0.000% | Z30: 0.000% | AA30: 0.000% | AB30: 0.000% | AC30: =AB30*0.37775 -> 0.000%
A31: 29 | B31: 32174 | C31: BRANDT 20-K | E31: 1.240 | F31: 10.348 | G31: 25.871 | H31: 1.240 | I31: 4.694 | J31: 12.400 | L31: 2.000% | M31: 0.000% | N31: 0.000% | O31: 20.000% | P31: 16.603% | Q31: 0.000% | R31: 0.000% | S31: 0.000% | T31: 0.000% | U31: 0.000% | V31: 0.000% | W31: 0.000% | X31: 0.000% | Y31: 0.000% | Z31: 0.000% | AA31: 0.000% | AB31: 0.000% | AC31: 0.000%
A32: 30 | B32: 32003 | C32: BRANDT 30-K | E32: 2.290 | F32: 19.111 | G32: 47.777 | H32: 2.290 | I32: 8.668 | J32: 22.900 | L32: 0.000% | M32: 0.000% | N32: 0.000% | O32: 30.000% | P32: 24.905% | Q32: 0.000% | R32: 0.000% | S32: 0.000% | T32: 0.000% | U32: 0.000% | V32: 0.000% | W32: 0.000% | X32: 0.000% | Y32: 0.000% | Z32: 0.000% | AA32: 0.000% | AB32: 0.000% | AC32: 0.000%
A33: 31 | B33: 20001 | C33: BRANDT Flash Dance | E33: 1.260 | F33: 10.515 | G33: 26.288 | H33: 1.260 | I33: 4.769 | J33: 12.600 | L33: 1.000% | M33: 0.000% | N33: 0.000% | O33: 0.000% | P33: 0.000% | Q33: 0.000% | R33: 0.000% | S33: 0.000% | T33: 5.000% | U33: 0.000% | V33: 0.000% | W33: 0.000% | X33: 0.000% | Y33: 0.000% | Z33: 0.000% | AA33: 0.000% | AB33: 0.000% | AC33: 0.000%
A34: 32 | B34: 20011 | C34: BRANDT Supreme Green | E34: 1.320 | F34: 11.016 | G34: =F34*2.5 -> 27.540 | H34: 1.320 | I34: 4.997 | J34: 13.200 | L34: 12.000% | M34: 0.000% | N34: 0.000% | O34: 0.000% | P34: 0.000% | Q34: 0.000% | R34: 0.500% | S34: 4.000% | T34: 5.000% | U34: 1.000% | V34: 0.000% | W34: 0.000% | X34: 0.000% | Y34: 0.000% | Z34: 0.000% | AA34: 0.000% | AB34: 0.000% | AC34: 0.000%
A35: 33 | B35: 49011 | C35: BRANDT In-Cyte | E35: 1.180 | F35: 9.848 | G35: 24.619 | H35: 1.180 | I35: 4.467 | J35: 11.800 | L35: 3.000% | M35: 12.000% | N35: 5.237% | O35: 1.000% | P35: 0.830% | Q35: 0.000% | R35: 0.000% | S35: 0.000% | T35: 0.000% | U35: 0.000% | V35: 0.000% | W35: 0.000% | X35: 0.000% | Y35: 0.000% | Z35: 0.000% | AA35: 0.000% | AB35: 0.000% | AC35: 0.000%
A36: 34 | B36: 49012 | C36: BRANDT Seaweed Max | E36: 1.050 | F36: 8.763 | G36: 21.907 | H36: 1.050 | I36: 3.975 | J36: 10.500 | L36: 0.000% | M36: 0.000% | N36: 0.000% | O36: 2.000% | P36: 1.660% | Q36: 0.000% | R36: 0.000% | S36: 0.000% | T36: 0.000% | U36: 0.000% | V36: 0.000% | W36: 0.000% | X36: 0.000% | Y36: 0.000% | Z36: 0.000% | AA36: 0.000% | AB36: 0.000% | AC36: 0.000%
A37: 35 | B37: 42008 | C37: BRANDT Uptake 12 | E37: 1.070 | F37: 8.930 | G37: =F37*2.5 -> 22.324 | H37: 1.070 | I37: 4.050 | J37: 10.700 | L37: 0.000% | M37: 0.000% | N37: 0.000% | O37: 3.000% | P37: 2.490% | Q37: 0.000% | R37: 0.000% | S37: 0.000% | T37: 0.000% | U37: 0.000% | V37: 0.000% | W37: 0.000% | X37: 0.000% | Y37: 0.000% | Z37: 0.000% | AA37: 0.000% | AB37: 0.000% | AC37: 0.000%
A38: 36 | B38: 42009 | C38: BRANDT Uptake Advanced | E38: 1.100 | F38: 9.180 | G38: =F38*2.5 -> 22.950 | H38: 1.100 | I38: 4.164 | J38: 11.000 | L38: 0.000% | M38: 0.000% | N38: 0.000% | O38: 0.000% | P38: 0.000% | Q38: 0.000% | R38: 0.000% | S38: 0.000% | T38: 0.000% | U38: 0.000% | V38: 0.000% | W38: 0.000% | X38: 0.000% | Y38: 0.000% | Z38: 0.000% | AA38: 0.000% | AB38: 0.000% | AC38: 0.000%
A39: 37 | F39: 0.000 | G39: =F39*2.5 -> 0.000 | H39: 0.000 | I39: 0.000 | J39: 0.000 | L39: 0.000% | M39: 0.000% | N39: 0.000% | O39: 0.000% | P39: 0.000% | Q39: 0.000% | R39: 0.000% | S39: 0.000% | T39: 0.000% | U39: 0.000% | V39: 0.000% | W39: 0.000% | X39: 0.000% | Y39: 0.000% | Z39: 0.000% | AA39: 0.000% | AB39: 0.000% | AC39: 0.000%
A40: 38 | F40: 0.000 | G40: =F40*2.5 -> 0.000 | H40: 0.000 | I40: 0.000 | J40: 0.000 | L40: 0.000% | M40: 0.000% | N40: 0.000% | O40: 0.000% | P40: 0.000% | Q40: 0.000% | R40: 0.000% | S40: 0.000% | T40: 0.000% | U40: 0.000% | V40: 0.000% | W40: 0.000% | X40: 0.000% | Y40: 0.000% | Z40: 0.000% | AA40: 0.000% | AB40: 0.000% | AC40: 0.000%
A41: 39 | F41: 0.000 | G41: =F41*2.5 -> 0.000 | H41: 0.000 | I41: 0.000 | J41: 0.000 | L41: 0.000% | M41: 0.000% | N41: 0.000% | O41: 0.000% | P41: 0.000% | Q41: 0.000% | R41: 0.000% | S41: 0.000% | T41: 0.000% | U41: 0.000% | V41: 0.000% | W41: 0.000% | X41: 0.000% | Y41: 0.000% | Z41: 0.000% | AA41: 0.000% | AB41: 0.000% | AC41: 0.000%
A42: 40 | F42: 0.000 | G42: 0.000 | H42: 0.000 | I42: 0.000 | J42: 0.000 | L42: 0.000% | M42: 0.000% | N42: 0.000% | O42: 0.000% | P42: 0.000% | Q42: 0.000% | R42: 0.000% | S42: 0.000% | T42: 0.000% | U42: 0.000% | V42: 0.000% | W42: 0.000% | X42: 0.000% | Y42: 0.000% | Z42: 0.000% | AA42: 0.000% | AB42: 0.000% | AC42: 0.000%
A43: 41 | F43: 0.000 | G43: 0.000 | H43: 0.000 | I43: 0.000 | J43: 0.000 | L43: 0.000% | M43: 0.000% | N43: 0.000% | O43: 0.000% | P43: 0.000% | Q43: 0.000% | R43: 0.000% | S43: 0.000% | T43: 0.000% | U43: 0.000% | V43: 0.000% | W43: 0.000% | X43: 0.000% | Y43: 0.000% | Z43: 0.000% | AA43: 0.000% | AB43: 0.000% | AC43: 0.000%
A44: 42 | F44: 0.000 | G44: =F44*2.5 -> 0.000 | H44: 0.000 | I44: 0.000 | J44: 0.000 | L44: 0.000% | M44: 0.000% | N44: 0.000% | O44: 0.000% | P44: 0.000% | Q44: 0.000% | R44: 0.000% | S44: 0.000% | T44: 0.000% | U44: 0.000% | V44: 0.000% | W44: 0.000% | X44: 0.000% | Y44: 0.000% | Z44: 0.000% | AA44: 0.000% | AB44: 0.000% | AC44: 0.000%
A45: 43 | F45: 0.000 | G45: =F45*2.5 -> 0.000 | H45: 0.000 | I45: 0.000 | J45: 0.000 | L45: 0.000% | M45: 0.000% | N45: 0.000% | O45: 0.000% | P45: 0.000% | Q45: 0.000% | R45: 0.000% | S45: 0.000% | T45: 0.000% | U45: 0.000% | V45: 0.000% | W45: 0.000% | X45: 0.000% | Y45: 0.000% | Z45: 0.000% | AA45: 0.000% | AB45: 0.000% | AC45: =AB45*0.37775 -> 0.000%
A46: 44 | F46: 0.000 | G46: 0.000 | H46: 0.000 | I46: 0.000 | J46: 0.000 | L46: 0.000% | M46: 0.000% | N46: 0.000% | O46: 0.000% | P46: 0.000% | Q46: 0.000% | R46: 0.000% | S46: 0.000% | T46: 0.000% | U46: 0.000% | V46: 0.000% | W46: 0.000% | X46: 0.000% | Y46: 0.000% | Z46: 0.000% | AA46: 0.000% | AB46: 0.000% | AC46: 0.000%
L47: 0
A48: 46 | B48: X1 | C48: Custom Liquid 1 | F48: =E48*8.345404 -> 0.000 | G48: 0.000 | H48: =(E48/1.000028) -> 0.000 | I48: =H48*3.785306 -> 0.000 | J48: =H48*10 -> 0.000 | N48: 0.000% | P48: 0.000% | AC48: =AB48*0.37775 -> 0.000%
A49: 47 | B49: X2 | C49: Custom Liquid 2 | F49: =E49*8.345404 -> 0.000 | G49: 0.000 | H49: =(E49/1.000028) -> 0.000 | I49: 0.000 | J49: =H49*10 -> 0.000 | N49: 0.000% | P49: 0.000% | AC49: 0.000%
A50: 48 | B50: X3 | C50: Custom SOLUBLE 1 | AC50: 0.000%
A51: order | B51: FID# | C51: BRANDT® GRANULARS | D51: MSRP per bag | F51: lbs per 1 bag | H51: kg per 1 bag | L51: Total N | M51: P2O5 | N51: Elemental P | O51: K2O | P51: Elemental K | Q51: Ca | R51: Mg | S51: S | T51: Fe | U51: Mn | V51: Zn | W51: Cu | X51: B | Y51: Si | Z51: Mo | AA51: Co | AB51: HPO3 | AC51: ElementalP
A52: 50 | B52: 30023 | C52: BRANDT Noculate 8-3-17 | F52: 50.00 | H52: =F52*0.453592 -> 22.680 | L52: 8.000% | M52: 3.000% | N52: =M52*0.43642 -> 1.309% | O52: 17.000% | P52: =O52*0.83015 -> 14.113% | Q52: 0.000% | R52: 1.000% | S52: 6.000% | T52: 4.000% | U52: 3.100% | V52: 0.000% | W52: 0.000% | X52: 0.000% | Y52: 0.000% | Z52: 0.000% | AA52: 0.000% | AB52: 0.000% | AC52: =AB52*0.37775 -> 0.000%
A53: 51 | B53: 30019 | C53: BRANDT Noculate 11-2-11 | F53: 50.00 | H53: =F53*0.453592 -> 22.680 | L53: 11.000% | M53: 2.000% | N53: 0.873% | O53: 11.000% | P53: 9.132% | Q53: 0.000% | R53: 2.000% | S53: 12.000% | T53: 0.500% | U53: 0.000% | V53: 0.000% | W53: 0.000% | X53: 0.000% | Y53: 0.000% | Z53: 0.000% | AA53: 0.000% | AB53: 0.000% | AC53: 0.000%
A54: 52 | B54: 30034 | C54: BRANDT Noculate 13-4-13 | F54: 50.00 | H54: =F54*0.453592 -> 22.680 | L54: 13.000% | M54: 4.000% | N54: 1.746% | O54: 13.000% | P54: 10.792% | Q54: 0.000% | R54: 1.000% | S54: 4.000% | T54: 1.000% | U54: 0.500% | V54: 0.000% | W54: 0.000% | X54: 0.000% | Y54: 0.000% | Z54: 0.000% | AA54: 0.000% | AB54: 0.000% | AC54: 0.000%
A55: 53 | B55: 30020 | C55: BRANDT Parco-Blend 13-2-13 | F55: 50.00 | H55: 22.680 | L55: 13.000% | M55: 2.000% | N55: 0.873% | O55: 13.000% | P55: 10.792% | Q55: 3.500% | R55: 4.800% | S55: 6.000% | T55: 1.050% | U55: 1.500% | V55: 0.000% | W55: 0.000% | X55: 0.000% | Y55: 0.000% | Z55: 0.000% | AA55: 0.000% | AB55: 0.000% | AC55: 0.000%
A56: 54 | B56: 30041 | C56: BRANDT Parco-Blend 17-4-17 | F56: 50.00 | H56: 22.680 | L56: 17.000% | M56: 4.000% | N56: 1.746% | O56: 17.000% | P56: 14.113% | Q56: 0.000% | R56: 0.000% | S56: 5.500% | T56: 0.950% | U56: 0.000% | V56: 0.000% | W56: 0.000% | X56: 0.000% | Y56: 0.000% | Z56: 0.000% | AA56: 0.000% | AB56: 0.000% | AC56: 0.000%
A57: 55 | H57: 0.000 | L57: 0.000% | M57: 0.000% | N57: 0.000% | O57: 0.000% | P57: 0.000% | Q57: 0.000% | R57: 0.000% | S57: 0.000% | T57: 0.000% | U57: 0.000% | V57: 0.000% | W57: 0.000% | X57: 0.000% | Y57: 0.000% | Z57: 0.000% | AA57: 0.000% | AB57: 0.000% | AC57: 0.000%
A58: 56 | H58: 0.000 | L58: 0.000% | M58: 0.000% | N58: 0.000% | O58: 0.000% | P58: 0.000% | Q58: 0.000% | R58: 0.000% | S58: 0.000% | T58: 0.000% | U58: 0.000% | V58: 0.000% | W58: 0.000% | X58: 0.000% | Y58: 0.000% | Z58: 0.000% | AA58: 0.000% | AB58: 0.000% | AC58: 0.000%
A59: 57 | H59: 0.000 | L59: 0.000% | M59: 0.000% | N59: 0.000% | O59: 0.000% | P59: 0.000% | Q59: 0.000% | R59: 0.000% | S59: 0.000% | T59: 0.000% | U59: 0.000% | V59: 0.000% | W59: 0.000% | X59: 0.000% | Y59: 0.000% | Z59: 0.000% | AA59: 0.000% | AB59: 0.000% | AC59: 0.000%
A60: 58 | F60: 50.00 | H60: 22.680 | L60: 0.000% | M60: 0.000% | N60: =M60*0.43642 -> 0.000% | O60: 0.000% | P60: =O60*0.83015 -> 0.000% | Q60: 0.000% | R60: 0.000% | S60: 0.000% | T60: 0.000% | U60: 0.000% | V60: 0.000% | W60: 0.000% | X60: 0.000% | Y60: 0.000% | Z60: 0.000% | AA60: 0.000% | AB60: 0.000% | AC60: 0.000%
A61: 59 | F61: 50.00 | H61: 22.680 | L61: 0.000% | M61: 0.000% | N61: 0.000% | O61: 0.000% | P61: 0.000% | Q61: 0.000% | R61: 0.000% | S61: 0.000% | T61: 0.000% | U61: 0.000% | V61: 0.000% | W61: 0.000% | X61: 0.000% | Y61: 0.000% | Z61: 0.000% | AA61: 0.000% | AB61: 0.000% | AC61: 0.000%
A62: 60 | F62: 50.00 | H62: 22.680 | L62: 0.000% | M62: 0.000% | N62: 0.000% | O62: 0.000% | P62: 0.000% | Q62: 0.000% | R62: 0.000% | S62: 0.000% | T62: 0.000% | U62: 0.000% | V62: 0.000% | W62: 0.000% | X62: 0.000% | Y62: 0.000% | Z62: 0.000% | AA62: 0.000% | AB62: 0.000% | AC62: 0.000%
A63: 61 | F63: 50.00 | H63: 22.680 | L63: 0.000% | M63: 0.000% | N63: 0.000% | O63: 0.000% | P63: 0.000% | Q63: 0.000% | R63: 0.000% | S63: 0.000% | T63: 0.000% | U63: 0.000% | V63: 0.000% | W63: 0.000% | X63: 0.000% | Y63: 0.000% | Z63: 0.000% | AA63: 0.000% | AB63: 0.000% | AC63: 0.000%
A64: 62 | F64: 50.00 | H64: 22.680 | L64: 0.000% | M64: 0.000% | N64: 0.000% | O64: 0.000% | P64: 0.000% | Q64: 0.000% | R64: 0.000% | S64: 0.000% | T64: 0.000% | U64: 0.000% | V64: 0.000% | W64: 0.000% | X64: 0.000% | Y64: 0.000% | Z64: 0.000% | AA64: 0.000% | AB64: 0.000% | AC64: 0.000%
A65: 63 | F65: 50.00 | H65: 22.680 | L65: 0.000% | M65: 0.000% | N65: 0.000% | O65: 0.000% | P65: 0.000% | Q65: 0.000% | R65: 0.000% | S65: 0.000% | T65: 0.000% | U65: 0.000% | V65: 0.000% | W65: 0.000% | X65: 0.000% | Y65: 0.000% | Z65: 0.000% | AA65: 0.000% | AB65: 0.000% | AC65: 0.000%
A66: 64 | F66: 50.00 | H66: 22.680 | L66: 0.000% | M66: 0.000% | N66: 0.000% | O66: 0.000% | P66: 0.000% | Q66: 0.000% | R66: 0.000% | S66: 0.000% | T66: 0.000% | U66: 0.000% | V66: 0.000% | W66: 0.000% | X66: 0.000% | Y66: 0.000% | Z66: 0.000% | AA66: 0.000% | AB66: 0.000% | AC66: 0.000%
A67: 65 | F67: 50.00 | H67: 22.680 | L67: 0.000% | M67: 0.000% | N67: 0.000% | O67: 0.000% | P67: 0.000% | Q67: 0.000% | R67: 0.000% | S67: 0.000% | T67: 0.000% | U67: 0.000% | V67: 0.000% | W67: 0.000% | X67: 0.000% | Y67: 0.000% | Z67: 0.000% | AA67: 0.000% | AB67: 0.000% | AC67: 0.000%
A68: 66 | F68: 50.00 | H68: 22.680 | L68: 0.000% | M68: 0.000% | N68: 0.000% | O68: 0.000% | P68: 0.000% | Q68: 0.000% | R68: 0.000% | S68: 0.000% | T68: 0.000% | U68: 0.000% | V68: 0.000% | W68: 0.000% | X68: 0.000% | Y68: 0.000% | Z68: 0.000% | AA68: 0.000% | AB68: 0.000% | AC68: 0.000%
A69: 67 | F69: 50.00 | H69: 22.680 | L69: 0.000% | M69: 0.000% | N69: 0.000% | O69: 0.000% | P69: 0.000% | Q69: 0.000% | R69: 0.000% | S69: 0.000% | T69: 0.000% | U69: 0.000% | V69: 0.000% | W69: 0.000% | X69: 0.000% | Y69: 0.000% | Z69: 0.000% | AA69: 0.000% | AB69: 0.000% | AC69: 0.000%
A70: 68 | F70: 50.00 | H70: 22.680 | L70: 0.000% | M70: 0.000% | N70: 0.000% | O70: 0.000% | P70: 0.000% | Q70: 0.000% | R70: 0.000% | S70: 0.000% | T70: 0.000% | U70: 0.000% | V70: 0.000% | W70: 0.000% | X70: 0.000% | Y70: 0.000% | Z70: 0.000% | AA70: 0.000% | AB70: 0.000% | AC70: 0.000%
A71: 69 | F71: 50.00 | H71: 22.680 | L71: 0.000% | M71: 0.000% | N71: 0.000% | O71: 0.000% | P71: 0.000% | Q71: 0.000% | R71: 0.000% | S71: 0.000% | T71: 0.000% | U71: 0.000% | V71: 0.000% | W71: 0.000% | X71: 0.000% | Y71: 0.000% | Z71: 0.000% | AA71: 0.000% | AB71: 0.000% | AC71: 0.000%
A73: 70 | B73: Z1 | C73: Custom Granular 1
A74: 71 | B74: Z2 | C74: Custom Granular 2

Sheet APPLICATION DATA - standard
C1: =VERSION -> version #BRANDT-D2401- | E1: standard US measurments
C2: PREPARED FOR | J2: START DATE | N2: END DATE
C5: PROGRAM TITLE | J5: NOTES / COMMENTS
D9: KNOWN APPLICATION AREA | F9: conversion of area
F10: Ft2 | G10: Acres
C11: Only select ONE area measurment >> | D11: FT² | F11: *** | G11: =E11/43560 -> 0.00 | J11: OTHER PROGRAM DETAILS
D12: Acre | F12: =E12*43560 -> 0 | G12: *** | J12: Total Applications of Mix #1? | Q12: Total Applications of Soluble #1?
F13: ACRES covered in 1 tank load? | H13: (optional) | J13: Total Applications of Mix #2? | Q13: Total Applications of Granular #1?
F14: ACRES covered in 1 spreader load? | H14: (optional) | J14: Total Applications of Mix #3? | Q14: Total Applications of Granular #2?
I15: Total Applications of Mix #4? | Q15: Total Applications of Granular #3?
C17: ENTIRE PROGRAM Nutrient TARGET Concentrations / LBS per 1,000 FT2 (optional)
C18: N | D18: P2O5 | E18: K2O | F18: Ca | G18: Mg | H18: S | I18: Fe | J18: Mn | K18: Zn | L18: Cu | M18: B | N18: Si | O18: Mo | P18: Co | Q18: HPO3
C22: MIX #1 | F22: oz / 1,000 FT2 | G22: LBS of Nutrient per 1,000 FT2
F23: RATE | G23: N | H23: P2O5 | I23: K2O | J23: Ca | K23: Mg | L23: S | M23: Fe | N23: Mn | O23: Zn | P23: Cu | Q23: B | R23: Si | S23: Mo | T23: Co | U23: HPO3
A24: =IF(($C24=id.32081),3,IF(($C24=id.32502),4,IF(($C24=id.20504),5,IF(($C24=id.32527),6,IF(($C24=id.32504),7,IF(($C24=id.32019),8,IF(($C24=id.32001),9,IF(($C24=id.32031),10,IF(($C24=id.25007),11,IF(($C24=id.20023),12,IF(($C24=id.32066),13,IF(($C24=id.32511),14,IF(($C24=id.32503),15,IF(($C24=id.32507),16,IF(($C24=id.32026),17,IF(($C24=id.32512),18,IF(($C24=id.32513),19,IF(($C24=id.32035),20,IF(($C24=id.32032),21,IF(($C24=id.32085),22,IF(($C24=id.32059),23,IF(($C24=id.20502),24,IF(($C24=id.32526),25,IF(($C24=id.32525),26,IF(($C24=id.32534),27,IF(($C24=id.51014),28,IF(($C24=id.51015),29,IF(($C24=id.32209),30,IF(($C24=id.32174),31,IF(($C24=id.32003),32,IF(($C24=id.20001),33,IF(($C24=id.20011),34,IF(($C24=id.49011),35,IF(($C24=id.49012),36,IF(($C24=id.42008),37,IF(($C24=id.42009),38,IF(($C24=id.x1),48,IF(($C24=id.x2),49,IF(($C24=id.x3),50,"47"))))))))))))))))))))))))))))))))))))))) -> 47 | G24: =IF((INDIRECT("'PRODUCT DATA'!$L"&$A24&""))=0,"*",((INDIRECT("'PRODUCT DATA'!$F"&$A24&""))*(INDIRECT("'PRODUCT DATA'!$L"&$A24&"")))*($F24/128)) -> * | H24: =IF((INDIRECT("'PRODUCT DATA'!$M"&$A24&""))=0,"*",((INDIRECT("'PRODUCT DATA'!$F"&$A24&""))*(INDIRECT("'PRODUCT DATA'!$M"&$A24&"")))*($F24/128)) -> * | I24: =IF((INDIRECT("'PRODUCT DATA'!$O"&$A24&""))=0,"*",((INDIRECT("'PRODUCT DATA'!$F"&$A24&""))*(INDIRECT("'PRODUCT DATA'!$O"&$A24&"")))*($F24/128)) -> * | J24: =IF((INDIRECT("'PRODUCT DATA'!$Q"&$A24&""))=0,"*",((INDIRECT("'PRODUCT DATA'!$F"&$A24&""))*(INDIRECT("'PRODUCT DATA'!$Q"&$A24&"")))*($F24/128)) -> * | K24: =IF((INDIRECT("'PRODUCT DATA'!$R"&$A24&""))=0,"*",((INDIRECT("'PRODUCT DATA'!$F"&$A24&""))*(INDIRECT("'PRODUCT DATA'!$R"&$A24&"")))*($F24/128)) -> * | L24: =IF((INDIRECT("'PRODUCT DATA'!$S"&$A24&""))=0,"*",((INDIRECT("'PRODUCT DATA'!$F"&$A24&""))*(INDIRECT("'PRODUCT DATA'!$S"&$A24&"")))*($F24/128)) -> * | M24: =IF((INDIRECT("'PRODUCT DATA'!$T"&$A24&""))=0,"*",((INDIRECT("'PRODUCT DATA'!$F"&$A24&""))*(INDIRECT("'PRODUCT DATA'!$T"&$A24&"")))*($F24/128)) -> * | N24: =IF((INDIRECT("'PRODUCT DATA'!$U"&$A24&""))=0,"*",((INDIRECT("'PRODUCT DATA'!$F"&$A24&""))*(INDIRECT("'PRODUCT DATA'!$U"&$A24&"")))*($F24/128)) -> * | O24: =IF((INDIRECT("'PRODUCT DATA'!$V"&$A24&""))=0,"*",((INDIRECT("'PRODUCT DATA'!$F"&$A24&""))*(INDIRECT("'PRODUCT DATA'!$V"&$A24&"")))*($F24/128)) -> * | P24: =IF((INDIRECT("'PRODUCT DATA'!$W"&$A24&""))=0,"*",((INDIRECT("'PRODUCT DATA'!$F"&$A24&""))*(INDIRECT("'PRODUCT DATA'!$W"&$A24&"")))*($F24/128)) -> * | Q24: =IF((INDIRECT("'PRODUCT DATA'!$X"&$A24&""))=0,"*",((INDIRECT("'PRODUCT DATA'!$F"&$A24&""))*(INDIRECT("'PRODUCT DATA'!$X"&$A24&"")))*($F24/128)) -> * | R24: =IF((INDIRECT("'PRODUCT DATA'!$Y"&$A24&""))=0,"*",((INDIRECT("'PRODUCT DATA'!$F"&$A24&""))*(INDIRECT("'PRODUCT DATA'!$Y"&$A24&"")))*($F24/128)) -> * | S24: =IF((INDIRECT("'PRODUCT DATA'!$Z"&$A24&""))=0,"*",((INDIRECT("'PRODUCT DATA'!$F"&$A24&""))*(INDIRECT("'PRODUCT DATA'!$Z"&$A24&"")))*($F24/128)) -> * | T24: =IF((INDIRECT("'PRODUCT DATA'!$AA"&$A24&""))=0,"*",((INDIRECT("'PRODUCT DATA'!$F"&$A24&""))*(INDIRECT("'PRODUCT DATA'!$AA"&$A24&"")))*($F24/128)) -> * | U24: =IF((INDIRECT("'PRODUCT DATA'!$AB"&$A24&""))=0,"*",((INDIRECT("'PRODUCT DATA'!$F"&$A24&""))*(INDIRECT("'PRODUCT DATA'!$AB"&$A24&"")))*($F24/128)) -> *
A25: 47 | G25: =IF((INDIRECT("'PRODUCT DATA'!$L"&$A25&""))=0,"*",((INDIRECT("'PRODUCT DATA'!$F"&$A25&""))*(INDIRECT("'PRODUCT DATA'!$L"&$A25&"")))*($F25/128)) -> * | H25: * | I25: * | J25: * | K25: * | L25: * | M25: * | N25: * | O25: * | P25: * | Q25: * | R25: * | S25: * | T25: * | U25: *
A26: 47 | G26: * | H26: * | I26: * | J26: * | K26: * | L26: * | M26: * | N26: * | O26: * | P26: * | Q26: * | R26: * | S26: * | T26: * | U26: *
A27: 47 | G27: * | H27: * | I27: * | J27: * | K27: * | L27: * | M27: * | N27: * | O27: * | P27: * | Q27: * | R27: * | S27: * | T27: * | U27: *
A28: 47 | G28: * | H28: * | I28: * | J28: * | K28: * | L28: * | M28: * | N28: * | O28: * | P28: * | Q28: * | R28: * | S28: * | T28: * | U28: *
A29: 47 | G29: * | H29: * | I29: * | J29: * | K29: * | L29: * | M29: * | N29: * | O29: * | P29: * | Q29: * | R29: * | S29: * | T29: * | U29: *
A30: 47 | G30: * | H30: * | I30: * | J30: * | K30: * | L30: * | M30: * | N30: * | O30: * | P30: * | Q30: * | R30: * | S30: * | T30: * | U30: *
A31: 47 | G31: * | H31: * | I31: * | J31: * | K31: * | L31: * | M31: * | N31: * | O31: * | P31: * | Q31: * | R31: * | S31: * | T31: * | U31: *
A32: 47 | G32: * | H32: * | I32: * | J32: * | K32: * | L32: * | M32: * | N32: * | O32: * | P32: * | Q32: * | R32: * | S32: * | T32: * | U32: *
A33: 47 | G33: * | H33: * | I33: * | J33: * | K33: * | L33: * | M33: * | N33: * | O33: * | P33: * | Q33: * | R33: * | S33: * | T33: * | U33: *
C34: Sub-Total (Each Application): | G34: =IF(SUM(G24:G33)=0,"0",SUM(G24:G33)) -> 0 | H34: =IF(SUM(H24:H33)=0,"0",SUM(H24:H33)) -> 0 | I34: 0 | J34: 0 | K34: 0 | L34: 0 | M34: 0 | N34: 0 | O34: 0 | P34: 0 | Q34: 0 | R34: 0 | S34: 0 | T34: 0 | U34: 0
C35: Program Sub-Total: | G35: =G34*$M$12 -> 0.0000 | H35: =H34*$M$12 -> 0.0000 | I35: 0.0000 | J35: 0.0000 | K35: 0.0000 | L35: 0.0000 | M35: 0.0000 | N35: 0.0000 | O35: 0.0000 | P35: 0.0000 | Q35: 0.00000 | R35: 0.00000 | S35: 0.00000 | T35: 0.00000 | U35: 0.00000
C36: lbs / ACRE (Each Application): | G36: =IF((G34="*"),"*",(G34*43.56)) -> 0.000 | H36: 0.000 | I36: 0.000 | J36: 0.000 | K36: 0.000 | L36: 0.000 | M36: 0.000 | N36: 0.000 | O36: 0.000 | P36: 0.000 | Q36: 0.00000 | R36: 0.00000 | S36: 0.00000 | T36: 0.00000 | U36: 0.00000
C39: MIX #2 | F39: oz / 1,000 FT2 | G39: LBS of Nutrient per 1,000 FT2
F40: RATE | G40: N | H40: P2O5 | I40: K2O | J40: Ca | K40: Mg | L40: S | M40: Fe | N40: Mn | O40: Zn | P40: Cu | Q40: B | R40: Si | S40: Mo | T40: Co | U40: HPO3
A41: =IF(($C41=id.32081),3,IF(($C41=id.32502),4,IF(($C41=id.20504),5,IF(($C41=id.32527),6,IF(($C41=id.32504),7,IF(($C41=id.32019),8,IF(($C41=id.32001),9,IF(($C41=id.32031),10,IF(($C41=id.25007),11,IF(($C41=id.20023),12,IF(($C41=id.32066),13,IF(($C41=id.32511),14,IF(($C41=id.32503),15,IF(($C41=id.32507),16,IF(($C41=id.32026),17,IF(($C41=id.32512),18,IF(($C41=id.32513),19,IF(($C41=id.32035),20,IF(($C41=id.32032),21,IF(($C41=id.32085),22,IF(($C41=id.32059),23,IF(($C41=id.20502),24,IF(($C41=id.32526),25,IF(($C41=id.32525),26,IF(($C41=id.32534),27,IF(($C41=id.51014),28,IF(($C41=id.51015),29,IF(($C41=id.32209),30,IF(($C41=id.32174),31,IF(($C41=id.32003),32,IF(($C41=id.20001),33,IF(($C41=id.20011),34,IF(($C41=id.49011),35,IF(($C41=id.49012),36,IF(($C41=id.42008),37,IF(($C41=id.42009),38,IF(($C41=id.x1),48,IF(($C41=id.x2),49,IF(($C41=id.x3),50,"47"))))))))))))))))))))))))))))))))))))))) -> 47 | G41: =IF((INDIRECT("'PRODUCT DATA'!$L"&$A41&""))=0,"*",((INDIRECT("'PRODUCT DATA'!$F"&$A41&""))*(INDIRECT("'PRODUCT DATA'!$L"&$A41&"")))*($F41/128)) -> * | H41: =IF((INDIRECT("'PRODUCT DATA'!$M"&$A41&""))=0,"*",((INDIRECT("'PRODUCT DATA'!$F"&$A41&""))*(INDIRECT("'PRODUCT DATA'!$M"&$A41&"")))*($F41/128)) -> * | I41: =IF((INDIRECT("'PRODUCT DATA'!$O"&$A41&""))=0,"*",((INDIRECT("'PRODUCT DATA'!$F"&$A41&""))*(INDIRECT("'PRODUCT DATA'!$O"&$A41&"")))*($F41/128)) -> * | J41: =IF((INDIRECT("'PRODUCT DATA'!$Q"&$A41&""))=0,"*",((INDIRECT("'PRODUCT DATA'!$F"&$A41&""))*(INDIRECT("'PRODUCT DATA'!$Q"&$A41&"")))*($F41/128)) -> * | K41: =IF((INDIRECT("'PRODUCT DATA'!$R"&$A41&""))=0,"*",((INDIRECT("'PRODUCT DATA'!$F"&$A41&""))*(INDIRECT("'PRODUCT DATA'!$R"&$A41&"")))*($F41/128)) -> * | L41: =IF((INDIRECT("'PRODUCT DATA'!$S"&$A41&""))=0,"*",((INDIRECT("'PRODUCT DATA'!$F"&$A41&""))*(INDIRECT("'PRODUCT DATA'!$S"&$A41&"")))*($F41/128)) -> * | M41: =IF((INDIRECT("'PRODUCT DATA'!$T"&$A41&""))=0,"*",((INDIRECT("'PRODUCT DATA'!$F"&$A41&""))*(INDIRECT("'PRODUCT DATA'!$T"&$A41&"")))*($F41/128)) -> * | N41: =IF((INDIRECT("'PRODUCT DATA'!$U"&$A41&""))=0,"*",((INDIRECT("'PRODUCT DATA'!$F"&$A41&""))*(INDIRECT("'PRODUCT DATA'!$U"&$A41&"")))*($F41/128)) -> * | O41: =IF((INDIRECT("'PRODUCT DATA'!$V"&$A41&""))=0,"*",((INDIRECT("'PRODUCT DATA'!$F"&$A41&""))*(INDIRECT("'PRODUCT DATA'!$V"&$A41&"")))*($F41/128)) -> * | P41: =IF((INDIRECT("'PRODUCT DATA'!$W"&$A41&""))=0,"*",((INDIRECT("'PRODUCT DATA'!$F"&$A41&""))*(INDIRECT("'PRODUCT DATA'!$W"&$A41&"")))*($F41/128)) -> * | Q41: =IF((INDIRECT("'PRODUCT DATA'!$X"&$A41&""))=0,"*",((INDIRECT("'PRODUCT DATA'!$F"&$A41&""))*(INDIRECT("'PRODUCT DATA'!$X"&$A41&"")))*($F41/128)) -> * | R41: =IF((INDIRECT("'PRODUCT DATA'!$Y"&$A41&""))=0,"*",((INDIRECT("'PRODUCT DATA'!$F"&$A41&""))*(INDIRECT("'PRODUCT DATA'!$Y"&$A41&"")))*($F41/128)) -> * | S41: =IF((INDIRECT("'PRODUCT DATA'!$Z"&$A41&""))=0,"*",((INDIRECT("'PRODUCT DATA'!$F"&$A41&""))*(INDIRECT("'PRODUCT DATA'!$Z"&$A41&"")))*($F41/128)) -> * | T41: =IF((INDIRECT("'PRODUCT DATA'!$AA"&$A41&""))=0,"*",((INDIRECT("'PRODUCT DATA'!$F"&$A41&""))*(INDIRECT("'PRODUCT DATA'!$AA"&$A41&"")))*($F41/128)) -> * | U41: =IF((INDIRECT("'PRODUCT DATA'!$AB"&$A41&""))=0,"*",((INDIRECT("'PRODUCT DATA'!$F"&$A41&""))*(INDIRECT("'PRODUCT DATA'!$AB"&$A41&"")))*($F41/128)) -> *
A42: 47 | G42: * | H42: * | I42: * | J42: * | K42: * | L42: * | M42: * | N42: * | O42: * | P42: * | Q42: * | R42: * | S42: * | T42: * | U42: *
A43: 47 | G43: * | H43: * | I43: * | J43: * | K43: * | L43: * | M43: * | N43: * | O43: * | P43: * | Q43: * | R43: * | S43: * | T43: * | U43: *
A44: 47 | G44: * | H44: * | I44: * | J44: * | K44: * | L44: * | M44: * | N44: * | O44: * | P44: * | Q44: * | R44: * | S44: * | T44: * | U44: *
A45: 47 | G45: * | H45: * | I45: * | J45: * | K45: * | L45: * | M45: * | N45: * | O45: * | P45: * | Q45: * | R45: * | S45: * | T45: * | U45: *
A46: 47 | G46: * | H46: * | I46: * | J46: * | K46: * | L46: * | M46: * | N46: * | O46: * | P46: * | Q46: * | R46: * | S46: * | T46: * | U46: *
C47: Sub-Total (Each Application): | G47: =IF(SUM(G41:G46)=0,"0",SUM(G41:G46)) -> 0 | H47: 0 | I47: 0 | J47: 0 | K47: 0 | L47: 0 | M47: 0 | N47: 0 | O47: 0 | P47: 0 | Q47: 0 | R47: 0 | S47: 0 | T47: 0 | U47: 0
C48: Program Sub-Total: | G48: =G47*$M$13 -> 0.0000 | H48: =H47*$M$13 -> 0.0000 | I48: 0.0000 | J48: 0.0000 | K48: 0.0000 | L48: 0.0000 | M48: 0.0000 | N48: 0.0000 | O48: 0.0000 | P48: 0.0000 | Q48: 0.00000 | R48: 0.00000 | S48: 0.00000 | T48: 0.00000 | U48: 0.00000
C49: lbs / ACRE (Each Application): | G49: =IF((G47="*"),"*",(G47*43.56)) -> 0.000 | H49: 0.000 | I49: 0.000 | J49: 0.000 | K49: 0.000 | L49: 0.000 | M49: 0.000 | N49: 0.000 | O49: 0.000 | P49: 0.000 | Q49: 0.00000 | R49: 0.00000 | S49: 0.00000 | T49: 0.00000 | U49: 0.00000
C52: MIX #3 | F52: oz / 1,000 FT2 | G52: LBS of Nutrient per 1,000 FT2
F53: RATE | G53: N | H53: P2O5 | I53: K2O | J53: Ca | K53: Mg | L53: S | M53: Fe | N53: Mn | O53: Zn | P53: Cu | Q53: B | R53: Si | S53: Mo | T53: Co | U53: HPO3
A54: =IF(($C54=id.32081),3,IF(($C54=id.32502),4,IF(($C54=id.20504),5,IF(($C54=id.32527),6,IF(($C54=id.32504),7,IF(($C54=id.32019),8,IF(($C54=id.32001),9,IF(($C54=id.32031),10,IF(($C54=id.25007),11,IF(($C54=id.20023),12,IF(($C54=id.32066),13,IF(($C54=id.32511),14,IF(($C54=id.32503),15,IF(($C54=id.32507),16,IF(($C54=id.32026),17,IF(($C54=id.32512),18,IF(($C54=id.32513),19,IF(($C54=id.32035),20,IF(($C54=id.32032),21,IF(($C54=id.32085),22,IF(($C54=id.32059),23,IF(($C54=id.20502),24,IF(($C54=id.32526),25,IF(($C54=id.32525),26,IF(($C54=id.32534),27,IF(($C54=id.51014),28,IF(($C54=id.51015),29,IF(($C54=id.32209),30,IF(($C54=id.32174),31,IF(($C54=id.32003),32,IF(($C54=id.20001),33,IF(($C54=id.20011),34,IF(($C54=id.49011),35,IF(($C54=id.49012),36,IF(($C54=id.42008),37,IF(($C54=id.42009),38,IF(($C54=id.x1),48,IF(($C54=id.x2),49,IF(($C54=id.x3),50,"47"))))))))))))))))))))))))))))))))))))))) -> 47 | G54: =IF((INDIRECT("'PRODUCT DATA'!$L"&$A54&""))=0,"*",((INDIRECT("'PRODUCT DATA'!$F"&$A54&""))*(INDIRECT("'PRODUCT DATA'!$L"&$A54&"")))*($F54/128)) -> * | H54: =IF((INDIRECT("'PRODUCT DATA'!$M"&$A54&""))=0,"*",((INDIRECT("'PRODUCT DATA'!$F"&$A54&""))*(INDIRECT("'PRODUCT DATA'!$M"&$A54&"")))*($F54/128)) -> * | I54: =IF((INDIRECT("'PRODUCT DATA'!$O"&$A54&""))=0,"*",((INDIRECT("'PRODUCT DATA'!$F"&$A54&""))*(INDIRECT("'PRODUCT DATA'!$O"&$A54&"")))*($F54/128)) -> * | J54: =IF((INDIRECT("'PRODUCT DATA'!$Q"&$A54&""))=0,"*",((INDIRECT("'PRODUCT DATA'!$F"&$A54&""))*(INDIRECT("'PRODUCT DATA'!$Q"&$A54&"")))*($F54/128)) -> * | K54: =IF((INDIRECT("'PRODUCT DATA'!$R"&$A54&""))=0,"*",((INDIRECT("'PRODUCT DATA'!$F"&$A54&""))*(INDIRECT("'PRODUCT DATA'!$R"&$A54&"")))*($F54/128)) -> * | L54: =IF((INDIRECT("'PRODUCT DATA'!$S"&$A54&""))=0,"*",((INDIRECT("'PRODUCT DATA'!$F"&$A54&""))*(INDIRECT("'PRODUCT DATA'!$S"&$A54&"")))*($F54/128)) -> * | M54: =IF((INDIRECT("'PRODUCT DATA'!$T"&$A54&""))=0,"*",((INDIRECT("'PRODUCT DATA'!$F"&$A54&""))*(INDIRECT("'PRODUCT DATA'!$T"&$A54&"")))*($F54/128)) -> * | N54: =IF((INDIRECT("'PRODUCT DATA'!$U"&$A54&""))=0,"*",((INDIRECT("'PRODUCT DATA'!$F"&$A54&""))*(INDIRECT("'PRODUCT DATA'!$U"&$A54&"")))*($F54/128)) -> * | O54: =IF((INDIRECT("'PRODUCT DATA'!$V"&$A54&""))=0,"*",((INDIRECT("'PRODUCT DATA'!$F"&$A54&""))*(INDIRECT("'PRODUCT DATA'!$V"&$A54&"")))*($F54/128)) -> * | P54: =IF((INDIRECT("'PRODUCT DATA'!$W"&$A54&""))=0,"*",((INDIRECT("'PRODUCT DATA'!$F"&$A54&""))*(INDIRECT("'PRODUCT DATA'!$W"&$A54&"")))*($F54/128)) -> * | Q54: =IF((INDIRECT("'PRODUCT DATA'!$X"&$A54&""))=0,"*",((INDIRECT("'PRODUCT DATA'!$F"&$A54&""))*(INDIRECT("'PRODUCT DATA'!$X"&$A54&"")))*($F54/128)) -> * | R54: =IF((INDIRECT("'PRODUCT DATA'!$Y"&$A54&""))=0,"*",((INDIRECT("'PRODUCT DATA'!$F"&$A54&""))*(INDIRECT("'PRODUCT DATA'!$Y"&$A54&"")))*($F54/128)) -> * | S54: =IF((INDIRECT("'PRODUCT DATA'!$Z"&$A54&""))=0,"*",((INDIRECT("'PRODUCT DATA'!$F"&$A54&""))*(INDIRECT("'PRODUCT DATA'!$Z"&$A54&"")))*($F54/128)) -> * | T54: =IF((INDIRECT("'PRODUCT DATA'!$AA"&$A54&""))=0,"*",((INDIRECT("'PRODUCT DATA'!$F"&$A54&""))*(INDIRECT("'PRODUCT DATA'!$AA"&$A54&"")))*($F54/128)) -> * | U54: =IF((INDIRECT("'PRODUCT DATA'!$AB"&$A54&""))=0,"*",((INDIRECT("'PRODUCT DATA'!$F"&$A54&""))*(INDIRECT("'PRODUCT DATA'!$AB"&$A54&"")))*($F54/128)) -> *
A55: 47 | G55: * | H55: * | I55: * | J55: * | K55: * | L55: * | M55: * | N55: * | O55: * | P55: * | Q55: * | R55: * | S55: * | T55: * | U55: *
A56: 47 | G56: * | H56: * | I56: * | J56: * | K56: * | L56: * | M56: * | N56: * | O56: * | P56: * | Q56: * | R56: * | S56: * | T56: * | U56: *
A57: 47 | G57: * | H57: * | I57: * | J57: * | K57: * | L57: * | M57: * | N57: * | O57: * | P57: * | Q57: * | R57: * | S57: * | T57: * | U57: *
A58: 47 | G58: * | H58: * | I58: * | J58: * | K58: * | L58: * | M58: * | N58: * | O58: * | P58: * | Q58: * | R58: * | S58: * | T58: * | U58: *
A59: 47 | G59: * | H59: * | I59: * | J59: * | K59: * | L59: * | M59: * | N59: * | O59: * | P59: * | Q59: * | R59: * | S59: * | T59: * | U59: *
C60: Sub-Total (Each Application): | G60: =IF(SUM(G54:G59)=0,"0",SUM(G54:G59)) -> 0 | H60: 0 | I60: 0 | J60: 0 | K60: 0 | L60: 0 | M60: 0 | N60: 0 | O60: 0 | P60: 0 | Q60: 0 | R60: 0 | S60: 0 | T60: 0 | U60: 0
C61: Program Sub-Total: | G61: =G60*$M$14 -> 0.0000 | H61: =H60*$M$14 -> 0.0000 | I61: 0.0000 | J61: 0.0000 | K61: 0.0000 | L61: 0.0000 | M61: 0.0000 | N61: 0.0000 | O61: 0.0000 | P61: 0.0000 | Q61: 0.00000 | R61: 0.00000 | S61: 0.00000 | T61: 0.00000 | U61: 0.00000
C62: lbs / ACRE (Each Application): | G62: =IF((G60="*"),"*",(G60*43.56)) -> 0.000 | H62: 0.000 | I62: 0.000 | J62: 0.000 | K62: 0.000 | L62: 0.000 | M62: 0.000 | N62: 0.000 | O62: 0.000 | P62: 0.000 | Q62: 0.00000 | R62: 0.00000 | S62: 0.00000 | T62: 0.00000 | U62: 0.00000
C64: MIX #4 | F64: oz / 1,000 FT2 | G64: LBS of Nutrient per 1,000 FT2
F65: RATE | G65: N | H65: P2O5 | I65: K2O | J65: Ca | K65: Mg | L65: S | M65: Fe | N65: Mn | O65: Zn | P65: Cu | Q65: B | R65: Si | S65: Mo | T65: Co | U65: HPO3
A66: =IF(($C66=id.32081),3,IF(($C66=id.32502),4,IF(($C66=id.20504),5,IF(($C66=id.32527),6,IF(($C66=id.32504),7,IF(($C66=id.32019),8,IF(($C66=id.32001),9,IF(($C66=id.32031),10,IF(($C66=id.25007),11,IF(($C66=id.20023),12,IF(($C66=id.32066),13,IF(($C66=id.32511),14,IF(($C66=id.32503),15,IF(($C66=id.32507),16,IF(($C66=id.32026),17,IF(($C66=id.32512),18,IF(($C66=id.32513),19,IF(($C66=id.32035),20,IF(($C66=id.32032),21,IF(($C66=id.32085),22,IF(($C66=id.32059),23,IF(($C66=id.20502),24,IF(($C66=id.32526),25,IF(($C66=id.32525),26,IF(($C66=id.32534),27,IF(($C66=id.51014),28,IF(($C66=id.51015),29,IF(($C66=id.32209),30,IF(($C66=id.32174),31,IF(($C66=id.32003),32,IF(($C66=id.20001),33,IF(($C66=id.20011),34,IF(($C66=id.49011),35,IF(($C66=id.49012),36,IF(($C66=id.42008),37,IF(($C66=id.42009),38,IF(($C66=id.x1),48,IF(($C66=id.x2),49,IF(($C66=id.x3),50,"47"))))))))))))))))))))))))))))))))))))))) -> 47 | G66: =IF((INDIRECT("'PRODUCT DATA'!$L"&$A66&""))=0,"*",((INDIRECT("'PRODUCT DATA'!$F"&$A66&""))*(INDIRECT("'PRODUCT DATA'!$L"&$A66&"")))*($F66/128)) -> * | H66: =IF((INDIRECT("'PRODUCT DATA'!$M"&$A66&""))=0,"*",((INDIRECT("'PRODUCT DATA'!$F"&$A66&""))*(INDIRECT("'PRODUCT DATA'!$M"&$A66&"")))*($F66/128)) -> * | I66: =IF((INDIRECT("'PRODUCT DATA'!$O"&$A66&""))=0,"*",((INDIRECT("'PRODUCT DATA'!$F"&$A66&""))*(INDIRECT("'PRODUCT DATA'!$O"&$A66&"")))*($F66/128)) -> * | J66: =IF((INDIRECT("'PRODUCT DATA'!$Q"&$A66&""))=0,"*",((INDIRECT("'PRODUCT DATA'!$F"&$A66&""))*(INDIRECT("'PRODUCT DATA'!$Q"&$A66&"")))*($F66/128)) -> * | K66: =IF((INDIRECT("'PRODUCT DATA'!$R"&$A66&""))=0,"*",((INDIRECT("'PRODUCT DATA'!$F"&$A66&""))*(INDIRECT("'PRODUCT DATA'!$R"&$A66&"")))*($F66/128)) -> * | L66: =IF((INDIRECT("'PRODUCT DATA'!$S"&$A66&""))=0,"*",((INDIRECT("'PRODUCT DATA'!$F"&$A66&""))*(INDIRECT("'PRODUCT DATA'!$S"&$A66&"")))*($F66/128)) -> * | M66: =IF((INDIRECT("'PRODUCT DATA'!$T"&$A66&""))=0,"*",((INDIRECT("'PRODUCT DATA'!$F"&$A66&""))*(INDIRECT("'PRODUCT DATA'!$T"&$A66&"")))*($F66/128)) -> * | N66: =IF((INDIRECT("'PRODUCT DATA'!$U"&$A66&""))=0,"*",((INDIRECT("'PRODUCT DATA'!$F"&$A66&""))*(INDIRECT("'PRODUCT DATA'!$U"&$A66&"")))*($F66/128)) -> * | O66: =IF((INDIRECT("'PRODUCT DATA'!$V"&$A66&""))=0,"*",((INDIRECT("'PRODUCT DATA'!$F"&$A66&""))*(INDIRECT("'PRODUCT DATA'!$V"&$A66&"")))*($F66/128)) -> * | P66: =IF((INDIRECT("'PRODUCT DATA'!$W"&$A66&""))=0,"*",((INDIRECT("'PRODUCT DATA'!$F"&$A66&""))*(INDIRECT("'PRODUCT DATA'!$W"&$A66&"")))*($F66/128)) -> * | Q66: =IF((INDIRECT("'PRODUCT DATA'!$X"&$A66&""))=0,"*",((INDIRECT("'PRODUCT DATA'!$F"&$A66&""))*(INDIRECT("'PRODUCT DATA'!$X"&$A66&"")))*($F66/128)) -> * | R66: =IF((INDIRECT("'PRODUCT DATA'!$Y"&$A66&""))=0,"*",((INDIRECT("'PRODUCT DATA'!$F"&$A66&""))*(INDIRECT("'PRODUCT DATA'!$Y"&$A66&"")))*($F66/128)) -> * | S66: =IF((INDIRECT("'PRODUCT DATA'!$Z"&$A66&""))=0,"*",((INDIRECT("'PRODUCT DATA'!$F"&$A66&""))*(INDIRECT("'PRODUCT DATA'!$Z"&$A66&"")))*($F66/128)) -> * | T66: =IF((INDIRECT("'PRODUCT DATA'!$AA"&$A66&""))=0,"*",((INDIRECT("'PRODUCT DATA'!$F"&$A66&""))*(INDIRECT("'PRODUCT DATA'!$AA"&$A66&"")))*($F66/128)) -> * | U66: =IF((INDIRECT("'PRODUCT DATA'!$AB"&$A66&""))=0,"*",((INDIRECT("'PRODUCT DATA'!$F"&$A66&""))*(INDIRECT("'PRODUCT DATA'!$AB"&$A66&"")))*($F66/128)) -> *
A67: 47 | G67: * | H67: * | I67: * | J67: * | K67: * | L67: * | M67: * | N67: * | O67: * | P67: * | Q67: * | R67: * | S67: * | T67: * | U67: *
A68: 47 | G68: * | H68: * | I68: * | J68: * | K68: * | L68: * | M68: * | N68: * | O68: * | P68: * | Q68: * | R68: * | S68: * | T68: * | U68: *
A69: 47 | G69: * | H69: * | I69: * | J69: * | K69: * | L69: * | M69: * | N69: * | O69: * | P69: * | Q69: * | R69: * | S69: * | T69: * | U69: *
A70: 47 | G70: * | H70: * | I70: * | J70: * | K70: * | L70: * | M70: * | N70: * | O70: * | P70: * | Q70: * | R70: * | S70: * | T70: * | U70: *
A71: 47 | G71: * | H71: * | I71: * | J71: * | K71: * | L71: * | M71: * | N71: * | O71: * | P71: * | Q71: * | R71: * | S71: * | T71: * | U71: *
C72: Sub-Total (Each Application): | G72: =IF(SUM(G66:G71)=0,"0",SUM(G66:G71)) -> 0 | H72: 0 | I72: 0 | J72: 0 | K72: 0 | L72: 0 | M72: 0 | N72: 0 | O72: 0 | P72: 0 | Q72: 0 | R72: 0 | S72: 0 | T72: 0 | U72: 0
C73: Program Sub-Total: | G73: =G72*$M$15 -> 0.0000 | H73: =H72*$M$15 -> 0.0000 | I73: 0.0000 | J73: 0.0000 | K73: 0.0000 | L73: 0.0000 | M73: 0.0000 | N73: 0.0000 | O73: 0.0000 | P73: 0.0000 | Q73: 0.00000 | R73: 0.00000 | S73: 0.00000 | T73: 0.00000 | U73: 0.00000
C74: lbs / ACRE (Each Application): | G74: =IF((G72="*"),"*",(G72*43.56)) -> 0.000 | H74: 0.000 | I74: 0.000 | J74: 0.000 | K74: 0.000 | L74: 0.000 | M74: 0.000 | N74: 0.000 | O74: 0.000 | P74: 0.000 | Q74: 0.00000 | R74: 0.00000 | S74: 0.00000 | T74: 0.00000 | U74: 0.00000
F77: lbs / 1,000 FT2 | G77: LBS of Nutrient per 1,000 FT2
C78: SOLUBLE #1 | F78: RATE | G78: N | H78: P2O5 | I78: K2O | J78: Ca | K78: Mg | L78: S | M78: Fe | N78: Mn | O78: Zn | P78: Cu | Q78: B | R78: Si | S78: Mo | T78: Co | U78: HPO3
A79: =IF(($C79=id.32081),3,IF(($C79=id.32502),4,IF(($C79=id.20504),5,IF(($C79=id.32527),6,IF(($C79=id.32504),7,IF(($C79=id.32019),8,IF(($C79=id.32001),9,IF(($C79=id.32031),10,IF(($C79=id.25007),11,IF(($C79=id.20023),12,IF(($C79=id.32066),13,IF(($C79=id.32511),14,IF(($C79=id.32503),15,IF(($C79=id.32507),16,IF(($C79=id.32026),17,IF(($C79=id.32512),18,IF(($C79=id.32513),19,IF(($C79=id.32035),20,IF(($C79=id.32032),21,IF(($C79=id.32085),22,IF(($C79=id.32059),23,IF(($C79=id.20502),24,IF(($C79=id.32526),25,IF(($C79=id.32525),26,IF(($C79=id.32534),27,IF(($C79=id.51014),28,IF(($C79=id.51015),29,IF(($C79=id.32209),30,IF(($C79=id.32174),31,IF(($C79=id.32003),32,IF(($C79=id.20001),33,IF(($C79=id.20011),34,IF(($C79=id.49011),35,IF(($C79=id.49012),36,IF(($C79=id.42008),37,IF(($C79=id.42009),38,IF(($C79=id.x1),48,IF(($C79=id.x2),49,IF(($C79=id.x3),50,"47"))))))))))))))))))))))))))))))))))))))) -> 47 | G79: =IF((INDIRECT("'PRODUCT DATA'!$L"&$A79&""))=0,"0",((INDIRECT("'PRODUCT DATA'!$L"&$A79&""))*($F79))) -> 0 | H79: =IF((INDIRECT("'PRODUCT DATA'!$M"&$A79&""))=0,"0",((INDIRECT("'PRODUCT DATA'!$M"&$A79&""))*($F79))) -> 0 | I79: =IF((INDIRECT("'PRODUCT DATA'!$O"&$A79&""))=0,"0",((INDIRECT("'PRODUCT DATA'!$O"&$A79&""))*($F79))) -> 0 | J79: =IF((INDIRECT("'PRODUCT DATA'!$Q"&$A79&""))=0,"0",((INDIRECT("'PRODUCT DATA'!$Q"&$A79&""))*($F79))) -> 0 | K79: =IF((INDIRECT("'PRODUCT DATA'!$R"&$A79&""))=0,"0",((INDIRECT("'PRODUCT DATA'!$R"&$A79&""))*($F79))) -> 0 | L79: =IF((INDIRECT("'PRODUCT DATA'!$S"&$A79&""))=0,"0",((INDIRECT("'PRODUCT DATA'!$S"&$A79&""))*($F79))) -> 0 | M79: =IF((INDIRECT("'PRODUCT DATA'!$T"&$A79&""))=0,"0",((INDIRECT("'PRODUCT DATA'!$T"&$A79&""))*($F79))) -> 0 | N79: =IF((INDIRECT("'PRODUCT DATA'!$U"&$A79&""))=0,"0",((INDIRECT("'PRODUCT DATA'!$U"&$A79&""))*($F79))) -> 0 | O79: =IF((INDIRECT("'PRODUCT DATA'!$V"&$A79&""))=0,"0",((INDIRECT("'PRODUCT DATA'!$V"&$A79&""))*($F79))) -> 0 | P79: =IF((INDIRECT("'PRODUCT DATA'!$W"&$A79&""))=0,"0",((INDIRECT("'PRODUCT DATA'!$W"&$A79&""))*($F79))) -> 0 | Q79: =IF((INDIRECT("'PRODUCT DATA'!$X"&$A79&""))=0,"0",((INDIRECT("'PRODUCT DATA'!$X"&$A79&""))*($F79))) -> 0 | R79: =IF((INDIRECT("'PRODUCT DATA'!$Y"&$A79&""))=0,"0",((INDIRECT("'PRODUCT DATA'!$Y"&$A79&""))*($F79))) -> 0 | S79: =IF((INDIRECT("'PRODUCT DATA'!$Z"&$A79&""))=0,"0",((INDIRECT("'PRODUCT DATA'!$Z"&$A79&""))*($F79))) -> 0 | T79: =IF((INDIRECT("'PRODUCT DATA'!$AA"&$A79&""))=0,"0",((INDIRECT("'PRODUCT DATA'!$AA"&$A79&""))*($F79))) -> 0 | U79: =IF((INDIRECT("'PRODUCT DATA'!$AB"&$A79&""))=0,"0",((INDIRECT("'PRODUCT DATA'!$AB"&$A79&""))*($F79))) -> 0
C80: Program Sub-Total: | G80: =G79*$R$12 -> 0.000 | H80: =H79*$R$12 -> 0.000 | I80: 0.000 | J80: 0.000 | K80: 0.000 | L80: 0.000 | M80: 0.000 | N80: 0.000 | O80: 0.000 | P80: 0.000 | Q80: 0.00000 | R80: 0.00000 | S80: 0.00000 | T80: 0.00000 | U80: 0.00000
C81: lbs / ACRE: | G81: =IF((G79="*"),"*",(G79*43.56)) -> 0.000 | H81: 0.000 | I81: 0.000 | J81: 0.000 | K81: 0.000 | L81: 0.000 | M81: 0.000 | N81: 0.000 | O81: 0.000 | P81: 0.000 | Q81: 0.00000 | R81: 0.00000 | S81: 0.00000 | T81: 0.00000 | U81: 0.00000
C82: GRANULAR #1 | F82: RATE
A83: =IF(($C83=id.30049),52,IF(($C83=id.30082),53,IF(($C83=id.30050),54,IF(($C83=id.30051),55,IF(($C83=id.30077),56,IF(($C83=id.z1),73,IF(($C83=id.z2),74,"72"))))))) -> 72 | G83: =IF((INDIRECT("'PRODUCT DATA'!$L"&$A83&""))=0,"*",((INDIRECT("'PRODUCT DATA'!$L"&$A83&""))*($F83))) -> * | H83: =IF((INDIRECT("'PRODUCT DATA'!$M"&$A83&""))=0,"*",((INDIRECT("'PRODUCT DATA'!$M"&$A83&""))*($F83))) -> * | I83: =IF((INDIRECT("'PRODUCT DATA'!$O"&$A83&""))=0,"*",((INDIRECT("'PRODUCT DATA'!$O"&$A83&""))*($F83))) -> * | J83: =IF((INDIRECT("'PRODUCT DATA'!$Q"&$A83&""))=0,"*",((INDIRECT("'PRODUCT DATA'!$Q"&$A83&""))*($F83))) -> * | K83: =IF((INDIRECT("'PRODUCT DATA'!$R"&$A83&""))=0,"*",((INDIRECT("'PRODUCT DATA'!$R"&$A83&""))*($F83))) -> * | L83: =IF((INDIRECT("'PRODUCT DATA'!$S"&$A83&""))=0,"*",((INDIRECT("'PRODUCT DATA'!$S"&$A83&""))*($F83))) -> * | M83: =IF((INDIRECT("'PRODUCT DATA'!$T"&$A83&""))=0,"*",((INDIRECT("'PRODUCT DATA'!$T"&$A83&""))*($F83))) -> * | N83: =IF((INDIRECT("'PRODUCT DATA'!$U"&$A83&""))=0,"*",((INDIRECT("'PRODUCT DATA'!$U"&$A83&""))*($F83))) -> * | O83: =IF((INDIRECT("'PRODUCT DATA'!$V"&$A83&""))=0,"*",((INDIRECT("'PRODUCT DATA'!$V"&$A83&""))*($F83))) -> * | P83: =IF((INDIRECT("'PRODUCT DATA'!$W"&$A83&""))=0,"*",((INDIRECT("'PRODUCT DATA'!$W"&$A83&""))*($F83))) -> * | Q83: =IF((INDIRECT("'PRODUCT DATA'!$X"&$A83&""))=0,"*",((INDIRECT("'PRODUCT DATA'!$X"&$A83&""))*($F83))) -> * | R83: =IF((INDIRECT("'PRODUCT DATA'!$Y"&$A83&""))=0,"*",((INDIRECT("'PRODUCT DATA'!$Y"&$A83&""))*($F83))) -> * | S83: =IF((INDIRECT("'PRODUCT DATA'!$Z"&$A83&""))=0,"*",((INDIRECT("'PRODUCT DATA'!$Z"&$A83&""))*($F83))) -> * | T83: =IF((INDIRECT("'PRODUCT DATA'!$AA"&$A83&""))=0,"*",((INDIRECT("'PRODUCT DATA'!$AA"&$A83&""))*($F83))) -> * | U83: =IF((INDIRECT("'PRODUCT DATA'!$AB"&$A83&""))=0,"*",((INDIRECT("'PRODUCT DATA'!$AB"&$A83&""))*($F83))) -> *
A84: =IF(($C84=id.30049),52,IF(($C84=id.30082),53,IF(($C84=id.30050),54,IF(($C84=id.30051),55,IF(($C84=id.30077),56,IF(($C84=id.z1),73,IF(($C84=id.z2),74,"72"))))))) -> 72 | G84: =IF((INDIRECT("'PRODUCT DATA'!$L"&$A84&""))=0,"*",((INDIRECT("'PRODUCT DATA'!$L"&$A84&""))*($F84))) -> * | H84: =IF((INDIRECT("'PRODUCT DATA'!$M"&$A84&""))=0,"*",((INDIRECT("'PRODUCT DATA'!$M"&$A84&""))*($F84))) -> * | I84: =IF((INDIRECT("'PRODUCT DATA'!$O"&$A84&""))=0,"*",((INDIRECT("'PRODUCT DATA'!$O"&$A84&""))*($F84))) -> * | J84: =IF((INDIRECT("'PRODUCT DATA'!$Q"&$A84&""))=0,"*",((INDIRECT("'PRODUCT DATA'!$Q"&$A84&""))*($F84))) -> * | K84: =IF((INDIRECT("'PRODUCT DATA'!$R"&$A84&""))=0,"*",((INDIRECT("'PRODUCT DATA'!$R"&$A84&""))*($F84))) -> * | L84: =IF((INDIRECT("'PRODUCT DATA'!$S"&$A84&""))=0,"*",((INDIRECT("'PRODUCT DATA'!$S"&$A84&""))*($F84))) -> * | M84: =IF((INDIRECT("'PRODUCT DATA'!$T"&$A84&""))=0,"*",((INDIRECT("'PRODUCT DATA'!$T"&$A84&""))*($F84))) -> * | N84: =IF((INDIRECT("'PRODUCT DATA'!$U"&$A84&""))=0,"*",((INDIRECT("'PRODUCT DATA'!$U"&$A84&""))*($F84))) -> * | O84: =IF((INDIRECT("'PRODUCT DATA'!$V"&$A84&""))=0,"*",((INDIRECT("'PRODUCT DATA'!$V"&$A84&""))*($F84))) -> * | P84: =IF((INDIRECT("'PRODUCT DATA'!$W"&$A84&""))=0,"*",((INDIRECT("'PRODUCT DATA'!$W"&$A84&""))*($F84))) -> * | Q84: =IF((INDIRECT("'PRODUCT DATA'!$X"&$A84&""))=0,"*",((INDIRECT("'PRODUCT DATA'!$X"&$A84&""))*($F84))) -> * | R84: =IF((INDIRECT("'PRODUCT DATA'!$Y"&$A84&""))=0,"*",((INDIRECT("'PRODUCT DATA'!$Y"&$A84&""))*($F84))) -> * | S84: =IF((INDIRECT("'PRODUCT DATA'!$Z"&$A84&""))=0,"*",((INDIRECT("'PRODUCT DATA'!$Z"&$A84&""))*($F84))) -> * | T84: =IF((INDIRECT("'PRODUCT DATA'!$AA"&$A84&""))=0,"*",((INDIRECT("'PRODUCT DATA'!$AA"&$A84&""))*($F84))) -> * | U84: =IF((INDIRECT("'PRODUCT DATA'!$AB"&$A84&""))=0,"*",((INDIRECT("'PRODUCT DATA'!$AB"&$A84&""))*($F84))) -> *
C85: Sub-Total (Each Application): | G85: =IF(SUM(G83:G84)=0,"0",SUM(G83:G84)) -> 0 | H85: =IF(SUM(H83:H84)=0,"0",SUM(H83:H84)) -> 0 | I85: 0 | J85: 0 | K85: 0 | L85: 0 | M85: 0 | N85: 0 | O85: 0 | P85: 0 | Q85: 0 | R85: 0 | S85: 0 | T85: 0 | U85: 0
C86: Program Sub-Total: | G86: =(G85)*$R$13 -> 0.000 | H86: =(H85)*$R$13 -> 0.000 | I86: 0.000 | J86: 0.000 | K86: 0.000 | L86: 0.000 | M86: 0.000 | N86: 0.000 | O86: 0.000 | P86: 0.000 | Q86: 0.000 | R86: 0.000 | S86: 0.000 | T86: 0.000 | U86: 0.000
C87: lbs / ACRE: | G87: =IF((G85="*"),"*",(G85*43.56)) -> 0.000 | H87: =IF((H85="*"),"*",(H85*43.56)) -> 0.000 | I87: 0.000 | J87: 0.000 | K87: 0.000 | L87: 0.000 | M87: 0.000 | N87: 0.000 | O87: 0.000 | P87: 0.000 | Q87: 0.000 | R87: 0.000 | S87: 0.000 | T87: 0.000 | U87: 0.000
C88: GRANULAR #2 | F88: RATE
A89: =IF(($C89=id.30049),52,IF(($C89=id.30082),53,IF(($C89=id.30050),54,IF(($C89=id.30051),55,IF(($C89=id.30077),56,IF(($C89=id.z1),73,IF(($C89=id.z2),74,"72"))))))) -> 72 | G89: =IF((INDIRECT("'PRODUCT DATA'!$L"&$A89&""))=0,"*",((INDIRECT("'PRODUCT DATA'!$L"&$A89&""))*($F89))) -> * | H89: =IF((INDIRECT("'PRODUCT DATA'!$M"&$A89&""))=0,"*",((INDIRECT("'PRODUCT DATA'!$M"&$A89&""))*($F89))) -> * | I89: =IF((INDIRECT("'PRODUCT DATA'!$O"&$A89&""))=0,"*",((INDIRECT("'PRODUCT DATA'!$O"&$A89&""))*($F89))) -> * | J89: =IF((INDIRECT("'PRODUCT DATA'!$Q"&$A89&""))=0,"*",((INDIRECT("'PRODUCT DATA'!$Q"&$A89&""))*($F89))) -> * | K89: =IF((INDIRECT("'PRODUCT DATA'!$R"&$A89&""))=0,"*",((INDIRECT("'PRODUCT DATA'!$R"&$A89&""))*($F89))) -> * | L89: =IF((INDIRECT("'PRODUCT DATA'!$S"&$A89&""))=0,"*",((INDIRECT("'PRODUCT DATA'!$S"&$A89&""))*($F89))) -> * | M89: =IF((INDIRECT("'PRODUCT DATA'!$T"&$A89&""))=0,"*",((INDIRECT("'PRODUCT DATA'!$T"&$A89&""))*($F89))) -> * | N89: =IF((INDIRECT("'PRODUCT DATA'!$U"&$A89&""))=0,"*",((INDIRECT("'PRODUCT DATA'!$U"&$A89&""))*($F89))) -> * | O89: =IF((INDIRECT("'PRODUCT DATA'!$V"&$A89&""))=0,"*",((INDIRECT("'PRODUCT DATA'!$V"&$A89&""))*($F89))) -> * | P89: =IF((INDIRECT("'PRODUCT DATA'!$W"&$A89&""))=0,"*",((INDIRECT("'PRODUCT DATA'!$W"&$A89&""))*($F89))) -> * | Q89: =IF((INDIRECT("'PRODUCT DATA'!$X"&$A89&""))=0,"*",((INDIRECT("'PRODUCT DATA'!$X"&$A89&""))*($F89))) -> * | R89: =IF((INDIRECT("'PRODUCT DATA'!$Y"&$A89&""))=0,"*",((INDIRECT("'PRODUCT DATA'!$Y"&$A89&""))*($F89))) -> * | S89: =IF((INDIRECT("'PRODUCT DATA'!$Z"&$A89&""))=0,"*",((INDIRECT("'PRODUCT DATA'!$Z"&$A89&""))*($F89))) -> * | T89: =IF((INDIRECT("'PRODUCT DATA'!$AA"&$A89&""))=0,"*",((INDIRECT("'PRODUCT DATA'!$AA"&$A89&""))*($F89))) -> * | U89: =IF((INDIRECT("'PRODUCT DATA'!$AB"&$A89&""))=0,"*",((INDIRECT("'PRODUCT DATA'!$AB"&$A89&""))*($F89))) -> *
A90: =IF(($C90=id.30049),52,IF(($C90=id.30082),53,IF(($C90=id.30050),54,IF(($C90=id.30051),55,IF(($C90=id.30077),56,IF(($C90=id.z1),73,IF(($C90=id.z2),74,"72"))))))) -> 72 | G90: =IF((INDIRECT("'PRODUCT DATA'!$L"&$A90&""))=0,"*",((INDIRECT("'PRODUCT DATA'!$L"&$A90&""))*($F90))) -> * | H90: =IF((INDIRECT("'PRODUCT DATA'!$M"&$A90&""))=0,"*",((INDIRECT("'PRODUCT DATA'!$M"&$A90&""))*($F90))) -> * | I90: =IF((INDIRECT("'PRODUCT DATA'!$O"&$A90&""))=0,"*",((INDIRECT("'PRODUCT DATA'!$O"&$A90&""))*($F90))) -> * | J90: =IF((INDIRECT("'PRODUCT DATA'!$Q"&$A90&""))=0,"*",((INDIRECT("'PRODUCT DATA'!$Q"&$A90&""))*($F90))) -> * | K90: =IF((INDIRECT("'PRODUCT DATA'!$R"&$A90&""))=0,"*",((INDIRECT("'PRODUCT DATA'!$R"&$A90&""))*($F90))) -> * | L90: =IF((INDIRECT("'PRODUCT DATA'!$S"&$A90&""))=0,"*",((INDIRECT("'PRODUCT DATA'!$S"&$A90&""))*($F90))) -> * | M90: =IF((INDIRECT("'PRODUCT DATA'!$T"&$A90&""))=0,"*",((INDIRECT("'PRODUCT DATA'!$T"&$A90&""))*($F90))) -> * | N90: =IF((INDIRECT("'PRODUCT DATA'!$U"&$A90&""))=0,"*",((INDIRECT("'PRODUCT DATA'!$U"&$A90&""))*($F90))) -> * | O90: =IF((INDIRECT("'PRODUCT DATA'!$V"&$A90&""))=0,"*",((INDIRECT("'PRODUCT DATA'!$V"&$A90&""))*($F90))) -> * | P90: =IF((INDIRECT("'PRODUCT DATA'!$W"&$A90&""))=0,"*",((INDIRECT("'PRODUCT DATA'!$W"&$A90&""))*($F90))) -> * | Q90: =IF((INDIRECT("'PRODUCT DATA'!$X"&$A90&""))=0,"*",((INDIRECT("'PRODUCT DATA'!$X"&$A90&""))*($F90))) -> * | R90: =IF((INDIRECT("'PRODUCT DATA'!$Y"&$A90&""))=0,"*",((INDIRECT("'PRODUCT DATA'!$Y"&$A90&""))*($F90))) -> * | S90: =IF((INDIRECT("'PRODUCT DATA'!$Z"&$A90&""))=0,"*",((INDIRECT("'PRODUCT DATA'!$Z"&$A90&""))*($F90))) -> * | T90: =IF((INDIRECT("'PRODUCT DATA'!$AA"&$A90&""))=0,"*",((INDIRECT("'PRODUCT DATA'!$AA"&$A90&""))*($F90))) -> * | U90: =IF((INDIRECT("'PRODUCT DATA'!$AB"&$A90&""))=0,"*",((INDIRECT("'PRODUCT DATA'!$AB"&$A90&""))*($F90))) -> *
C91: Sub-Total (Each Application): | G91: =IF(SUM(G89:G90)=0,"0",SUM(G89:G90)) -> 0 | H91: =IF(SUM(H89:H90)=0,"0",SUM(H89:H90)) -> 0 | I91: 0 | J91: 0 | K91: 0 | L91: 0 | M91: 0 | N91: 0 | O91: 0 | P91: 0 | Q91: 0 | R91: 0 | S91: 0 | T91: 0 | U91: 0
C92: Program Sub-Total: | G92: =G91*$R$14 -> 0.000 | H92: =H91*$R$14 -> 0.000 | I92: 0.000 | J92: 0.000 | K92: 0.000 | L92: 0.000 | M92: 0.000 | N92: 0.000 | O92: 0.000 | P92: 0.000 | Q92: 0.000 | R92: 0.000 | S92: 0.000 | T92: 0.000 | U92: 0.000
C93: lbs / ACRE: | G93: =IF((G91="*"),"*",(G91*43.56)) -> 0.000 | H93: =IF((H91="*"),"*",(H91*43.56)) -> 0.000 | I93: 0.000 | J93: 0.000 | K93: 0.000 | L93: 0.000 | M93: 0.000 | N93: 0.000 | O93: 0.000 | P93: 0.000 | Q93: 0.000 | R93: 0.000 | S93: 0.000 | T93: 0.000 | U93: 0.000
C94: GRANULAR #3 | F94: RATE
A95: =IF(($C95=id.30049),52,IF(($C95=id.30082),53,IF(($C95=id.30050),54,IF(($C95=id.30051),55,IF(($C95=id.30077),56,IF(($C95=id.z1),73,IF(($C95=id.z2),74,"72"))))))) -> 72 | G95: =IF((INDIRECT("'PRODUCT DATA'!$L"&$A95&""))=0,"*",((INDIRECT("'PRODUCT DATA'!$L"&$A95&""))*($F95))) -> * | H95: =IF((INDIRECT("'PRODUCT DATA'!$M"&$A95&""))=0,"*",((INDIRECT("'PRODUCT DATA'!$M"&$A95&""))*($F95))) -> * | I95: =IF((INDIRECT("'PRODUCT DATA'!$O"&$A95&""))=0,"*",((INDIRECT("'PRODUCT DATA'!$O"&$A95&""))*($F95))) -> * | J95: =IF((INDIRECT("'PRODUCT DATA'!$Q"&$A95&""))=0,"*",((INDIRECT("'PRODUCT DATA'!$Q"&$A95&""))*($F95))) -> * | K95: =IF((INDIRECT("'PRODUCT DATA'!$R"&$A95&""))=0,"*",((INDIRECT("'PRODUCT DATA'!$R"&$A95&""))*($F95))) -> * | L95: =IF((INDIRECT("'PRODUCT DATA'!$S"&$A95&""))=0,"*",((INDIRECT("'PRODUCT DATA'!$S"&$A95&""))*($F95))) -> * | M95: =IF((INDIRECT("'PRODUCT DATA'!$T"&$A95&""))=0,"*",((INDIRECT("'PRODUCT DATA'!$T"&$A95&""))*($F95))) -> * | N95: =IF((INDIRECT("'PRODUCT DATA'!$U"&$A95&""))=0,"*",((INDIRECT("'PRODUCT DATA'!$U"&$A95&""))*($F95))) -> * | O95: =IF((INDIRECT("'PRODUCT DATA'!$V"&$A95&""))=0,"*",((INDIRECT("'PRODUCT DATA'!$V"&$A95&""))*($F95))) -> * | P95: =IF((INDIRECT("'PRODUCT DATA'!$W"&$A95&""))=0,"*",((INDIRECT("'PRODUCT DATA'!$W"&$A95&""))*($F95))) -> * | Q95: =IF((INDIRECT("'PRODUCT DATA'!$X"&$A95&""))=0,"*",((INDIRECT("'PRODUCT DATA'!$X"&$A95&""))*($F95))) -> * | R95: =IF((INDIRECT("'PRODUCT DATA'!$Y"&$A95&""))=0,"*",((INDIRECT("'PRODUCT DATA'!$Y"&$A95&""))*($F95))) -> * | S95: =IF((INDIRECT("'PRODUCT DATA'!$Z"&$A95&""))=0,"*",((INDIRECT("'PRODUCT DATA'!$Z"&$A95&""))*($F95))) -> * | T95: =IF((INDIRECT("'PRODUCT DATA'!$AA"&$A95&""))=0,"*",((INDIRECT("'PRODUCT DATA'!$AA"&$A95&""))*($F95))) -> * | U95: =IF((INDIRECT("'PRODUCT DATA'!$AB"&$A95&""))=0,"*",((INDIRECT("'PRODUCT DATA'!$AB"&$A95&""))*($F95))) -> *
A96: =IF(($C96=id.30049),52,IF(($C96=id.30082),53,IF(($C96=id.30050),54,IF(($C96=id.30051),55,IF(($C96=id.30077),56,IF(($C96=id.z1),73,IF(($C96=id.z2),74,"72"))))))) -> 72 | G96: =IF((INDIRECT("'PRODUCT DATA'!$L"&$A96&""))=0,"*",((INDIRECT("'PRODUCT DATA'!$L"&$A96&""))*($F96))) -> * | H96: =IF((INDIRECT("'PRODUCT DATA'!$M"&$A96&""))=0,"*",((INDIRECT("'PRODUCT DATA'!$M"&$A96&""))*($F96))) -> * | I96: =IF((INDIRECT("'PRODUCT DATA'!$O"&$A96&""))=0,"*",((INDIRECT("'PRODUCT DATA'!$O"&$A96&""))*($F96))) -> * | J96: =IF((INDIRECT("'PRODUCT DATA'!$Q"&$A96&""))=0,"*",((INDIRECT("'PRODUCT DATA'!$Q"&$A96&""))*($F96))) -> * | K96: =IF((INDIRECT("'PRODUCT DATA'!$R"&$A96&""))=0,"*",((INDIRECT("'PRODUCT DATA'!$R"&$A96&""))*($F96))) -> * | L96: =IF((INDIRECT("'PRODUCT DATA'!$S"&$A96&""))=0,"*",((INDIRECT("'PRODUCT DATA'!$S"&$A96&""))*($F96))) -> * | M96: =IF((INDIRECT("'PRODUCT DATA'!$T"&$A96&""))=0,"*",((INDIRECT("'PRODUCT DATA'!$T"&$A96&""))*($F96))) -> * | N96: =IF((INDIRECT("'PRODUCT DATA'!$U"&$A96&""))=0,"*",((INDIRECT("'PRODUCT DATA'!$U"&$A96&""))*($F96))) -> * | O96: =IF((INDIRECT("'PRODUCT DATA'!$V"&$A96&""))=0,"*",((INDIRECT("'PRODUCT DATA'!$V"&$A96&""))*($F96))) -> * | P96: =IF((INDIRECT("'PRODUCT DATA'!$W"&$A96&""))=0,"*",((INDIRECT("'PRODUCT DATA'!$W"&$A96&""))*($F96))) -> * | Q96: =IF((INDIRECT("'PRODUCT DATA'!$X"&$A96&""))=0,"*",((INDIRECT("'PRODUCT DATA'!$X"&$A96&""))*($F96))) -> * | R96: =IF((INDIRECT("'PRODUCT DATA'!$Y"&$A96&""))=0,"*",((INDIRECT("'PRODUCT DATA'!$Y"&$A96&""))*($F96))) -> * | S96: =IF((INDIRECT("'PRODUCT DATA'!$Z"&$A96&""))=0,"*",((INDIRECT("'PRODUCT DATA'!$Z"&$A96&""))*($F96))) -> * | T96: =IF((INDIRECT("'PRODUCT DATA'!$AA"&$A96&""))=0,"*",((INDIRECT("'PRODUCT DATA'!$AA"&$A96&""))*($F96))) -> * | U96: =IF((INDIRECT("'PRODUCT DATA'!$AB"&$A96&""))=0,"*",((INDIRECT("'PRODUCT DATA'!$AB"&$A96&""))*($F96))) -> *
C97: Sub-Total (Each Application): | G97: =IF(SUM(G95:G96)=0,"0",SUM(G95:G96)) -> 0 | H97: =IF(SUM(H95:H96)=0,"0",SUM(H95:H96)) -> 0 | I97: 0 | J97: 0 | K97: 0 | L97: 0 | M97: 0 | N97: 0 | O97: 0 | P97: 0 | Q97: 0 | R97: 0 | S97: 0 | T97: 0 | U97: 0
C98: Program Sub-Total: | G98: =G97*$R$15 -> 0.000 | H98: =H97*$R$15 -> 0.000 | I98: 0.000 | J98: 0.000 | K98: 0.000 | L98: 0.000 | M98: 0.000 | N98: 0.000 | O98: 0.000 | P98: 0.000 | Q98: 0.000 | R98: 0.000 | S98: 0.000 | T98: 0.000 | U98: 0.000
C99: lbs / ACRE: | G99: =IF((G97="*"),"*",(G97*43.56)) -> 0.000 | H99: =IF((H97="*"),"*",(H97*43.56)) -> 0.000 | I99: 0.000 | J99: 0.000 | K99: 0.000 | L99: 0.000 | M99: 0.000 | N99: 0.000 | O99: 0.000 | P99: 0.000 | Q99: 0.000 | R99: 0.000 | S99: 0.000 | T99: 0.000 | U99: 0.000
V101: =_xlfn.SINGLE(id.32081) -> BRANDT Foli-Cal
V102: =_xlfn.SINGLE(id.32502) -> BRANDT Manni-Plex Cal-Mag
V103: =_xlfn.SINGLE(id.20504) -> BRANDT Manni-Plex Eagle
V104: =_xlfn.SINGLE(id.32527) -> BRANDT Manni-Plex Fe
V105: =_xlfn.SINGLE(id.32504) -> BRANDT Manni-Plex Grow
V106: =_xlfn.SINGLE(id.32019) -> BRANDT Manni-Plex K
V107: =_xlfn.SINGLE(id.32001) -> BRANDT Manni-Plex Mg
V108: =_xlfn.SINGLE(id.32031) -> BRANDT Manni-Plex Mn
V109: =_xlfn.SINGLE(id.25007) -> BRANDT Manni-Plex Root Builder
V110: =_xlfn.SINGLE(id.20023) -> BRANDT Manni-Plex Si
V111: =_xlfn.SINGLE(id.32066) -> BRANDT Manni-Plex Total Turf
V112: =_xlfn.SINGLE(id.32511) -> BRANDT Manni-Plex Traffic
V113: =_xlfn.SINGLE(id.32503) -> BRANDT Manni-Plex Ultra Turf
V114: =_xlfn.SINGLE(id.32507) -> BRANDT Manni-Plex Ni 5%
V115: =_xlfn.SINGLE(id.32026) -> BRANDT Manni-Plex Zn
V116: =_xlfn.SINGLE(id.32512) -> BRANDT Organiplex 8% Ca
V117: =_xlfn.SINGLE(id.32513) -> BRANDT Organiplex MicroMix
V118: =_xlfn.SINGLE(id.32035) -> BRANDT Organiplex 4% Fe
V119: =_xlfn.SINGLE(id.32032) -> BRANDT Organiplex 4% Mn
V120: =_xlfn.SINGLE(id.32085) -> BRANDT Converge SRN 18-0-6
V121: =_xlfn.SINGLE(id.32059) -> BRANDT Converge SRN 18-3-6
V122: =_xlfn.SINGLE(id.20502) -> BRANDT Converge SRN 30-0-0
V123: =_xlfn.SINGLE(id.32526) -> BRANDT MKS
V124: =_xlfn.SINGLE(id.32525) -> BRANDT Parco-Root XL
V125: =_xlfn.SINGLE(id.32534) -> BRANDT Plant Start
V126: =_xlfn.SINGLE(id.51014) -> N-Boost
V127: =_xlfn.SINGLE(id.51015) -> BRANDT Liqui-Phi
V128: =id.32209 -> BRANDT Mega-Phi
V129: =id.32174 -> BRANDT 20-K
V130: =id.32003 -> BRANDT 30-K
V131: =id.20001 -> BRANDT Flash Dance
V132: =id.20011 -> BRANDT Supreme Green
V133: =id.49011 -> BRANDT In-Cyte
V134: =id.49012 -> BRANDT Seaweed Max
V135: =id.42008 -> BRANDT Uptake 12
V136: =id.42009 -> BRANDT Uptake Advanced
V137: =id.x1 -> Custom Liquid 1
V138: =id.x2 -> Custom Liquid 2
V139: =id.x3 -> Custom SOLUBLE 1
V141: =_xlfn.SINGLE(id.30049) -> BRANDT Noculate 8-3-17
V142: =_xlfn.SINGLE(id.30082) -> BRANDT Noculate 11-2-11
V143: =_xlfn.SINGLE(id.30050) -> BRANDT Noculate 13-4-13
V144: =_xlfn.SINGLE(id.30051) -> BRANDT Parco-Blend 13-2-13
V145: =_xlfn.SINGLE(id.30077) -> BRANDT Parco-Blend 17-4-17
V146: =id.z1 -> Custom Granular 1
V147: =id.z2 -> Custom Granular 2

Sheet PROGRAM ANALYSIS - standard
D1: =VERSION -> version #BRANDT-D2401- | F1: for use with "APPLICATION DATA - standard"
D2: PREPARED FOR: | F2: =IF(customer="","",customer) ->  | M2: Total Coverage Area per Application: | N2: =((sq.ft.a)+(sq.ft.b)) -> 0 | O2: FT2 | S2: Total Program Cost
D3: PROGRAM: | F3: =IF(ProgTitle="","",ProgTitle) ->  | N3: =((acre.a)+(acre.b)) -> 0 | O3: ACRES | T3: =T7+T10 -> $0.00
D4: DURATION: | F4: =(end.date-start.date) -> 0 | G4: DAYS | K4: Total Spray Apps / Program: | L4: =mix1.count+mix2.count+mix3.count+mix4.count -> 0 | N4: Spray Frequency: | O4: Abt. Every | P4: =IF((L4=0),0,($F$4/L4)) -> 0 | Q4: DAYS
K5: Total Spreader Apps / Program: | L5: =spreader1.count+spreader2.count+spreader3.count -> 0 | N5: Spreader Frequency: | O5: Abt. Every | P5: =IF((L5=0),0,($F$4/L5)) -> 0 | Q5: DAYS | S5: Unit Adjusted: | T5: =T8+T11 -> 0.00
G6: Total Tank Loads / Application: | H6: =IF(tank.area="","",($N$3/tank.area)) ->  | K6: Total Tank Loads / Program: | L6: =IF(H6="","",(L4*H6)) ->  | S6: Total Liquid Cost
G7: Total Spreader Loads / Application: | H7: =IF(spreader.area="","",($N$3/spreader.area)) ->  | K7: Total Spreader Loads / Program: | L7: =IF(H7="","",(L5*H7)) ->  | T7: =(SUM(liquid.prog.subcost)) -> $0.00
O8: NOTES: | S8: Case Adjusted: | T8: =(SUM(liquid.prog.adjustcost.case)) -> 0.00
E9: Entire Program Nutrient Concentrations :: lbs / 1,000 FT2 | O9: =IF(prog.descrip="","",prog.descrip) ->  | S9: Total Granular Cost
E10: N | F10: P2O5 | G10: K2O | H10: Fe | I10: Mn | J10: Zn | K10: Cu | L10: Ca | M10: Mg | T10: =SUM(granular.prog.subcost) -> $0.00
D11: Liquid | E11: =IF((SUM(mixt.n)=0),"*",SUM(mixt.n)) -> * | F11: =IF((SUM(mixt.p)=0),"*",SUM(mixt.p)) -> * | G11: =IF((SUM(mixt.k)=0),"*",SUM(mixt.k)) -> * | H11: =IF((SUM(mixt.fe)=0),"*",SUM(mixt.fe)) -> * | I11: =IF((SUM(mixt.mn)=0),"*",SUM(mixt.mn)) -> * | J11: =IF((SUM(mixt.zn)=0),"*",SUM(mixt.zn)) -> * | K11: =IF((SUM(mixt.cu)=0),"*",SUM(mixt.cu)) -> * | L11: =IF((SUM(mixt.ca)=0),"*",SUM(mixt.ca)) -> * | M11: =IF((SUM(mixt.mg)=0),"*",SUM(mixt.mg)) -> * | S11: Bag Adjusted: | T11: =SUM(granular.prog.adjustcost) -> 0.00
D12: Granular | E12: =IF((SUM(spreadt.n)=0),"*",SUM(spreadt.n)) -> * | F12: =IF((SUM(spreadt.p)=0),"*",SUM(spreadt.p)) -> * | G12: =IF((SUM(spreadt.k)=0),"*",SUM(spreadt.k)) -> * | H12: =IF((SUM(spreadt.fe)=0),"*",SUM(spreadt.fe)) -> * | I12: =IF((SUM(spreadt.mn)=0),"*",SUM(spreadt.mn)) -> * | J12: =IF((SUM(spreadt.zn)=0),"*",SUM(spreadt.zn)) -> * | K12: =IF((SUM(spreadt.cu)=0),"*",SUM(spreadt.cu)) -> * | L12: =IF((SUM(spreadt.ca)=0),"*",SUM(spreadt.ca)) -> * | M12: =IF((SUM(spreadt.mg)=0),"*",SUM(spreadt.mg)) -> *
D13: Combined | E13: =IF(SUM(E11:E12)=0,0,SUM(E11:E12)) -> 0.000 | F13: 0.000 | G13: 0.000 | H13: 0.000 | I13: 0.000 | J13: 0.000 | K13: 0.000 | L13: 0.000 | M13: 0.000
D14: Target | E14: =IF(OR(all.n=0,target.n=0),"*",IF((all.n>=target.n*0.95),5,IF((AND(all.n<target.n*0.95,all.n>=target.n*0.9)),4,IF((AND(all.n<target.n*0.9,all.n>=target.n*0.85)),3,IF((AND(all.n<target.n*0.85,all.n>=target.n*0.8)),2,IF((all.n<target.n*0.8),1)))))) -> * | F14: =IF(OR(all.p=0,target.p=0),"*",IF((all.p>=target.p*0.95),5,IF((AND(all.p<target.p*0.95,all.p>=target.p*0.9)),4,IF((AND(all.p<target.p*0.9,all.p>=target.p*0.85)),3,IF((AND(all.p<target.n*0.85,all.p>=target.p*0.8)),2,IF((all.p<target.p*0.8),1)))))) -> * | G14: =IF(OR(all.k=0,target.k=0),"*",IF((all.k>=target.k*0.95),5,IF((AND(all.k<target.k*0.95,all.k>=target.k*0.9)),4,IF((AND(all.k<target.k*0.9,all.k>=target.k*0.85)),3,IF((AND(all.k<target.k*0.85,all.k>=target.k*0.8)),2,IF((all.k<target.k*0.8),1)))))) -> * | H14: =IF(OR(all.fe=0,target.fe=0),"*",IF((all.fe>=target.fe*0.95),5,IF((AND(all.fe<target.fe*0.95,all.fe>=target.fe*0.9)),4,IF((AND(all.fe<target.fe*0.9,all.fe>=target.fe*0.85)),3,IF((AND(all.fe<target.fe*0.85,all.fe>=target.fe*0.8)),2,IF((all.fe<target.fe*0.8),1)))))) -> * | I14: =IF(OR(all.mn=0,target.mn=0),"*",IF((all.mn>=target.mn*0.95),5,IF((AND(all.mn<target.mn*0.95,all.mn>=target.mn*0.9)),4,IF((AND(all.mn<target.mn*0.9,all.mn>=target.mn*0.85)),3,IF((AND(all.mn<target.mn*0.85,all.mn>=target.mn*0.8)),2,IF((all.mn<target.mn*0.8),1)))))) -> * | J14: =IF(OR(all.zn=0,target.zn=0),"*",IF((all.zn>=target.zn*0.95),5,IF((AND(all.zn<target.zn*0.95,all.zn>=target.zn*0.9)),4,IF((AND(all.zn<target.n*0.9,all.zn>=target.zn*0.85)),3,IF((AND(all.zn<target.n*0.85,all.zn=target.zn*0.8)),2,IF((all.zn<target.zn*0.8),1)))))) -> * | K14: =IF(OR(all.cu=0,target.cu=0),"*",IF((all.cu>=target.cu*0.95),5,IF((AND(all.cu<target.cu*0.95,all.cu>=target.cu*0.9)),4,IF((AND(all.cu<target.cu*0.9,all.cu>=target.cu*0.85)),3,IF((AND(all.cu<target.cu*0.85,all.cu>=target.cu*0.8)),2,IF((all.cu<target.cu*0.8),1)))))) -> * | L14: =IF(OR(all.ca=0,target.ca=0),"*",IF((all.ca>=target.ca*0.95),5,IF((AND(all.ca<target.ca*0.95,all.ca>=target.ca*0.9)),4,IF((AND(all.ca<target.ca*0.9,all.ca>=target.ca*0.85)),3,IF((AND(all.ca<target.ca*0.85,all.ca>=target.ca*0.8)),2,IF((all.ca<target.ca*0.8),1)))))) -> * | M14: =IF(OR(all.mg=0,target.mg=0),"*",IF((all.mg>=target.mg*0.95),5,IF((AND(all.mg<target.mg*0.95,all.mg>=target.mg*0.9)),4,IF((AND(all.mg<target.n*0.9,all.mg>=target.n*0.85)),3,IF((AND(all.mg<target.n*0.85,all.mg>=target.n*0.8)),2,IF((all.mg<target.mg*0.8),1)))))) -> *
E15: =IF((target.n=0),"*",target.n) -> * | F15: =IF((target.p=0),"*",target.p) -> * | G15: =IF((target.k=0),"*",target.k) -> * | H15: =IF((target.fe=0),"*",target.fe) -> * | I15: =IF((target.mn=0),"*",target.mn) -> * | J15: =IF((target.zn=0),"*",target.zn) -> * | K15: =IF((target.cu=0),"*",target.cu) -> * | L15: =IF((target.ca=0),"*",target.ca) -> * | M15: =IF((target.mg=0),"*",target.mg) -> * | S15: Bulk Discount
E17: S | F17: B | G17: Si | H17: Mo | I17: Co | J17: HPO3 | R17: 15 gal Drum:
D18: Liquid | E18: =IF((SUM(mixt.s)=0),"*",SUM(mixt.s)) -> * | F18: =IF((SUM(mixt.b)=0),"*",SUM(mixt.b)) -> * | G18: =IF((SUM(mixt.si)=0),"*",SUM(mixt.si)) -> * | H18: =IF((SUM(mixt.mo)=0),"*",SUM(mixt.mo)) -> * | I18: =IF((SUM(mixt.co)=0),"*",SUM(mixt.co)) -> * | J18: =IF((SUM(mixt.hpo3)=0),"*",SUM(mixt.hpo3)) -> * | R18: 30 gal Drum:
D19: Granular | E19: =IF((SUM(spreadt.s)=0),"*",SUM(spreadt.s)) -> * | F19: =IF((SUM(spreadt.b)=0),"*",SUM(spreadt.b)) -> * | G19: =IF((SUM(spreadt.si)=0),"*",SUM(spreadt.si)) -> * | H19: =IF((SUM(spreadt.mo)=0),"*",SUM(spreadt.mo)) -> * | I19: =IF((SUM(spreadt.co)=0),"*",SUM(spreadt.co)) -> * | J19: =IF((SUM(spreadt.hpo3)=0),"*",SUM(spreadt.hpo3)) -> * | R19: 55 gal Drum:
D20: Combined | E20: =IF(SUM(E18:E19)=0,0,SUM(E18:E19)) -> 0.000 | F20: 0.00000 | G20: 0.00000 | H20: 0.00000 | I20: 0.00000 | J20: 0.00000 | R20: 270 gal Tote:
D21: Target | E21: =IF(OR(all.s=0,target.s=0),"*",IF((all.s>=target.s*0.95),5,IF((AND(all.s<target.s*0.95,all.s>=target.s*0.9)),4,IF((AND(all.s<target.s*0.9,all.s>=target.s*0.85)),3,IF((AND(all.s<target.s*0.85,all.s>=target.s*0.8)),2,IF((all.s<target.s*0.8),1)))))) -> * | F21: =IF(OR(all.b=0,target.b=0),"*",IF((all.b>=target.b*0.95),5,IF((AND(all.b<target.b*0.95,all.b>=target.b*0.9)),4,IF((AND(all.b<target.b*0.9,all.b>=target.b*0.85)),3,IF((AND(all.b<target.b*0.85,all.b>=target.b*0.8)),2,IF((all.b<target.b*0.8),1)))))) -> * | G21: =IF(OR(all.si=0,target.si=0),"*",IF((all.si>=target.si*0.95),5,IF((AND(all.si<target.si*0.95,all.si>=target.si*0.9)),4,IF((AND(all.si<target.si*0.9,all.si>=target.si*0.85)),3,IF((AND(all.si<target.si*0.85,all.si>=target.si*0.8)),2,IF((all.si<target.si*0.8),1)))))) -> * | H21: =IF(OR(all.mo=0,target.mo=0),"*",IF((all.mo>=target.mo*0.95),5,IF((AND(all.mo<target.mo*0.95,all.mo>=target.mo*0.9)),4,IF((AND(all.mo<target.mo*0.9,all.mo>=target.mo*0.85)),3,IF((AND(all.mo<target.mo*0.85,all.mo>=target.mo*0.8)),2,IF((all.mo<target.mo*0.8),1)))))) -> * | I21: =IF(OR(all.co=0,target.co=0),"*",IF((all.co>=target.co*0.95),5,IF((AND(all.co<target.co*0.95,all.co>=target.co*0.9)),4,IF((AND(all.co<target.co*0.9,all.co>=target.co*0.85)),3,IF((AND(all.co<target.co*0.85,all.co>=target.co*0.8)),2,IF((all.co<target.co*0.8),1)))))) -> * | J21: =IF(OR(all.hpo3=0,target.hpo3=0),"*",IF((all.hpo3>=target.hpo3*0.95),5,IF((AND(all.hpo3<target.hpo3*0.95,all.hpo3>=target.hpo3*0.9)),4,IF((AND(all.hpo3<target.hpo3*0.9,all.hpo3>=target.hpo3*0.85)),3,IF((AND(all.hpo3<target.hpo3*0.85,all.hpo3>=target.hpo3*0.8)),2,IF((all.hpo3<target.hpo3*0.8),1)))))) -> * | R21: 1k lb Tote:
E22: =IF((target.s=0),"*",target.s) -> * | F22: =IF((target.b=0),"*",target.b) -> * | G22: =IF((target.si=0),"*",target.si) -> * | H22: =IF((target.mo=0),"*",target.mo) -> * | I22: =IF((target.co=0),"*",target.co) -> * | J22: =IF((target.hpo3=0),"*",target.hpo3) -> * | R22: 2k lb Tote:
A24: =mix1.count -> 0 | D24: MIX #1 | G24: Program Total oz | H24: Gallons Needed | I24: Cost / gal | J24: Cost / Acre | K24: Cost / App | L24: Program Cost | M24: WHOLE 5 gal Cases & Case Cost | O24: 15 gal Drums & Cost Equivalent | Q24: 30 gal Drums & Cost Equivalent | S24: 55 gal Drums & Cost Equivalent | U24: 270 gal Totes & Cost Equivalent
A25: =IF(A24=0,1,A24) -> 1
A26: ='APPLICATION DATA - standard'!A24 -> 47 | D26: =IF((m1.1=""),"",m1.1) ->  | G26: =IF(($D26=""),"*",IF((m1r.1=""),"0",((m1r.1*(total.sqft/1000))*(($A$25))))) -> * | H26: =IF(($D26=""),"*",(G26/128)) -> * | I26: =IF(($D26=""),"*",(INDIRECT("'PRODUCT DATA'!$D"&$A26&"")*global.discount)) -> * | J26: =IF(OR($D26="",$I26=0),"*",(($I26/128)*m1r.1)*43.56) -> * | K26: =IF(OR($D26="",$I26=0),"*",($I26*$H26/$A$25)) -> * | L26: =IF(OR($D26="",$I26=0),"*",($I26*$H26)) -> * | M26: =IF(($D26=""),"0",(ROUNDUP(($H26/5),0))) -> 0 | N26: =IF(OR($D26="",$I26=0),"*",$I26*($M26*5)) -> * | O26: =IF(($M26*5)<15,"*",($H26/15)) -> * | P26: =IF(OR($O26="*",$I26=0),"*",($I26-$S$17)*($O26*15)) -> * | Q26: =IF(($M26*5)<30,"*",($H26/30)) -> * | R26: =IF(OR($Q26="*",$I26=0),"*",($I26-$S$18)*($Q26*30)) -> * | S26: =IF(($M26*5)<55,"*",($H26/55)) -> * | T26: =IF(OR($S26="*",$I26=0),"*",($I26-$S$19)*($S26*55)) -> * | U26: =IF(($M26*5)<270,"*",($H26/270)) -> * | V26: =IF(OR($U26="*",$I26=0),"*",($I26-$S$20)*($U26*270)) -> *
A27: ='APPLICATION DATA - standard'!A25 -> 47 | D27: =IF((m1.2=""),"",m1.2) ->  | G27: =IF(($D27=""),"*",IF((m1r.2=""),"0",((m1r.2*(total.sqft/1000))*(($A$25))))) -> * | H27: * | I27: * | J27: =IF(OR($D27="",$I27=0),"*",(($I27/128)*m1r.2)*43.56) -> * | K27: =IF(OR($D27="",$I27=0),"*",($I27*$H27/$A$25)) -> * | L27: * | M27: 0 | N27: * | O27: =IF(($M27*5)<15,"*",($H27/15)) -> * | P27: * | Q27: =IF(($M27*5)<30,"*",($H27/30)) -> * | R27: * | S27: =IF(($M27*5)<55,"*",($H27/55)) -> * | T27: * | U27: * | V27: *
A28: ='APPLICATION DATA - standard'!A26 -> 47 | D28: =IF((m1.3=""),"",m1.3) ->  | G28: =IF(($D28=""),"*",IF((m1r.3=""),"0",((m1r.3*(total.sqft/1000))*(($A$25))))) -> * | H28: * | I28: * | J28: =IF(OR($D28="",$I28=0),"*",(($I28/128)*m1r.3)*43.56) -> * | K28: * | L28: * | M28: 0 | N28: * | O28: * | P28: * | Q28: * | R28: * | S28: * | T28: * | U28: * | V28: *
A29: ='APPLICATION DATA - standard'!A27 -> 47 | D29: =IF((m1.4=""),"",m1.4) ->  | G29: =IF(($D29=""),"*",IF((m1r.4=""),"0",((m1r.4*(total.sqft/1000))*(($A$25))))) -> * | H29: =IF(($D29=""),"*",(G29/128)) -> * | I29: * | J29: =IF(OR($D29="",$I29=0),"*",(($I29/128)*m1r.4)*43.56) -> * | K29: * | L29: * | M29: 0 | N29: * | O29: * | P29: * | Q29: * | R29: * | S29: * | T29: * | U29: * | V29: *
A30: ='APPLICATION DATA - standard'!A28 -> 47 | D30: =IF((m1.5=""),"",m1.5) ->  | G30: =IF(($D30=""),"*",IF((m1r.5=""),"0",((m1r.5*(total.sqft/1000))*(($A$25))))) -> * | H30: * | I30: * | J30: =IF(OR($D30="",$I30=0),"*",(($I30/128)*m1r.5)*43.56) -> * | K30: * | L30: * | M30: 0 | N30: * | O30: * | P30: * | Q30: * | R30: * | S30: * | T30: * | U30: * | V30: *
A31: ='APPLICATION DATA - standard'!A29 -> 47 | D31: =IF((m1.6=""),"",m1.6) ->  | G31: =IF(($D31=""),"*",IF((m1r.6=""),"0",((m1r.6*(total.sqft/1000))*(($A$25))))) -> * | H31: * | I31: * | J31: =IF(OR($D31="",$I31=0),"*",(($I31/128)*m1r.6)*43.56) -> * | K31: * | L31: * | M31: 0 | N31: * | O31: * | P31: * | Q31: * | R31: * | S31: * | T31: * | U31: * | V31: *
A32: ='APPLICATION DATA - standard'!A30 -> 47 | D32: =IF((m1.7=""),"",m1.7) ->  | G32: =IF(($D32=""),"*",IF((m1r.7=""),"0",((m1r.7*(total.sqft/1000))*(($A$25))))) -> * | H32: * | I32: * | J32: =IF(OR($D32="",$I32=0),"*",(($I32/128)*m1r.7)*43.56) -> * | K32: * | L32: * | M32: 0 | N32: * | O32: * | P32: * | Q32: * | R32: * | S32: * | T32: * | U32: * | V32: *
A33: ='APPLICATION DATA - standard'!A31 -> 47 | D33: =IF((m1.8=""),"",m1.8) ->  | G33: =IF(($D33=""),"*",IF((m1r.8=""),"0",((m1r.8*(total.sqft/1000))*(($A$25))))) -> * | H33: * | I33: * | J33: =IF(OR($D33="",$I33=0),"*",(($I33/128)*m1r.8)*43.56) -> * | K33: * | L33: * | M33: 0 | N33: * | O33: * | P33: * | Q33: * | R33: * | S33: * | T33: * | U33: * | V33: *
A34: ='APPLICATION DATA - standard'!A32 -> 47 | D34: =IF((m1.9=""),"",m1.9) ->  | G34: =IF(($D34=""),"*",IF((m1r.9=""),"0",((m1r.9*(total.sqft/1000))*(($A$25))))) -> * | H34: * | I34: * | J34: =IF(OR($D34="",$I34=0),"*",(($I34/128)*m1r.9)*43.56) -> * | K34: * | L34: * | M34: 0 | N34: * | O34: * | P34: * | Q34: * | R34: * | S34: * | T34: * | U34: * | V34: *
A35: ='APPLICATION DATA - standard'!A33 -> 47 | D35: =IF((m1.10=""),"",m1.10) ->  | G35: =IF(($D35=""),"*",IF((m1r.10=""),"0",((m1r.10*(total.sqft/1000))*(($A$25))))) -> * | H35: * | I35: * | J35: =IF(OR($D35="",$I35=0),"*",(($I35/128)*m1r.10)*43.56) -> * | K35: * | L35: * | M35: 0 | N35: * | O35: * | P35: * | Q35: * | R35: * | S35: * | T35: * | U35: * | V35: *
D36: Mix-1 Sub-Total: | G36: =IF(SUM(G26:G35)=0,"*",SUM(G26:G35)) -> * | H36: * | I36: * | J36: * | K36: * | L36: * | M36: * | N36: * | O36: =IF(SUM(O26:O35)=0,"*",SUM(O26:O35)) -> * | P36: =IF(SUM(P26:P35)=0,"*",SUM(P26:P35)) -> * | Q36: * | R36: =IF(SUM(R26:R35)=0,"*",SUM(R26:R35)) -> * | S36: * | T36: =IF(SUM(T26:T35)=0,"*",SUM(T26:T35)) -> * | U36: * | V36: =IF(SUM(V26:V35)=0,"*",SUM(V26:V35)) -> *
A38: =mix2.count -> 0 | D38: MIX #2 | G38: Program Total oz | H38: Gallons Needed | I38: Cost / gal | J38: Cost / Acre | K38: Cost / App | L38: Program Cost | M38: WHOLE 5 gal Cases & Case Cost | O38: 15 gal Drums & Cost Equivalent | Q38: 30 gal Drums & Cost Equivalent | S38: 55 gal Drums & Cost Equivalent | U38: 270 gal Totes & Cost Equivalent
A39: =IF(A38=0,1,A38) -> 1
A40: ='APPLICATION DATA - standard'!A41 -> 47 | D40: =IF((m2.1=""),"",m2.1) ->  | G40: =IF(($D40=""),"*",IF((m2r.1=""),"0",((m2r.1*(total.sqft/1000))*(($A$39))))) -> * | H40: =IF(($D40=""),"*",(G40/128)) -> * | I40: =IF(($D40=""),"*",(INDIRECT("'PRODUCT DATA'!$D"&$A40&"")*global.discount)) -> * | J40: =IF(OR($D40="",$I40=0),"*",(($I40/128)*m2r.1)*43.56) -> * | K40: =IF(OR($D40="",$I40=0),"*",($I40*$H40/$A$39)) -> * | L40: =IF(OR($D40="",$I40=0),"*",($I40*$H40)) -> * | M40: =IF(($D40=""),"0",(ROUNDUP(($H40/5),0))) -> 0 | N40: =IF(OR($D40="",$I40=0),"*",$I40*($M40*5)) -> * | O40: =IF(($M40*5)<15,"*",($H40/15)) -> * | P40: =IF(OR($O40="*",$I40=0),"*",($I40-$S$17)*($O40*15)) -> * | Q40: =IF(($M40*5)<30,"*",($H40/30)) -> * | R40: =IF(OR($Q40="*",$I40=0),"*",($I40-$S$18)*($Q40*30)) -> * | S40: =IF(($M40*5)<55,"*",($H40/55)) -> * | T40: =IF(OR($S40="*",$I40=0),"*",($I40-$S$19)*($S40*55)) -> * | U40: =IF(($M40*5)<270,"*",($H40/270)) -> * | V40: =IF(OR($U40="*",$I40=0),"*",($I40-$S$20)*($U40*270)) -> *
A41: ='APPLICATION DATA - standard'!A42 -> 47 | D41: =IF((m2.2=""),"",m2.2) ->  | G41: =IF(($D41=""),"*",IF((m2r.2=""),"0",((m2r.2*(total.sqft/1000))*(($A$39))))) -> * | H41: * | I41: * | J41: =IF(OR($D41="",$I41=0),"*",(($I41/128)*m2r.2)*43.56) -> * | K41: =IF(OR($D41="",$I41=0),"*",($I41*$H41/$A$39)) -> * | L41: * | M41: 0 | N41: * | O41: * | P41: * | Q41: * | R41: * | S41: * | T41: * | U41: * | V41: *
A42: ='APPLICATION DATA - standard'!A43 -> 47 | D42: =IF((m2.3=""),"",m2.3) ->  | G42: =IF(($D42=""),"*",IF((m2r.3=""),"0",((m2r.3*(total.sqft/1000))*(($A$39))))) -> * | H42: * | I42: * | J42: =IF(OR($D42="",$I42=0),"*",(($I42/128)*m2r.3)*43.56) -> * | K42: * | L42: * | M42: 0 | N42: * | O42: * | P42: * | Q42: * | R42: * | S42: * | T42: * | U42: * | V42: *
A43: ='APPLICATION DATA - standard'!A44 -> 47 | D43: =IF((m2.4=""),"",m2.4) ->  | G43: =IF(($D43=""),"*",IF((m2r.4=""),"0",((m2r.4*(total.sqft/1000))*(($A$39))))) -> * | H43: * | I43: * | J43: =IF(OR($D43="",$I43=0),"*",(($I43/128)*m2r.4)*43.56) -> * | K43: * | L43: * | M43: 0 | N43: * | O43: * | P43: * | Q43: * | R43: * | S43: * | T43: * | U43: * | V43: *
A44: ='APPLICATION DATA - standard'!A45 -> 47 | D44: =IF((m2.5=""),"",m2.5) ->  | G44: =IF(($D44=""),"*",IF((m2r.5=""),"0",((m2r.5*(total.sqft/1000))*(($A$39))))) -> * | H44: * | I44: * | J44: =IF(OR($D44="",$I44=0),"*",(($I44/128)*m2r.5)*43.56) -> * | K44: * | L44: * | M44: 0 | N44: * | O44: * | P44: * | Q44: * | R44: * | S44: * | T44: * | U44: * | V44: *
A45: ='APPLICATION DATA - standard'!A46 -> 47 | D45: =IF((m2.6=""),"",m2.6) ->  | G45: =IF(($D45=""),"*",IF((m2r.6=""),"0",((m2r.6*(total.sqft/1000))*(($A$39))))) -> * | H45: * | I45: * | J45: =IF(OR($D45="",$I45=0),"*",(($I45/128)*m2r.6)*43.56) -> * | K45: * | L45: * | M45: 0 | N45: * | O45: * | P45: * | Q45: * | R45: * | S45: * | T45: * | U45: * | V45: *
D46: Sub-Total: | G46: =IF(SUM(G40:G45)=0,"*",SUM(G40:G45)) -> * | H46: * | I46: * | J46: * | K46: * | L46: * | M46: * | N46: * | O46: =IF(SUM(O40:O45)=0,"*",SUM(O40:O45)) -> * | P46: * | Q46: * | R46: * | S46: * | T46: * | U46: * | V46: *
A48: =mix3.count -> 0 | D48: MIX #3 | G48: Program Total oz | H48: Gallons Needed | I48: Cost / gal | J48: Cost / Acre | K48: Cost / App | L48: Program Cost | M48: WHOLE 5 gal Cases & Case Cost | O48: 15 gal Drums & Cost Equivalent | Q48: 30 gal Drums & Cost Equivalent | S48: 55 gal Drums & Cost Equivalent | U48: 270 gal Totes & Cost Equivalent
A49: =IF(A48=0,1,A48) -> 1
A50: ='APPLICATION DATA - standard'!A54 -> 47 | D50: =IF((m3.1=""),"",m3.1) ->  | G50: =IF(($D50=""),"*",IF((m3r.1=""),"0",((m3r.1*(total.sqft/1000))*(($A$49))))) -> * | H50: =IF(($D50=""),"*",(G50/128)) -> * | I50: =IF(($D50=""),"*",(INDIRECT("'PRODUCT DATA'!$D"&$A50&"")*global.discount)) -> * | J50: =IF(OR($D50="",$I50=0),"*",(($I50/128)*m3r.1)*43.56) -> * | K50: =IF(OR($D50="",$I50=0),"*",($I50*$H50/$A$49)) -> * | L50: =IF(OR($D50="",$I50=0),"*",($I50*$H50)) -> * | M50: =IF(($D50=""),"0",(ROUNDUP(($H50/5),0))) -> 0 | N50: =IF(OR($D50="",$I50=0),"*",$I50*($M50*5)) -> * | O50: =IF(($M50*5)<15,"*",($H50/15)) -> * | P50: =IF(OR($O50="*",$I50=0),"*",($I50-$S$17)*($O50*15)) -> * | Q50: =IF(($M50*5)<30,"*",($H50/30)) -> * | R50: =IF(OR($Q50="*",$I50=0),"*",($I50-$S$18)*($Q50*30)) -> * | S50: =IF(($M50*5)<55,"*",($H50/55)) -> * | T50: =IF(OR($S50="*",$I50=0),"*",($I50-$S$19)*($S50*55)) -> * | U50: =IF(($M50*5)<270,"*",($H50/270)) -> * | V50: =IF(OR($U50="*",$I50=0),"*",($I50-$S$20)*($U50*270)) -> *
A51: ='APPLICATION DATA - standard'!A55 -> 47 | D51: =IF((m3.2=""),"",m3.2) ->  | G51: =IF(($D51=""),"*",IF((m3r.2=""),"0",((m3r.2*(total.sqft/1000))*(($A$49))))) -> * | H51: * | I51: * | J51: =IF(OR($D51="",$I51=0),"*",(($I51/128)*m3r.2)*43.56) -> * | K51: =IF(OR($D51="",$I51=0),"*",($I51*$H51/$A$49)) -> * | L51: * | M51: 0 | N51: * | O51: * | P51: * | Q51: * | R51: * | S51: * | T51: * | U51: * | V51: *
A52: ='APPLICATION DATA - standard'!A56 -> 47 | D52: =IF((m3.3=""),"",m3.3) ->  | G52: =IF(($D52=""),"*",IF((m3r.3=""),"0",((m3r.3*(total.sqft/1000))*(($A$49))))) -> * | H52: * | I52: * | J52: =IF(OR($D52="",$I52=0),"*",(($I52/128)*m3r.3)*43.56) -> * | K52: * | L52: * | M52: 0 | N52: * | O52: * | P52: * | Q52: * | R52: * | S52: * | T52: * | U52: * | V52: *
A53: ='APPLICATION DATA - standard'!A57 -> 47 | D53: =IF((m3.4=""),"",m3.4) ->  | G53: =IF(($D53=""),"*",IF((m3r.4=""),"0",((m3r.4*(total.sqft/1000))*(($A$49))))) -> * | H53: * | I53: * | J53: =IF(OR($D53="",$I53=0),"*",(($I53/128)*m3r.4)*43.56) -> * | K53: * | L53: * | M53: 0 | N53: * | O53: * | P53: * | Q53: * | R53: * | S53: * | T53: * | U53: * | V53: *
A54: ='APPLICATION DATA - standard'!A58 -> 47 | D54: =IF((m3.5=""),"",m3.5) ->  | G54: =IF(($D54=""),"*",IF((m3r.5=""),"0",((m3r.5*(total.sqft/1000))*(($A$49))))) -> * | H54: * | I54: * | J54: =IF(OR($D54="",$I54=0),"*",(($I54/128)*m3r.5)*43.56) -> * | K54: * | L54: * | M54: 0 | N54: * | O54: * | P54: * | Q54: * | R54: * | S54: * | T54: * | U54: * | V54: *
A55: ='APPLICATION DATA - standard'!A59 -> 47 | D55: =IF((m3.6=""),"",m3.6) ->  | G55: =IF(($D55=""),"*",IF((m3r.6=""),"0",((m3r.6*(total.sqft/1000))*(($A$49))))) -> * | H55: * | I55: * | J55: =IF(OR($D55="",$I55=0),"*",(($I55/128)*m3r.6)*43.56) -> * | K55: * | L55: * | M55: 0 | N55: * | O55: * | P55: * | Q55: * | R55: * | S55: * | T55: * | U55: * | V55: *
D56: Sub-Total: | G56: =IF(SUM(G50:G55)=0,"*",SUM(G50:G55)) -> * | H56: * | I56: * | J56: * | K56: * | L56: * | M56: * | N56: * | O56: =IF(SUM(O50:O55)=0,"*",SUM(O50:O55)) -> * | P56: * | Q56: * | R56: * | S56: * | T56: * | U56: * | V56: *
A58: =mix4.count -> 0 | D58: MIX #4 | G58: Program Total oz | H58: Gallons Needed | I58: Cost / gal | J58: Cost / Acre | K58: Cost / App | L58: Program Cost | M58: WHOLE 5 gal Cases & Case Cost | O58: 15 gal Drums & Cost Equivalent | Q58: 30 gal Drums & Cost Equivalent | S58: 55 gal Drums & Cost Equivalent | U58: 270 gal Totes & Cost Equivalent
A59: =IF(A58=0,1,A58) -> 1
A60: ='APPLICATION DATA - standard'!A66 -> 47 | D60: =IF((m4.1=""),"",m4.1) ->  | G60: =IF(($D60=""),"*",IF((m4r.1=""),"0",((m4r.1*(total.sqft/1000))*(($A$59))))) -> * | H60: =IF(($D60=""),"*",(G60/128)) -> * | I60: =IF(($D60=""),"*",(INDIRECT("'PRODUCT DATA'!$D"&$A60&"")*global.discount)) -> * | J60: =IF(OR($D60="",$I60=0),"*",(($I60/128)*m4r.1)*43.56) -> * | K60: =IF(OR($D60="",$I60=0),"*",($I60*$H60/$A$59)) -> * | L60: =IF(OR($D60="",$I60=0),"*",($I60*$H60)) -> * | M60: =IF(($D60=""),"0",(ROUNDUP(($H60/5),0))) -> 0 | N60: =IF(OR($D60="",$I60=0),"*",$I60*($M60*5)) -> * | O60: =IF(($M60*5)<15,"*",($H60/15)) -> * | P60: =IF(OR($O60="*",$I60=0),"*",($I60-$S$17)*($O60*15)) -> * | Q60: =IF(($M60*5)<30,"*",($H60/30)) -> * | R60: =IF(OR($Q60="*",$I60=0),"*",($I60-$S$18)*($Q60*30)) -> * | S60: =IF(($M60*5)<55,"*",($H60/55)) -> * | T60: =IF(OR($S60="*",$I60=0),"*",($I60-$S$19)*($S60*55)) -> * | U60: =IF(($M60*5)<270,"*",($H60/270)) -> * | V60: =IF(OR($U60="*",$I60=0),"*",($I60-$S$20)*($U60*270)) -> *
A61: ='APPLICATION DATA - standard'!A67 -> 47 | D61: =IF((m4.2=""),"",m4.2) ->  | G61: =IF(($D61=""),"*",IF((m4r.2=""),"0",((m4r.2*(total.sqft/1000))*(($A$59))))) -> * | H61: * | I61: * | J61: =IF(OR($D61="",$I61=0),"*",(($I61/128)*m4r.2)*43.56) -> * | K61: =IF(OR($D61="",$I61=0),"*",($I61*$H61/$A$59)) -> * | L61: * | M61: 0 | N61: * | O61: * | P61: * | Q61: * | R61: * | S61: * | T61: * | U61: * | V61: *
A62: ='APPLICATION DATA - standard'!A68 -> 47 | D62: =IF((m4.3=""),"",m4.3) ->  | G62: =IF(($D62=""),"*",IF((m4r.3=""),"0",((m4r.3*(total.sqft/1000))*(($A$59))))) -> * | H62: * | I62: * | J62: =IF(OR($D62="",$I62=0),"*",(($I62/128)*m4r.3)*43.56) -> * | K62: * | L62: * | M62: 0 | N62: * | O62: * | P62: * | Q62: * | R62: * | S62: * | T62: * | U62: * | V62: *
A63: ='APPLICATION DATA - standard'!A69 -> 47 | D63: =IF((m4.4=""),"",m4.4) ->  | G63: =IF(($D63=""),"*",IF((m4r.4=""),"0",((m4r.4*(total.sqft/1000))*(($A$59))))) -> * | H63: * | I63: * | J63: =IF(OR($D63="",$I63=0),"*",(($I63/128)*m4r.4)*43.56) -> * | K63: * | L63: * | M63: 0 | N63: * | O63: * | P63: * | Q63: * | R63: * | S63: * | T63: * | U63: * | V63: *
A64: ='APPLICATION DATA - standard'!A70 -> 47 | D64: =IF((m4.5=""),"",m4.5) ->  | G64: =IF(($D64=""),"*",IF((m4r.5=""),"0",((m4r.5*(total.sqft/1000))*(($A$59))))) -> * | H64: * | I64: * | J64: =IF(OR($D64="",$I64=0),"*",(($I64/128)*m4r.5)*43.56) -> * | K64: * | L64: * | M64: 0 | N64: * | O64: * | P64: * | Q64: * | R64: * | S64: * | T64: * | U64: * | V64: *
A65: ='APPLICATION DATA - standard'!A71 -> 47 | D65: =IF((m4.6=""),"",m4.6) ->  | G65: =IF(($D65=""),"*",IF((m4r.6=""),"0",((m4r.6*(total.sqft/1000))*(($A$59))))) -> * | H65: * | I65: * | J65: =IF(OR($D65="",$I65=0),"*",(($I65/128)*m4r.6)*43.56) -> * | K65: * | L65: * | M65: 0 | N65: * | O65: * | P65: * | Q65: * | R65: * | S65: * | T65: * | U65: * | V65: *
D66: Sub-Total: | G66: =IF(SUM(G60:G65)=0,"*",SUM(G60:G65)) -> * | H66: * | I66: * | J66: * | K66: * | L66: * | M66: * | N66: * | O66: =IF(SUM(O60:O65)=0,"*",SUM(O60:O65)) -> * | P66: * | Q66: * | R66: * | S66: * | T66: * | U66: * | V66: *
G68: Program Total lbs | I68: Cost / lb | J68: Cost / Acre | K68: Cost / App | L68: Program Cost | M68: WHOLE Bags & Bag Cost | O68: 1,000 lb Tote Bags & Cost Equivalent | Q68: 2,000 lb Tote Bags & Cost Equivalent
A70: =spreader1.count -> 0 | B70: =IF(A70=0,1,A70) -> 1 | D70: SOLUBLE #1
A71: ='APPLICATION DATA - standard'!A79 -> 47 | D71: =IF((s1.1=""),"",s1.1) ->  | G71: =IF(($D71=""),"*",IF((s1r.1=""),"0",((s1r.1*(total.sqft/1000))*(($B$70))))) -> * | I71: =IF(($D71=""),"*",((INDIRECT("'PRODUCT DATA'!$D"&$A71&"")/INDIRECT("'PRODUCT DATA'!$F"&$A71&""))*global.discount)) -> * | J71: =IF(OR($D71="",$I71=0),"*",(($I71*s1r.1)*43.56)) -> * | K71: =IF(OR($D71="",$I71=0),"*",($I71*$G71/$B$70)) -> * | L71: =IF(OR($D71="",$I71=0),"*",($I71*$G71)) -> * | M71: =IF(($D71=""),"0",(ROUNDUP(($G71/INDIRECT("'PRODUCT DATA'!$F"&$A71&"")),0))) -> 0 | N71: =IF(OR($D71="",$I71=0),"*",$I71*($M71*INDIRECT("'PRODUCT DATA'!$F"&$A71&""))) -> * | O71: =IF(($M71*50)<1000,"*",($G71/1000)) -> * | P71: =IF(OR($Q71="*",$I71=0),"*",($I71-$S$21)*($O71*1000)) -> * | Q71: =IF(($M71*50)<2000,"*",($G71/2000)) -> * | R71: =IF(OR($Q71="*",$I71=0),"*",($I71-$S$22)*($Q71*2000)) -> *
A72: =spreader2.count -> 0 | B72: =IF(A72=0,1,A72) -> 1 | D72: GRANULAR #1
A73: ='APPLICATION DATA - standard'!A83 -> 72 | D73: =IF((s2.1=""),"",s2.1) ->  | G73: =IF(($D73=""),"*",IF((s2r.1=""),"0",((s2r.1*(total.sqft/1000))*(($B$72))))) -> * | I73: =IF(($D73=""),"*",((INDIRECT("'PRODUCT DATA'!$D"&$A73&"")/INDIRECT("'PRODUCT DATA'!$F"&$A73&""))*global.discount)) -> * | J73: =IF(OR($D73="",$I73=0),"*",(($I73*s2r.1)*43.56)) -> * | K73: =IF(OR($D73="",$I73=0),"*",($I73*$G73/$B$72)) -> * | L73: =IF(OR($D73="",$I73=0),"*",($I73*$G73)) -> * | M73: =IF(($D73=""),"0",(ROUNDUP(($G73/INDIRECT("'PRODUCT DATA'!$F"&$A73&"")),0))) -> 0 | N73: =IF(OR($D73="",$I73=0),"*",$I73*($M73*INDIRECT("'PRODUCT DATA'!$F"&$A73&""))) -> * | O73: =IF(($M73*50)<1000,"*",($G73/1000)) -> * | P73: =IF(OR($Q73="*",$I73=0),"*",($I73-$S$21)*($Q73*2000)) -> * | Q73: =IF(($M73*50)<2000,"*",($G73/2000)) -> * | R73: =IF(OR($Q73="*",$I73=0),"*",($I73-$S$22)*($Q73*2000)) -> *
A74: ='APPLICATION DATA - standard'!A84 -> 72 | D74: =IF((s2.2=""),"",s2.2) ->  | G74: =IF(($D74=""),"*",IF((s2r.2=""),"0",((s2r.2*(total.sqft/1000))*(($B$72))))) -> * | I74: =IF(($D74=""),"*",((INDIRECT("'PRODUCT DATA'!$D"&$A74&"")/INDIRECT("'PRODUCT DATA'!$F"&$A74&""))*global.discount)) -> * | J74: =IF(OR($D74="",$I74=0),"*",(($I74*s2r.2)*43.56)) -> * | K74: =IF(OR($D74="",$I74=0),"*",($I74*$G74/$B$72)) -> * | L74: =IF(OR($D74="",$I74=0),"*",($I74*$G74)) -> * | M74: =IF(($D74=""),"0",(ROUNDUP(($G74/INDIRECT("'PRODUCT DATA'!$F"&$A74&"")),0))) -> 0 | N74: =IF(OR($D74="",$I74=0),"*",$I74*($M74*INDIRECT("'PRODUCT DATA'!$F"&$A74&""))) -> * | O74: =IF(($M74*50)<1000,"*",($G74/1000)) -> * | P74: =IF(OR($Q74="*",$I74=0),"*",($I74-$S$21)*($Q74*2000)) -> * | Q74: =IF(($M74*50)<2000,"*",($G74/2000)) -> * | R74: =IF(OR($Q74="*",$I74=0),"*",($I74-$S$22)*($Q74*2000)) -> *
A75: =spreader3.count -> 0 | B75: =IF(A75=0,1,A75) -> 1 | D75: GRANULAR #2
A76: ='APPLICATION DATA - standard'!A89 -> 72 | D76: =IF((s3.1=""),"",s3.1) ->  | G76: =IF(($D76=""),"*",IF((s3r.1=""),"0",((s3r.1*(total.sqft/1000))*(($B$75))))) -> * | I76: =IF(($D76=""),"*",((INDIRECT("'PRODUCT DATA'!$D"&$A76&"")/INDIRECT("'PRODUCT DATA'!$F"&$A76&""))*global.discount)) -> * | J76: =IF(OR($D76="",$I76=0),"*",(($I76*s3r.1)*43.56)) -> * | K76: =IF(OR($D76="",$I76=0),"*",($I76*$G76/$B$75)) -> * | L76: =IF(OR($D76="",$I76=0),"*",($I76*$G76)) -> * | M76: =IF(($D76=""),"0",(ROUNDUP(($G76/INDIRECT("'PRODUCT DATA'!$F"&$A76&"")),0))) -> 0 | N76: =IF(OR($D76="",$I76=0),"*",$I76*($M76*INDIRECT("'PRODUCT DATA'!$F"&$A76&""))) -> * | O76: =IF(($M76*50)<1000,"*",($G76/1000)) -> * | P76: =IF(OR($Q76="*",$I76=0),"*",($I76-$S$21)*($Q76*2000)) -> * | Q76: =IF(($M76*50)<2000,"*",($G76/2000)) -> * | R76: =IF(OR($Q76="*",$I76=0),"*",($I76-$S$22)*($Q76*2000)) -> *
A77: ='APPLICATION DATA - standard'!A90 -> 72 | D77: =IF((s3.2=""),"",s3.2) ->  | G77: =IF(($D77=""),"*",IF((s3r.2=""),"0",((s3r.2*(total.sqft/1000))*(($B$75))))) -> * | I77: =IF(($D77=""),"*",((INDIRECT("'PRODUCT DATA'!$D"&$A77&"")/INDIRECT("'PRODUCT DATA'!$F"&$A77&""))*global.discount)) -> * | J77: =IF(OR($D77="",$I77=0),"*",(($I77*s3r.2)*43.56)) -> * | K77: =IF(OR($D77="",$I77=0),"*",($I77*$G77/$B$75)) -> * | L77: =IF(OR($D77="",$I77=0),"*",($I77*$G77)) -> * | M77: =IF(($D77=""),"0",(ROUNDUP(($G77/INDIRECT("'PRODUCT DATA'!$F"&$A77&"")),0))) -> 0 | N77: =IF(OR($D77="",$I77=0),"*",$I77*($M77*INDIRECT("'PRODUCT DATA'!$F"&$A77&""))) -> * | O77: =IF(($M77*50)<1000,"*",($G77/1000)) -> * | P77: =IF(OR($Q77="*",$I77=0),"*",($I77-$S$21)*($Q77*2000)) -> * | Q77: =IF(($M77*50)<2000,"*",($G77/2000)) -> * | R77: =IF(OR($Q77="*",$I77=0),"*",($I77-$S$22)*($Q77*2000)) -> *
A78: =spreader4.count -> 0 | B78: =IF(A78=0,1,A78) -> 1 | D78: GRANULAR #3
A79: ='APPLICATION DATA - standard'!A95 -> 72 | D79: =IF((s4.1=""),"",s4.1) ->  | G79: =IF(($D79=""),"*",IF((s4r.1=""),"0",((s4r.1*(total.sqft/1000))*(($B$78))))) -> * | I79: =IF(($D79=""),"*",((INDIRECT("'PRODUCT DATA'!$D"&$A79&"")/INDIRECT("'PRODUCT DATA'!$F"&$A79&""))*global.discount)) -> * | J79: =IF(OR($D79="",$I79=0),"*",(($I79*s4r.1)*43.56)) -> * | K79: =IF(OR($D79="",$I79=0),"*",($I79*$G79/$B$78)) -> * | L79: =IF(OR($D79="",$I79=0),"*",($I79*$G79)) -> * | M79: =IF(($D79=""),"0",(ROUNDUP(($G79/INDIRECT("'PRODUCT DATA'!$F"&$A79&"")),0))) -> 0 | N79: =IF(OR($D79="",$I79=0),"*",$I79*($M79*INDIRECT("'PRODUCT DATA'!$F"&$A79&""))) -> * | O79: =IF(($M79*50)<1000,"*",($G79/1000)) -> * | P79: =IF(OR($Q79="*",$I79=0),"*",($I79-$S$21)*($Q79*2000)) -> * | Q79: =IF(($M79*50)<2000,"*",($G79/2000)) -> * | R79: =IF(OR($Q79="*",$I79=0),"*",($I79-$S$22)*($Q79*2000)) -> *
A80: ='APPLICATION DATA - standard'!A96 -> 72 | D80: =IF((s4.2=""),"",s4.2) ->  | G80: =IF(($D80=""),"*",IF((s4r.2=""),"0",((s4r.2*(total.sqft/1000))*(($B$78))))) -> * | I80: =IF(($D80=""),"*",((INDIRECT("'PRODUCT DATA'!$D"&$A80&"")/INDIRECT("'PRODUCT DATA'!$F"&$A80&""))*global.discount)) -> * | J80: =IF(OR($D80="",$I80=0),"*",(($I80*s4r.2)*43.56)) -> * | K80: =IF(OR($D80="",$I80=0),"*",($I80*$G80/$B$78)) -> * | L80: =IF(OR($D80="",$I80=0),"*",($I80*$G80)) -> * | M80: =IF(($D80=""),"0",(ROUNDUP(($G80/INDIRECT("'PRODUCT DATA'!$F"&$A80&"")),0))) -> 0 | N80: =IF(OR($D80="",$I80=0),"*",$I80*($M80*INDIRECT("'PRODUCT DATA'!$F"&$A80&""))) -> * | O80: =IF(($M80*50)<1000,"*",($G80/1000)) -> * | P80: =IF(OR($Q80="*",$I80=0),"*",($I80-$S$21)*($Q80*2000)) -> * | Q80: =IF(($M80*50)<2000,"*",($G80/2000)) -> * | R80: =IF(OR($Q80="*",$I80=0),"*",($I80-$S$22)*($Q80*2000)) -> *

Sheet APPLICATION DATA - metric (hidden)
C1: =VERSION -> version #BRANDT-D2401- | E1: metric measurments
C2: PREPARED FOR | J2: START DATE | N2: END DATE
C5: PROGRAMME TITLE | J5: NOTES / COMMENTS
D9: KNOWN APPLICATION AREA | F9: conversion of area
F10: m2 | G10: Hectares
C11: Only select ONE area measurment >> | D11: m² | F11: *** | G11: =(E11/10000) -> 0.000 | J11: OTHER PROGRAMME DETAILS
D12: Hectares | F12: =E12*10000 -> 0 | G12: *** | J12: Total Applications of Mix #1? | Q12: Total Applications of Soluble #1?
F13: HECTARES covered in 1 tank load? | H13: (optional) | J13: Total Applications of Mix #2? | Q13: Total Applications of Granular #1?
F14: HECTARES covered in 1 spreader load? | H14: (optional) | J14: Total Applications of Mix #3? | Q14: Total Applications of Granular #2?
I15: Total Applications of Mix #4? | Q15: Total Applications of Granular #3?
C17: ENTIRE PROGRAMME Nutrient TARGET Concentrations / Kg per Hectare (optional)
C18: N | D18: P2O5 | E18: K2O | F18: Ca | G18: Mg | H18: S | I18: Fe | J18: Mn | K18: Zn | L18: Cu | M18: B | N18: Si | O18: Mo | P18: Co | Q18: HPO3
C22: MIX #1 | F22: L / Ha | G22: Kg of Nutrient per Ha
F23: RATE | G23: N | H23: P2O5 | I23: K2O | J23: Ca | K23: Mg | L23: S | M23: Fe | N23: Mn | O23: Zn | P23: Cu | Q23: B | R23: Si | S23: Mo | T23: Co | U23: HPO3
A24: =IF(($C24=id.255),3,IF(($C24=id.256),4,IF(($C24=id.215),5,IF(($C24=id.200),7,IF(($C24=id.285),10,IF(($C24=id.210),12,IF(($C24=id.106),13,IF(($C24=id.310),14,IF(($C24=id.141),15,IF(($C24=id.360),16,IF(($C24=id.245),17,IF(($C24=id.225),18,IF(($C24=id.192),19,IF(($C24=id.196),20,IF(($C24=id.330),21,IF(($C24=id.675),22,IF(($C24=id.730),23,IF(($C24=id.855),24,IF(($C24=id.180),28,IF(($C24=id.185),29,IF(($C24=id.195),30,IF(($C24=id.240),31,IF(($C24=id.300),32,IF(($C24=id.177),33,IF(($C24=id.860),35,IF(($C24=id.840),36,IF(($C24=id.865),37,IF(($C24=id.800),38,IF(($C24=id.600),41,IF(($C24=id.x1),43,IF(($C24=id.x2),44,"42"))))))))))))))))))))))))))))))) ->  | G24: =IF((INDIRECT("'PRODUCT DATA'!$L"&$A24&""))=0,"*",((INDIRECT("'PRODUCT DATA'!$H"&$A24&""))*(INDIRECT("'PRODUCT DATA'!$L"&$A24&"")))*($F24)) ->  | H24: =IF((INDIRECT("'PRODUCT DATA'!$M"&$A24&""))=0,"*",((INDIRECT("'PRODUCT DATA'!$H"&$A24&""))*(INDIRECT("'PRODUCT DATA'!$M"&$A24&"")))*($F24)) ->  | I24: =IF((INDIRECT("'PRODUCT DATA'!$O"&$A24&""))=0,"*",((INDIRECT("'PRODUCT DATA'!$H"&$A24&""))*(INDIRECT("'PRODUCT DATA'!$O"&$A24&"")))*($F24)) ->  | J24: =IF((INDIRECT("'PRODUCT DATA'!$Q"&$A24&""))=0,"*",((INDIRECT("'PRODUCT DATA'!$H"&$A24&""))*(INDIRECT("'PRODUCT DATA'!$Q"&$A24&"")))*($F24)) ->  | K24: =IF((INDIRECT("'PRODUCT DATA'!$R"&$A24&""))=0,"*",((INDIRECT("'PRODUCT DATA'!$H"&$A24&""))*(INDIRECT("'PRODUCT DATA'!$R"&$A24&"")))*($F24)) ->  | L24: =IF((INDIRECT("'PRODUCT DATA'!$S"&$A24&""))=0,"*",((INDIRECT("'PRODUCT DATA'!$H"&$A24&""))*(INDIRECT("'PRODUCT DATA'!$S"&$A24&"")))*($F24)) ->  | M24: =IF((INDIRECT("'PRODUCT DATA'!$T"&$A24&""))=0,"*",((INDIRECT("'PRODUCT DATA'!$H"&$A24&""))*(INDIRECT("'PRODUCT DATA'!$T"&$A24&"")))*($F24)) ->  | N24: =IF((INDIRECT("'PRODUCT DATA'!$U"&$A24&""))=0,"*",((INDIRECT("'PRODUCT DATA'!$H"&$A24&""))*(INDIRECT("'PRODUCT DATA'!$U"&$A24&"")))*($F24)) ->  | O24: =IF((INDIRECT("'PRODUCT DATA'!$V"&$A24&""))=0,"*",((INDIRECT("'PRODUCT DATA'!$H"&$A24&""))*(INDIRECT("'PRODUCT DATA'!$V"&$A24&"")))*($F24)) ->  | P24: =IF((INDIRECT("'PRODUCT DATA'!$W"&$A24&""))=0,"*",((INDIRECT("'PRODUCT DATA'!$H"&$A24&""))*(INDIRECT("'PRODUCT DATA'!$W"&$A24&"")))*($F24)) ->  | Q24: =IF((INDIRECT("'PRODUCT DATA'!$X"&$A24&""))=0,"*",((INDIRECT("'PRODUCT DATA'!$H"&$A24&""))*(INDIRECT("'PRODUCT DATA'!$X"&$A24&"")))*($F24)) ->  | R24: =IF((INDIRECT("'PRODUCT DATA'!$Y"&$A24&""))=0,"*",((INDIRECT("'PRODUCT DATA'!$H"&$A24&""))*(INDIRECT("'PRODUCT DATA'!$Y"&$A24&"")))*($F24)) ->  | S24: =IF((INDIRECT("'PRODUCT DATA'!$Z"&$A24&""))=0,"*",((INDIRECT("'PRODUCT DATA'!$H"&$A24&""))*(INDIRECT("'PRODUCT DATA'!$Z"&$A24&"")))*($F24)) ->  | T24: =IF((INDIRECT("'PRODUCT DATA'!$AA"&$A24&""))=0,"*",((INDIRECT("'PRODUCT DATA'!$H"&$A24&""))*(INDIRECT("'PRODUCT DATA'!$AA"&$A24&"")))*($F24)) ->  | U24: =IF((INDIRECT("'PRODUCT DATA'!$AB"&$A24&""))=0,"*",((INDIRECT("'PRODUCT DATA'!$H"&$A24&""))*(INDIRECT("'PRODUCT DATA'!$AB"&$A24&"")))*($F24)) -> 
C30: Sub-Total (Each Application): | G30: =IF(SUM(G24:G29)=0,"0",SUM(G24:G29)) -> 
C31: Programme Sub-Total: | G31: =G30*$M$12 -> 
C35: MIX #2 | F35: L / Ha | G35: Kg of Nutrient per Ha
F36: RATE | G36: N | H36: P2O5 | I36: K2O | J36: Ca | K36: Mg | L36: S | M36: Fe | N36: Mn | O36: Zn | P36: Cu | Q36: B | R36: Si | S36: Mo | T36: Co | U36: HPO3
A37: =IF(($C37=id.255),3,IF(($C37=id.256),4,IF(($C37=id.215),5,IF(($C37=id.200),7,IF(($C37=id.285),10,IF(($C37=id.210),12,IF(($C37=id.106),13,IF(($C37=id.310),14,IF(($C37=id.141),15,IF(($C37=id.360),16,IF(($C37=id.245),17,IF(($C37=id.225),18,IF(($C37=id.192),19,IF(($C37=id.196),20,IF(($C37=id.330),21,IF(($C37=id.675),22,IF(($C37=id.730),23,IF(($C37=id.855),24,IF(($C37=id.180),28,IF(($C37=id.185),29,IF(($C37=id.195),30,IF(($C37=id.240),31,IF(($C37=id.300),32,IF(($C37=id.177),33,IF(($C37=id.860),35,IF(($C37=id.840),36,IF(($C37=id.865),37,IF(($C37=id.800),38,IF(($C37=id.600),41,IF(($C37=id.x1),43,IF(($C37=id.x2),44,"42"))))))))))))))))))))))))))))))) ->  | G37: =IF((INDIRECT("'PRODUCT DATA'!$L"&$A37&""))=0,"*",((INDIRECT("'PRODUCT DATA'!$H"&$A37&""))*(INDIRECT("'PRODUCT DATA'!$L"&$A37&"")))*($F37)) ->  | H37: =IF((INDIRECT("'PRODUCT DATA'!$M"&$A37&""))=0,"*",((INDIRECT("'PRODUCT DATA'!$H"&$A37&""))*(INDIRECT("'PRODUCT DATA'!$M"&$A37&"")))*($F37)) ->  | I37: =IF((INDIRECT("'PRODUCT DATA'!$O"&$A37&""))=0,"*",((INDIRECT("'PRODUCT DATA'!$H"&$A37&""))*(INDIRECT("'PRODUCT DATA'!$O"&$A37&"")))*($F37)) ->  | J37: =IF((INDIRECT("'PRODUCT DATA'!$Q"&$A37&""))=0,"*",((INDIRECT("'PRODUCT DATA'!$H"&$A37&""))*(INDIRECT("'PRODUCT DATA'!$Q"&$A37&"")))*($F37)) ->  | K37: =IF((INDIRECT("'PRODUCT DATA'!$R"&$A37&""))=0,"*",((INDIRECT("'PRODUCT DATA'!$H"&$A37&""))*(INDIRECT("'PRODUCT DATA'!$R"&$A37&"")))*($F37)) ->  | L37: =IF((INDIRECT("'PRODUCT DATA'!$S"&$A37&""))=0,"*",((INDIRECT("'PRODUCT DATA'!$H"&$A37&""))*(INDIRECT("'PRODUCT DATA'!$S"&$A37&"")))*($F37)) ->  | M37: =IF((INDIRECT("'PRODUCT DATA'!$T"&$A37&""))=0,"*",((INDIRECT("'PRODUCT DATA'!$H"&$A37&""))*(INDIRECT("'PRODUCT DATA'!$T"&$A37&"")))*($F37)) ->  | N37: =IF((INDIRECT("'PRODUCT DATA'!$U"&$A37&""))=0,"*",((INDIRECT("'PRODUCT DATA'!$H"&$A37&""))*(INDIRECT("'PRODUCT DATA'!$U"&$A37&"")))*($F37)) ->  | O37: =IF((INDIRECT("'PRODUCT DATA'!$V"&$A37&""))=0,"*",((INDIRECT("'PRODUCT DATA'!$H"&$A37&""))*(INDIRECT("'PRODUCT DATA'!$V"&$A37&"")))*($F37)) ->  | P37: =IF((INDIRECT("'PRODUCT DATA'!$W"&$A37&""))=0,"*",((INDIRECT("'PRODUCT DATA'!$H"&$A37&""))*(INDIRECT("'PRODUCT DATA'!$W"&$A37&"")))*($F37)) ->  | Q37: =IF((INDIRECT("'PRODUCT DATA'!$X"&$A37&""))=0,"*",((INDIRECT("'PRODUCT DATA'!$H"&$A37&""))*(INDIRECT("'PRODUCT DATA'!$X"&$A37&"")))*($F37)) ->  | R37: =IF((INDIRECT("'PRODUCT DATA'!$Y"&$A37&""))=0,"*",((INDIRECT("'PRODUCT DATA'!$H"&$A37&""))*(INDIRECT("'PRODUCT DATA'!$Y"&$A37&"")))*($F37)) ->  | S37: =IF((INDIRECT("'PRODUCT DATA'!$Z"&$A37&""))=0,"*",((INDIRECT("'PRODUCT DATA'!$H"&$A37&""))*(INDIRECT("'PRODUCT DATA'!$Z"&$A37&"")))*($F37)) ->  | T37: =IF((INDIRECT("'PRODUCT DATA'!$AA"&$A37&""))=0,"*",((INDIRECT("'PRODUCT DATA'!$H"&$A37&""))*(INDIRECT("'PRODUCT DATA'!$AA"&$A37&"")))*($F37)) ->  | U37: =IF((INDIRECT("'PRODUCT DATA'!$AB"&$A37&""))=0,"*",((INDIRECT("'PRODUCT DATA'!$H"&$A37&""))*(INDIRECT("'PRODUCT DATA'!$AB"&$A37&"")))*($F37)) -> 
C43: Sub-Total (Each Application): | G43: =IF(SUM(G37:G42)=0,"0",SUM(G37:G42)) -> 
C44: Programme Sub-Total: | G44: =G43*$M$13 -> 
C48: MIX #3 | F48: L / Ha | G48: Kg of Nutrient per Ha
F49: RATE | G49: N | H49: P2O5 | I49: K2O | J49: Ca | K49: Mg | L49: S | M49: Fe | N49: Mn | O49: Zn | P49: Cu | Q49: B | R49: Si | S49: Mo | T49: Co | U49: HPO3
A50: =IF(($C50=id.255),3,IF(($C50=id.256),4,IF(($C50=id.215),5,IF(($C50=id.200),7,IF(($C50=id.285),10,IF(($C50=id.210),12,IF(($C50=id.106),13,IF(($C50=id.310),14,IF(($C50=id.141),15,IF(($C50=id.360),16,IF(($C50=id.245),17,IF(($C50=id.225),18,IF(($C50=id.192),19,IF(($C50=id.196),20,IF(($C50=id.330),21,IF(($C50=id.675),22,IF(($C50=id.730),23,IF(($C50=id.855),24,IF(($C50=id.180),28,IF(($C50=id.185),29,IF(($C50=id.195),30,IF(($C50=id.240),31,IF(($C50=id.300),32,IF(($C50=id.177),33,IF(($C50=id.860),35,IF(($C50=id.840),36,IF(($C50=id.865),37,IF(($C50=id.800),38,IF(($C50=id.600),41,IF(($C50=id.x1),43,IF(($C50=id.x2),44,"42"))))))))))))))))))))))))))))))) ->  | G50: =IF((INDIRECT("'PRODUCT DATA'!$L"&$A50&""))=0,"*",((INDIRECT("'PRODUCT DATA'!$H"&$A50&""))*(INDIRECT("'PRODUCT DATA'!$L"&$A50&"")))*($F50)) ->  | H50: =IF((INDIRECT("'PRODUCT DATA'!$M"&$A50&""))=0,"*",((INDIRECT("'PRODUCT DATA'!$H"&$A50&""))*(INDIRECT("'PRODUCT DATA'!$M"&$A50&"")))*($F50)) ->  | I50: =IF((INDIRECT("'PRODUCT DATA'!$O"&$A50&""))=0,"*",((INDIRECT("'PRODUCT DATA'!$H"&$A50&""))*(INDIRECT("'PRODUCT DATA'!$O"&$A50&"")))*($F50)) ->  | J50: =IF((INDIRECT("'PRODUCT DATA'!$Q"&$A50&""))=0,"*",((INDIRECT("'PRODUCT DATA'!$H"&$A50&""))*(INDIRECT("'PRODUCT DATA'!$Q"&$A50&"")))*($F50)) ->  | K50: =IF((INDIRECT("'PRODUCT DATA'!$R"&$A50&""))=0,"*",((INDIRECT("'PRODUCT DATA'!$H"&$A50&""))*(INDIRECT("'PRODUCT DATA'!$R"&$A50&"")))*($F50)) ->  | L50: =IF((INDIRECT("'PRODUCT DATA'!$S"&$A50&""))=0,"*",((INDIRECT("'PRODUCT DATA'!$H"&$A50&""))*(INDIRECT("'PRODUCT DATA'!$S"&$A50&"")))*($F50)) ->  | M50: =IF((INDIRECT("'PRODUCT DATA'!$T"&$A50&""))=0,"*",((INDIRECT("'PRODUCT DATA'!$H"&$A50&""))*(INDIRECT("'PRODUCT DATA'!$T"&$A50&"")))*($F50)) ->  | N50: =IF((INDIRECT("'PRODUCT DATA'!$U"&$A50&""))=0,"*",((INDIRECT("'PRODUCT DATA'!$H"&$A50&""))*(INDIRECT("'PRODUCT DATA'!$U"&$A50&"")))*($F50)) ->  | O50: =IF((INDIRECT("'PRODUCT DATA'!$V"&$A50&""))=0,"*",((INDIRECT("'PRODUCT DATA'!$H"&$A50&""))*(INDIRECT("'PRODUCT DATA'!$V"&$A50&"")))*($F50)) ->  | P50: =IF((INDIRECT("'PRODUCT DATA'!$W"&$A50&""))=0,"*",((INDIRECT("'PRODUCT DATA'!$H"&$A50&""))*(INDIRECT("'PRODUCT DATA'!$W"&$A50&"")))*($F50)) ->  | Q50: =IF((INDIRECT("'PRODUCT DATA'!$X"&$A50&""))=0,"*",((INDIRECT("'PRODUCT DATA'!$H"&$A50&""))*(INDIRECT("'PRODUCT DATA'!$X"&$A50&"")))*($F50)) ->  | R50: =IF((INDIRECT("'PRODUCT DATA'!$Y"&$A50&""))=0,"*",((INDIRECT("'PRODUCT DATA'!$H"&$A50&""))*(INDIRECT("'PRODUCT DATA'!$Y"&$A50&"")))*($F50)) ->  | S50: =IF((INDIRECT("'PRODUCT DATA'!$Z"&$A50&""))=0,"*",((INDIRECT("'PRODUCT DATA'!$H"&$A50&""))*(INDIRECT("'PRODUCT DATA'!$Z"&$A50&"")))*($F50)) ->  | T50: =IF((INDIRECT("'PRODUCT DATA'!$AA"&$A50&""))=0,"*",((INDIRECT("'PRODUCT DATA'!$H"&$A50&""))*(INDIRECT("'PRODUCT DATA'!$AA"&$A50&"")))*($F50)) ->  | U50: =IF((INDIRECT("'PRODUCT DATA'!$AB"&$A50&""))=0,"*",((INDIRECT("'PRODUCT DATA'!$H"&$A50&""))*(INDIRECT("'PRODUCT DATA'!$AB"&$A50&"")))*($F50)) -> 
C56: Sub-Total (Each Application): | G56: =IF(SUM(G50:G55)=0,"0",SUM(G50:G55)) -> 
C57: Programme Sub-Total: | G57: =G56*$M$14 -> 
C60: MIX #4 | F60: L / Ha | G60: Kg of Nutrient per Ha
F61: RATE | G61: N | H61: P2O5 | I61: K2O | J61: Ca | K61: Mg | L61: S | M61: Fe | N61: Mn | O61: Zn | P61: Cu | Q61: B | R61: Si | S61: Mo | T61: Co | U61: HPO3
A62: =IF(($C62=id.255),3,IF(($C62=id.256),4,IF(($C62=id.215),5,IF(($C62=id.200),7,IF(($C62=id.285),10,IF(($C62=id.210),12,IF(($C62=id.106),13,IF(($C62=id.310),14,IF(($C62=id.141),15,IF(($C62=id.360),16,IF(($C62=id.245),17,IF(($C62=id.225),18,IF(($C62=id.192),19,IF(($C62=id.196),20,IF(($C62=id.330),21,IF(($C62=id.675),22,IF(($C62=id.730),23,IF(($C62=id.855),24,IF(($C62=id.180),28,IF(($C62=id.185),29,IF(($C62=id.195),30,IF(($C62=id.240),31,IF(($C62=id.300),32,IF(($C62=id.177),33,IF(($C62=id.860),35,IF(($C62=id.840),36,IF(($C62=id.865),37,IF(($C62=id.800),38,IF(($C62=id.600),41,IF(($C62=id.x1),43,IF(($C62=id.x2),44,"42"))))))))))))))))))))))))))))))) ->  | G62: =IF((INDIRECT("'PRODUCT DATA'!$L"&$A62&""))=0,"*",((INDIRECT("'PRODUCT DATA'!$H"&$A62&""))*(INDIRECT("'PRODUCT DATA'!$L"&$A62&"")))*($F62)) ->  | H62: =IF((INDIRECT("'PRODUCT DATA'!$M"&$A62&""))=0,"*",((INDIRECT("'PRODUCT DATA'!$H"&$A62&""))*(INDIRECT("'PRODUCT DATA'!$M"&$A62&"")))*($F62)) ->  | I62: =IF((INDIRECT("'PRODUCT DATA'!$O"&$A62&""))=0,"*",((INDIRECT("'PRODUCT DATA'!$H"&$A62&""))*(INDIRECT("'PRODUCT DATA'!$O"&$A62&"")))*($F62)) ->  | J62: =IF((INDIRECT("'PRODUCT DATA'!$Q"&$A62&""))=0,"*",((INDIRECT("'PRODUCT DATA'!$H"&$A62&""))*(INDIRECT("'PRODUCT DATA'!$Q"&$A62&"")))*($F62)) ->  | K62: =IF((INDIRECT("'PRODUCT DATA'!$R"&$A62&""))=0,"*",((INDIRECT("'PRODUCT DATA'!$H"&$A62&""))*(INDIRECT("'PRODUCT DATA'!$R"&$A62&"")))*($F62)) ->  | L62: =IF((INDIRECT("'PRODUCT DATA'!$S"&$A62&""))=0,"*",((INDIRECT("'PRODUCT DATA'!$H"&$A62&""))*(INDIRECT("'PRODUCT DATA'!$S"&$A62&"")))*($F62)) ->  | M62: =IF((INDIRECT("'PRODUCT DATA'!$T"&$A62&""))=0,"*",((INDIRECT("'PRODUCT DATA'!$H"&$A62&""))*(INDIRECT("'PRODUCT DATA'!$T"&$A62&"")))*($F62)) ->  | N62: =IF((INDIRECT("'PRODUCT DATA'!$U"&$A62&""))=0,"*",((INDIRECT("'PRODUCT DATA'!$H"&$A62&""))*(INDIRECT("'PRODUCT DATA'!$U"&$A62&"")))*($F62)) ->  | O62: =IF((INDIRECT("'PRODUCT DATA'!$V"&$A62&""))=0,"*",((INDIRECT("'PRODUCT DATA'!$H"&$A62&""))*(INDIRECT("'PRODUCT DATA'!$V"&$A62&"")))*($F62)) ->  | P62: =IF((INDIRECT("'PRODUCT DATA'!$W"&$A62&""))=0,"*",((INDIRECT("'PRODUCT DATA'!$H"&$A62&""))*(INDIRECT("'PRODUCT DATA'!$W"&$A62&"")))*($F62)) ->  | Q62: =IF((INDIRECT("'PRODUCT DATA'!$X"&$A62&""))=0,"*",((INDIRECT("'PRODUCT DATA'!$H"&$A62&""))*(INDIRECT("'PRODUCT DATA'!$X"&$A62&"")))*($F62)) ->  | R62: =IF((INDIRECT("'PRODUCT DATA'!$Y"&$A62&""))=0,"*",((INDIRECT("'PRODUCT DATA'!$H"&$A62&""))*(INDIRECT("'PRODUCT DATA'!$Y"&$A62&"")))*($F62)) ->  | S62: =IF((INDIRECT("'PRODUCT DATA'!$Z"&$A62&""))=0,"*",((INDIRECT("'PRODUCT DATA'!$H"&$A62&""))*(INDIRECT("'PRODUCT DATA'!$Z"&$A62&"")))*($F62)) ->  | T62: =IF((INDIRECT("'PRODUCT DATA'!$AA"&$A62&""))=0,"*",((INDIRECT("'PRODUCT DATA'!$H"&$A62&""))*(INDIRECT("'PRODUCT DATA'!$AA"&$A62&"")))*($F62)) ->  | U62: =IF((INDIRECT("'PRODUCT DATA'!$AB"&$A62&""))=0,"*",((INDIRECT("'PRODUCT DATA'!$H"&$A62&""))*(INDIRECT("'PRODUCT DATA'!$AB"&$A62&"")))*($F62)) -> 
C68: Sub-Total (Each Application): | G68: =IF(SUM(G62:G67)=0,"0",SUM(G62:G67)) -> 
C69: Programme Sub-Total: | G69: =G68*$M$15 -> 
F73: g / m2 | G73: Kg of Nutrient per Ha
C74: SOLUBLE #1 | F74: RATE | G74: N | H74: P2O5 | I74: K2O | J74: Ca | K74: Mg | L74: S | M74: Fe | N74: Mn | O74: Zn | P74: Cu | Q74: B | R74: Si | S74: Mo | T74: Co | U74: HPO3
A75: =IF(($C75=id.x3),45,"42") -> 42 | G75: =IF((INDIRECT("'PRODUCT DATA'!$L"&$A75&""))=0,"0",((INDIRECT("'PRODUCT DATA'!$L"&$A75&""))*($F75*10))) -> 0 | H75: =IF((INDIRECT("'PRODUCT DATA'!$M"&$A75&""))=0,"0",((INDIRECT("'PRODUCT DATA'!$M"&$A75&""))*($F75*10))) -> 0 | I75: =IF((INDIRECT("'PRODUCT DATA'!$O"&$A75&""))=0,"0",((INDIRECT("'PRODUCT DATA'!$O"&$A75&""))*($F75*10))) -> 0 | J75: =IF((INDIRECT("'PRODUCT DATA'!$Q"&$A75&""))=0,"0",((INDIRECT("'PRODUCT DATA'!$Q"&$A75&""))*($F75*10))) -> 0 | K75: =IF((INDIRECT("'PRODUCT DATA'!$R"&$A75&""))=0,"0",((INDIRECT("'PRODUCT DATA'!$R"&$A75&""))*($F75*10))) -> 0 | L75: =IF((INDIRECT("'PRODUCT DATA'!$S"&$A75&""))=0,"0",((INDIRECT("'PRODUCT DATA'!$S"&$A75&""))*($F75*10))) -> 0 | M75: =IF((INDIRECT("'PRODUCT DATA'!$T"&$A75&""))=0,"0",((INDIRECT("'PRODUCT DATA'!$T"&$A75&""))*($F75*10))) -> 0 | N75: =IF((INDIRECT("'PRODUCT DATA'!$U"&$A75&""))=0,"0",((INDIRECT("'PRODUCT DATA'!$U"&$A75&""))*($F75*10))) -> 0 | O75: =IF((INDIRECT("'PRODUCT DATA'!$V"&$A75&""))=0,"0",((INDIRECT("'PRODUCT DATA'!$V"&$A75&""))*($F75*10))) -> 0 | P75: =IF((INDIRECT("'PRODUCT DATA'!$W"&$A75&""))=0,"0",((INDIRECT("'PRODUCT DATA'!$W"&$A75&""))*($F75*10))) -> 0 | Q75: =IF((INDIRECT("'PRODUCT DATA'!$X"&$A75&""))=0,"0",((INDIRECT("'PRODUCT DATA'!$X"&$A75&""))*($F75*10))) -> 0 | R75: =IF((INDIRECT("'PRODUCT DATA'!$Y"&$A75&""))=0,"0",((INDIRECT("'PRODUCT DATA'!$Y"&$A75&""))*($F75*10))) -> 0 | S75: =IF((INDIRECT("'PRODUCT DATA'!$Z"&$A75&""))=0,"0",((INDIRECT("'PRODUCT DATA'!$Z"&$A75&""))*($F75*10))) -> 0 | T75: =IF((INDIRECT("'PRODUCT DATA'!$AA"&$A75&""))=0,"0",((INDIRECT("'PRODUCT DATA'!$AA"&$A75&""))*($F75*10))) -> 0 | U75: =IF((INDIRECT("'PRODUCT DATA'!$AB"&$A75&""))=0,"0",((INDIRECT("'PRODUCT DATA'!$AB"&$A75&""))*($F75*10))) -> 0
C76: Programme Sub-Total: | G76: =G75*$R$12 -> 0.000 | H76: 0.000 | I76: 0.000 | J76: 0.000 | K76: 0.000 | L76: 0.000 | M76: 0.000 | N76: 0.000 | O76: 0.000 | P76: 0.000 | Q76: 0.000 | R76: 0.000 | S76: 0.000 | T76: 0.000 | U76: 0.000
C78: GRANULAR #1 | F78: RATE
A79: =IF(($C79=id.1220),47,IF(($C79=id.1270),48,IF(($C79=id.1200),49,IF(($C79=id.1340),50,IF(($C79=id.1240),51,IF(($C79=id.1440),52,IF(($C79=id.1400),53,IF(($C79=id.1410),54,IF(($C79=id.1430),55,IF(($C79=id.1420),56,IF(($C79=id.1320),62,IF(($C79=id.1360),63,IF(($C79=id.1370),64,IF(($C79=id.2020),65,IF(($C79=id.2000),66,IF(($C79=id.z1),68,IF(($C79=id.z2),69,"67"))))))))))))))))) ->  | G79: =IF((INDIRECT("'PRODUCT DATA'!$L"&$A79&""))=0,"0",((INDIRECT("'PRODUCT DATA'!$L"&$A79&""))*($F79*10))) ->  | H79: =IF((INDIRECT("'PRODUCT DATA'!$M"&$A79&""))=0,"0",((INDIRECT("'PRODUCT DATA'!$M"&$A79&""))*($F79*10))) ->  | I79: =IF((INDIRECT("'PRODUCT DATA'!$O"&$A79&""))=0,"0",((INDIRECT("'PRODUCT DATA'!$O"&$A79&""))*($F79*10))) ->  | J79: =IF((INDIRECT("'PRODUCT DATA'!$Q"&$A79&""))=0,"0",((INDIRECT("'PRODUCT DATA'!$Q"&$A79&""))*($F79*10))) ->  | K79: =IF((INDIRECT("'PRODUCT DATA'!$R"&$A79&""))=0,"0",((INDIRECT("'PRODUCT DATA'!$R"&$A79&""))*($F79*10))) ->  | L79: =IF((INDIRECT("'PRODUCT DATA'!$S"&$A79&""))=0,"0",((INDIRECT("'PRODUCT DATA'!$S"&$A79&""))*($F79*10))) ->  | M79: =IF((INDIRECT("'PRODUCT DATA'!$T"&$A79&""))=0,"0",((INDIRECT("'PRODUCT DATA'!$T"&$A79&""))*($F79*10))) ->  | N79: =IF((INDIRECT("'PRODUCT DATA'!$U"&$A79&""))=0,"0",((INDIRECT("'PRODUCT DATA'!$U"&$A79&""))*($F79*10))) ->  | O79: =IF((INDIRECT("'PRODUCT DATA'!$V"&$A79&""))=0,"0",((INDIRECT("'PRODUCT DATA'!$V"&$A79&""))*($F79*10))) ->  | P79: =IF((INDIRECT("'PRODUCT DATA'!$W"&$A79&""))=0,"0",((INDIRECT("'PRODUCT DATA'!$W"&$A79&""))*($F79*10))) ->  | Q79: =IF((INDIRECT("'PRODUCT DATA'!$X"&$A79&""))=0,"0",((INDIRECT("'PRODUCT DATA'!$X"&$A79&""))*($F79*10))) ->  | R79: =IF((INDIRECT("'PRODUCT DATA'!$Y"&$A79&""))=0,"0",((INDIRECT("'PRODUCT DATA'!$Y"&$A79&""))*($F79*10))) ->  | S79: =IF((INDIRECT("'PRODUCT DATA'!$Z"&$A79&""))=0,"0",((INDIRECT("'PRODUCT DATA'!$Z"&$A79&""))*($F79*10))) ->  | T79: =IF((INDIRECT("'PRODUCT DATA'!$AA"&$A79&""))=0,"0",((INDIRECT("'PRODUCT DATA'!$AA"&$A79&""))*($F79*10))) ->  | U79: =IF((INDIRECT("'PRODUCT DATA'!$AB"&$A79&""))=0,"0",((INDIRECT("'PRODUCT DATA'!$AB"&$A79&""))*($F79*10))) -> 
C80: Programme Sub-Total: | G80: =G79*$R$13 -> 
C82: GRANULAR #2 | F82: RATE
A83: =IF(($C83=id.1220),47,IF(($C83=id.1270),48,IF(($C83=id.1200),49,IF(($C83=id.1340),50,IF(($C83=id.1240),51,IF(($C83=id.1440),52,IF(($C83=id.1400),53,IF(($C83=id.1410),54,IF(($C83=id.1430),55,IF(($C83=id.1420),56,IF(($C83=id.1320),62,IF(($C83=id.1360),63,IF(($C83=id.1370),64,IF(($C83=id.2020),65,IF(($C83=id.2000),66,IF(($C83=id.z1),68,IF(($C83=id.z2),69,"67"))))))))))))))))) ->  | G83: =IF((INDIRECT("'PRODUCT DATA'!$L"&$A83&""))=0,"0",((INDIRECT("'PRODUCT DATA'!$L"&$A83&""))*($F83*10))) ->  | H83: =IF((INDIRECT("'PRODUCT DATA'!$M"&$A83&""))=0,"0",((INDIRECT("'PRODUCT DATA'!$M"&$A83&""))*($F83*10))) ->  | I83: =IF((INDIRECT("'PRODUCT DATA'!$O"&$A83&""))=0,"0",((INDIRECT("'PRODUCT DATA'!$O"&$A83&""))*($F83*10))) ->  | J83: =IF((INDIRECT("'PRODUCT DATA'!$Q"&$A83&""))=0,"0",((INDIRECT("'PRODUCT DATA'!$Q"&$A83&""))*($F83*10))) ->  | K83: =IF((INDIRECT("'PRODUCT DATA'!$R"&$A83&""))=0,"0",((INDIRECT("'PRODUCT DATA'!$R"&$A83&""))*($F83*10))) ->  | L83: =IF((INDIRECT("'PRODUCT DATA'!$S"&$A83&""))=0,"0",((INDIRECT("'PRODUCT DATA'!$S"&$A83&""))*($F83*10))) ->  | M83: =IF((INDIRECT("'PRODUCT DATA'!$T"&$A83&""))=0,"0",((INDIRECT("'PRODUCT DATA'!$T"&$A83&""))*($F83*10))) ->  | N83: =IF((INDIRECT("'PRODUCT DATA'!$U"&$A83&""))=0,"0",((INDIRECT("'PRODUCT DATA'!$U"&$A83&""))*($F83*10))) ->  | O83: =IF((INDIRECT("'PRODUCT DATA'!$V"&$A83&""))=0,"0",((INDIRECT("'PRODUCT DATA'!$V"&$A83&""))*($F83*10))) ->  | P83: =IF((INDIRECT("'PRODUCT DATA'!$W"&$A83&""))=0,"0",((INDIRECT("'PRODUCT DATA'!$W"&$A83&""))*($F83*10))) ->  | Q83: =IF((INDIRECT("'PRODUCT DATA'!$X"&$A83&""))=0,"0",((INDIRECT("'PRODUCT DATA'!$X"&$A83&""))*($F83*10))) ->  | R83: =IF((INDIRECT("'PRODUCT DATA'!$Y"&$A83&""))=0,"0",((INDIRECT("'PRODUCT DATA'!$Y"&$A83&""))*($F83*10))) ->  | S83: =IF((INDIRECT("'PRODUCT DATA'!$Z"&$A83&""))=0,"0",((INDIRECT("'PRODUCT DATA'!$Z"&$A83&""))*($F83*10))) ->  | T83: =IF((INDIRECT("'PRODUCT DATA'!$AA"&$A83&""))=0,"0",((INDIRECT("'PRODUCT DATA'!$AA"&$A83&""))*($F83*10))) ->  | U83: =IF((INDIRECT("'PRODUCT DATA'!$AB"&$A83&""))=0,"0",((INDIRECT("'PRODUCT DATA'!$AB"&$A83&""))*($F83*10))) -> 
C84: Programme Sub-Total: | G84: =G83*$R$14 -> 
C86: GRANULAR #3 | F86: RATE
A87: =IF(($C87=id.1220),47,IF(($C87=id.1270),48,IF(($C87=id.1200),49,IF(($C87=id.1340),50,IF(($C87=id.1240),51,IF(($C87=id.1440),52,IF(($C87=id.1400),53,IF(($C87=id.1410),54,IF(($C87=id.1430),55,IF(($C87=id.1420),56,IF(($C87=id.1320),62,IF(($C87=id.1360),63,IF(($C87=id.1370),64,IF(($C87=id.2020),65,IF(($C87=id.2000),66,IF(($C87=id.z1),68,IF(($C87=id.z2),69,"67"))))))))))))))))) ->  | G87: =IF((INDIRECT("'PRODUCT DATA'!$L"&$A87&""))=0,"0",((INDIRECT("'PRODUCT DATA'!$L"&$A87&""))*($F87*10))) ->  | H87: =IF((INDIRECT("'PRODUCT DATA'!$M"&$A87&""))=0,"0",((INDIRECT("'PRODUCT DATA'!$M"&$A87&""))*($F87*10))) ->  | I87: =IF((INDIRECT("'PRODUCT DATA'!$O"&$A87&""))=0,"0",((INDIRECT("'PRODUCT DATA'!$O"&$A87&""))*($F87*10))) ->  | J87: =IF((INDIRECT("'PRODUCT DATA'!$Q"&$A87&""))=0,"0",((INDIRECT("'PRODUCT DATA'!$Q"&$A87&""))*($F87*10))) ->  | K87: =IF((INDIRECT("'PRODUCT DATA'!$R"&$A87&""))=0,"0",((INDIRECT("'PRODUCT DATA'!$R"&$A87&""))*($F87*10))) ->  | L87: =IF((INDIRECT("'PRODUCT DATA'!$S"&$A87&""))=0,"0",((INDIRECT("'PRODUCT DATA'!$S"&$A87&""))*($F87*10))) ->  | M87: =IF((INDIRECT("'PRODUCT DATA'!$T"&$A87&""))=0,"0",((INDIRECT("'PRODUCT DATA'!$T"&$A87&""))*($F87*10))) ->  | N87: =IF((INDIRECT("'PRODUCT DATA'!$U"&$A87&""))=0,"0",((INDIRECT("'PRODUCT DATA'!$U"&$A87&""))*($F87*10))) ->  | O87: =IF((INDIRECT("'PRODUCT DATA'!$V"&$A87&""))=0,"0",((INDIRECT("'PRODUCT DATA'!$V"&$A87&""))*($F87*10))) ->  | P87: =IF((INDIRECT("'PRODUCT DATA'!$W"&$A87&""))=0,"0",((INDIRECT("'PRODUCT DATA'!$W"&$A87&""))*($F87*10))) ->  | Q87: =IF((INDIRECT("'PRODUCT DATA'!$X"&$A87&""))=0,"0",((INDIRECT("'PRODUCT DATA'!$X"&$A87&""))*($F87*10))) ->  | R87: =IF((INDIRECT("'PRODUCT DATA'!$Y"&$A87&""))=0,"0",((INDIRECT("'PRODUCT DATA'!$Y"&$A87&""))*($F87*10))) ->  | S87: =IF((INDIRECT("'PRODUCT DATA'!$Z"&$A87&""))=0,"0",((INDIRECT("'PRODUCT DATA'!$Z"&$A87&""))*($F87*10))) ->  | T87: =IF((INDIRECT("'PRODUCT DATA'!$AA"&$A87&""))=0,"0",((INDIRECT("'PRODUCT DATA'!$AA"&$A87&""))*($F87*10))) ->  | U87: =IF((INDIRECT("'PRODUCT DATA'!$AB"&$A87&""))=0,"0",((INDIRECT("'PRODUCT DATA'!$AB"&$A87&""))*($F87*10))) -> 
C88: Programme Sub-Total: | G88: =G87*$R$15 -> 
V91: =id.255 -> 
V92: =id.215 -> 
V93: =id.200 -> 
V94: =id.285 -> 
V95: =id.315 -> 
V96: =id.106 -> 
V97: =id.310 -> 
V98: =id.141 -> 
V99: =id.245 -> 
V100: =id.225 -> 
V101: =id.192 -> 
V102: =id.196 -> 
V103: =id.330 -> 
V104: =id.675 -> 
V105: =id.180 -> 
V106: =id.185 -> 
V107: =id.195 -> 
V108: =id.240 -> 
V109: =id.300 -> 
V110: =id.178 -> 
V111: =id.177 -> 
V112: =id.860 -> 
V113: =id.840 -> 
V114: =id.800 -> 
V115: =id.650 -> 
V116: =id.600 -> 
V117: =id.x1 -> Custom Liquid 1
V118: =id.x2 -> Custom Liquid 2
V119: =id.x3 -> Custom SOLUBLE 1
V120: =id.1220 -> 
V121: =id.1270 -> 
V122: =id.1200 -> 
V123: =id.1340 -> 
V124: =id.1240 -> 
V125: =id.1360 -> 
V126: =id.1370 -> 
V127: =id.2020 -> 
V128: =id.2000 -> 
V129: =id.z1 -> Custom Granular 1
V130: =id.z2 -> Custom Granular 2

Sheet PROGRAMME ANALYSIS - metric (hidden)
C1: =VERSION -> version #BRANDT-D2401- | E1: for use with "APPLICATION DATA - metric"
C2: PREPARED FOR: | E2: =IF(customer2="","",customer2) ->  | L2: Total Coverage Area per Application: | M2: =((sq.m.a)+(sq.m.b)) -> 0 | N2: m2 | R2: Total Programme Cost
C3: PROGRAMME: | E3: =IF(ProgeTitle="","",ProgeTitle) ->  | M3: =((hectare.a)+(hectare.b)) -> 0 | N3: HECTARES | S3: =S7+S10 -> 0.00
C4: DURATION: | E4: =(end.date2-start.date2) -> 0 | F4: DAYS | H4: Total Spray Apps / Programme: | K4: =mmix1.count+mmix2.count+mmix3.count+mmix4.count -> 0 | M4: Spray Frequency: | N4: Abt. Every | O4: =IF((K4=0),0,($E$4/K4)) -> 0 | P4: DAYS
H5: Total Spreader Apps / Programme: | K5: =mspreader1.count+mspreader2.count+mspreader3.count -> 0 | M5: Spreader Frequency: | N5: Abt. Every | O5: =IF((K5=0),0,($E$4/K5)) -> 0 | P5: DAYS | R5: Unit Adjusted: | S5: =S8+S11 -> 0.00
F6: Total Tank Loads / Application: | G6: =IF(mtank.area="","",($M$3/mtank.area)) ->  | H6: Total Tank Loads / Programme: | K6: =IF(G6="","",(K4*G6)) ->  | R6: Total Liquid Cost
F7: Total Spreader Loads / Application: | G7: =IF(mspreader.area="","",($M$3/mspreader.area)) ->  | H7: Total Spreader Loads / Programme: | K7: =IF(G7="","",(K5*G7)) ->  | S7: =(SUM(liquid.proge.subcost)) -> 0.00
N8: NOTES: | R8: Case Adjusted: | S8: =(SUM(liquid.proge.adjustcost)) -> 0.00
D9: Entire Program Nutrient Concentrations :: kg / Hectare | N9: =IF(proge.descrip="","",proge.descrip) ->  | R9: Total Granular Cost
D10: N | E10: P2O5 | F10: K2O | G10: Fe | H10: Mn | I10: Zn | J10: Cu | K10: Ca | L10: Mg | S10: =SUM(granular.proge.subcost) -> 0.00
C11: Liquid | D11: =IF((SUM(mmixt.n)=0),"*",SUM(mmixt.n)) ->  | E11: =IF((SUM(mmixt.p)=0),"*",SUM(mmixt.p)) ->  | F11: =IF((SUM(mmixt.k)=0),"*",SUM(mmixt.k)) ->  | G11: =IF((SUM(mmixt.fe)=0),"*",SUM(mmixt.fe)) ->  | H11: =IF((SUM(mmixt.mn)=0),"*",SUM(mmixt.mn)) ->  | I11: =IF((SUM(mmixt.zn)=0),"*",SUM(mmixt.zn)) ->  | J11: =IF((SUM(mmixt.cu)=0),"*",SUM(mmixt.cu)) ->  | K11: =IF((SUM(mmixt.ca)=0),"*",SUM(mmixt.ca)) ->  | L11: =IF((SUM(mmixt.mg)=0),"*",SUM(mmixt.mg)) ->  | R11: Bag Adjusted: | S11: =SUM(granular.proge.adjustcost) -> 0.00
C12: Granular | D12: =IF((SUM(mspreadt.n)=0),"*",SUM(mspreadt.n)) ->  | E12: =IF((SUM(mspreadt.p)=0),"*",SUM(mspreadt.p)) ->  | F12: =IF((SUM(mspreadt.k)=0),"*",SUM(mspreadt.k)) ->  | G12: =IF((SUM(mspreadt.fe)=0),"*",SUM(mspreadt.fe)) ->  | H12: =IF((SUM(mspreadt.mn)=0),"*",SUM(mspreadt.mn)) ->  | I12: =IF((SUM(mspreadt.zn)=0),"*",SUM(mspreadt.zn)) ->  | J12: =IF((SUM(mspreadt.cu)=0),"*",SUM(mspreadt.cu)) ->  | K12: =IF((SUM(mspreadt.ca)=0),"*",SUM(mspreadt.ca)) ->  | L12: =IF((SUM(mspreadt.mg)=0),"*",SUM(mspreadt.mg)) -> 
C13: Combined | D13: =IF(SUM(D11:D12)=0,0,SUM(D11:D12)) -> 
C14: Target | D14: =IF(AND(mall.n=0,target.n2=0),"*",IF((mall.n>=target.n2*0.95),5,IF((AND(mall.n<target.n2*0.95,mall.n>=target.n2*0.9)),4,IF((AND(mall.n<target.n2*0.9,mall.n>=target.n2*0.85)),3,IF((AND(mall.n<target.n2*0.85,mall.n>=target.n2*0.8)),2,IF((mall.n<target.n2*0.8),1)))))) ->  | E14: =IF(AND(mall.p=0,target.p2=0),"*",IF((mall.p>=target.p2*0.95),5,IF((AND(mall.p<target.p2*0.95,mall.p>=target.p2*0.9)),4,IF((AND(mall.p<target.p2*0.9,mall.p>=target.p2*0.85)),3,IF((AND(mall.p<target.p2*0.85,mall.p>=target.p2*0.8)),2,IF((mall.p<target.p2*0.8),1)))))) ->  | F14: =IF(AND(mall.k=0,target.k2=0),"*",IF((mall.k>=target.k2*0.95),5,IF((AND(mall.k<target.k2*0.95,mall.k>=target.k2*0.9)),4,IF((AND(mall.k<target.k2*0.9,mall.k>=target.k2*0.85)),3,IF((AND(mall.k<target.k2*0.85,mall.k>=target.k2*0.8)),2,IF((mall.k<target.k2*0.8),1)))))) ->  | G14: =IF(AND(mall.fe=0,target.fe2=0),"*",IF((mall.fe>=target.fe2*0.95),5,IF((AND(mall.fe<target.fe2*0.95,mall.fe>=target.fe2*0.9)),4,IF((AND(mall.fe<target.fe2*0.9,mall.fe>=target.fe2*0.85)),3,IF((AND(mall.fe<target.fe2*0.85,mall.fe>=target.fe2*0.8)),2,IF((mall.fe<target.fe2*0.8),1)))))) ->  | H14: =IF(AND(mall.mn=0,target.mn2=0),"*",IF((mall.mn>=target.mn2*0.95),5,IF((AND(mall.mn<target.mn2*0.95,mall.mn>=target.mn2*0.9)),4,IF((AND(mall.mn<target.mn2*0.9,mall.mn>=target.mn2*0.85)),3,IF((AND(mall.mn<target.mn2*0.85,mall.mn>=target.mn2*0.8)),2,IF((mall.mn<target.mn2*0.8),1)))))) ->  | I14: =IF(AND(mall.zn=0,target.zn2=0),"*",IF((mall.zn>=target.zn2*0.95),5,IF((AND(mall.zn<target.zn2*0.95,mall.zn>=target.zn2*0.9)),4,IF((AND(mall.zn<target.zn2*0.9,mall.zn>=target.zn2*0.85)),3,IF((AND(mall.zn<target.zn2*0.85,mall.zn>=target.zn2*0.8)),2,IF((mall.zn<target.zn2*0.8),1)))))) ->  | J14: =IF(AND(mall.cu=0,target.cu2=0),"*",IF((mall.cu>=target.cu2*0.95),5,IF((AND(mall.cu<target.cu2*0.95,mall.cu>=target.cu2*0.9)),4,IF((AND(mall.cu<target.cu2*0.9,mall.cu>=target.cu2*0.85)),3,IF((AND(mall.cu<target.cu2*0.85,mall.cu>=target.cu2*0.8)),2,IF((mall.cu<target.cu2*0.8),1)))))) ->  | K14: =IF(AND(mall.ca=0,target.ca2=0),"*",IF((mall.ca>=target.ca2*0.95),5,IF((AND(mall.ca<target.ca2*0.95,mall.ca>=target.ca2*0.9)),4,IF((AND(mall.ca<target.ca2*0.9,mall.ca>=target.ca2*0.85)),3,IF((AND(mall.ca<target.ca2*0.85,mall.ca>=target.ca2*0.8)),2,IF((mall.ca<target.ca2*0.8),1)))))) ->  | L14: =IF(AND(mall.mg=0,target.mg2=0),"*",IF((mall.mg>=target.mg2*0.95),5,IF((AND(mall.mg<target.mg2*0.95,mall.mg>=target.mg2*0.9)),4,IF((AND(mall.mg<target.mg2*0.9,mall.mg>=target.mg2*0.85)),3,IF((AND(mall.mg<target.mg2*0.85,mall.mg>=target.mg2*0.8)),2,IF((mall.mg<target.p2*0.8),1)))))) -> 
D15: =IF((target.n2=0),"*",target.n2) -> * | E15: =IF((target.p2=0),"*",target.p2) -> * | F15: =IF((target.k2=0),"*",target.k2) -> * | G15: =IF((target.fe2=0),"*",target.fe2) -> * | H15: =IF((target.mn2=0),"*",target.mn2) -> * | I15: =IF((target.zn2=0),"*",target.zn2) -> * | J15: =IF((target.cu2=0),"*",target.cu2) -> * | K15: =IF((target.ca2=0),"*",target.ca2) -> * | L15: =IF((target.mg2=0),"*",target.mg2) -> * | R15: Bulk Discount
D17: S | E17: B | F17: Si | G17: Mo | H17: Co | I17: HPO3 | Q17: 60 L Drum:
C18: Liquid | D18: =IF((SUM(mmixt.s)=0),"*",SUM(mmixt.s)) ->  | E18: =IF((SUM(mmixt.b)=0),"*",SUM(mmixt.b)) ->  | F18: =IF((SUM(mmixt.si)=0),"*",SUM(mmixt.si)) ->  | G18: =IF((SUM(mmixt.mo)=0),"*",SUM(mmixt.mo)) ->  | H18: =IF((SUM(mmixt.co)=0),"*",SUM(mmixt.co)) ->  | I18: =IF((SUM(mmixt.hpo3)=0),"*",SUM(mmixt.hpo3)) ->  | Q18: 120 L Drum:
C19: Granular | D19: =IF((SUM(mspreadt.s)=0),"*",SUM(mspreadt.s)) ->  | E19: =IF((SUM(mspreadt.b)=0),"*",SUM(mspreadt.b)) ->  | F19: =IF((SUM(mspreadt.si)=0),"*",SUM(mspreadt.si)) ->  | G19: =IF((SUM(mspreadt.mo)=0),"*",SUM(mspreadt.mo)) ->  | H19: =IF((SUM(mspreadt.co)=0),"*",SUM(mspreadt.co)) ->  | I19: =IF((SUM(mspreadt.hpo3)=0),"*",SUM(mspreadt.hpo3)) ->  | Q19: 220 L Drum:
C20: Combined | D20: =IF(SUM(D18:D19)=0,0,SUM(D18:D19)) ->  | Q20: 1080 L Drum:
C21: Target | D21: =IF(AND(mall.s=0,target.s2=0),"*",IF((mall.s>=target.s2*0.95),5,IF((AND(mall.s<target.s2*0.95,mall.s>=target.s2*0.9)),4,IF((AND(mall.s<target.s2*0.9,mall.s>=target.s2*0.85)),3,IF((AND(mall.s<target.s2*0.85,mall.s>=target.s2*0.8)),2,IF((mall.s<target.s2*0.8),1)))))) ->  | E21: =IF(AND(mall.b=0,target.b2=0),"*",IF((mall.b>=target.b2*0.95),5,IF((AND(mall.b<target.b2*0.95,mall.b>=target.b2*0.9)),4,IF((AND(mall.b<target.b2*0.9,mall.b>=target.b2*0.85)),3,IF((AND(mall.b<target.b2*0.85,mall.b>=target.b2*0.8)),2,IF((mall.b<target.b2*0.8),1)))))) ->  | F21: =IF(AND(mall.si=0,target.si2=0),"*",IF((mall.si>=target.si2*0.95),5,IF((AND(mall.si<target.si2*0.95,mall.si>=target.si2*0.9)),4,IF((AND(mall.si<target.si2*0.9,mall.si>=target.si2*0.85)),3,IF((AND(mall.si<target.si2*0.85,mall.si>=target.si2*0.8)),2,IF((mall.si<target.si2*0.8),1)))))) ->  | G21: =IF(AND(mall.mo=0,target.mo2=0),"*",IF((mall.mo>=target.mo2*0.95),5,IF((AND(mall.mo<target.mo2*0.95,mall.mo>=target.mo2*0.9)),4,IF((AND(mall.mo<target.mo2*0.9,mall.mo>=target.mo2*0.85)),3,IF((AND(mall.mo<target.mo2*0.85,mall.mo>=target.mo2*0.8)),2,IF((mall.mo<target.mo2*0.8),1)))))) ->  | H21: =IF(AND(mall.co=0,target.co2=0),"*",IF((mall.co>=target.co2*0.95),5,IF((AND(mall.co<target.co2*0.95,mall.co>=target.co2*0.9)),4,IF((AND(mall.co<target.p2*0.9,mall.co>=target.co2*0.85)),3,IF((AND(mall.co<target.co2*0.85,mall.co>=target.co2*0.8)),2,IF((mall.co<target.co2*0.8),1)))))) ->  | I21: =IF(AND(mall.hpo3=0,target.hpo32=0),"*",IF((mall.hpo3>=target.hpo32*0.95),5,IF((AND(mall.hpo3<target.hpo32*0.95,mall.hpo3>=target.hpo32*0.9)),4,IF((AND(mall.hpo3<target.hpo32*0.9,mall.hpo3>=target.hpo32*0.85)),3,IF((AND(mall.hpo3<target.hpo32*0.85,mall.hpo3>=target.hpo32*0.8)),2,IF((mall.hpo3<target.hpo32*0.8),1)))))) -> 
D22: =IF((target.s2=0),"*",target.s2) -> * | E22: =IF((target.b2=0),"*",target.b2) -> * | F22: =IF((target.si2=0),"*",target.si2) -> * | G22: =IF((target.mo2=0),"*",target.mo2) -> * | H22: =IF((target.co2=0),"*",target.co2) -> * | I22: =IF((target.hpo32=0),"*",target.hpo32) -> *
C24: MIX #1 | G24: Litres Needed | H24: Cost / L | I24: Cost / Hectare | J24: Cost / App | K24: Programme Cost | L24: WHOLE 20 L Cases & Case Cost | N24: 60 L Drums & Cost Equivalent | P24: 120 L Drums & Cost Equivalent | R24: 220 L Drums & Cost Equivalent | T24: 1,080 L Totes & Cost Equivalent
A26: =IF(($C26=id.255),3,IF(($C26=id.256),4,IF(($C26=id.215),5,IF(($C26=id.200),7,IF(($C26=id.285),10,IF(($C26=id.210),12,IF(($C26=id.106),13,IF(($C26=id.310),14,IF(($C26=id.141),15,IF(($C26=id.360),16,IF(($C26=id.245),17,IF(($C26=id.225),18,IF(($C26=id.192),19,IF(($C26=id.196),20,IF(($C26=id.330),21,IF(($C26=id.675),22,IF(($C26=id.730),23,IF(($C26=id.855),24,IF(($C26=id.180),28,IF(($C26=id.185),29,IF(($C26=id.195),30,IF(($C26=id.240),31,IF(($C26=id.300),32,IF(($C26=id.177),33,IF(($C26=id.860),35,IF(($C26=id.840),36,IF(($C26=id.865),37,IF(($C26=id.800),38,IF(($C26=id.600),41,IF(($C26=id.x1),43,IF(($C26=id.x2),44,"42"))))))))))))))))))))))))))))))) ->  | C26: =IF((mm1.1=""),"",mm1.1) ->  | G26: =IF(($C26=""),"*",IF((mm1r.1=""),"*",((mm1r.1*(total.hectares))*((mmix1.count))))) -> * | H26: =IF(($C26=""),"*",(INDIRECT("'PRODUCT DATA'!$D"&$A26&"")*global.discount)) -> * | I26: =IF(OR($C26="",$H26=0),"*",(($H26)*mm1r.1)) -> * | J26: =IF(OR($C26="",$H26=0),"*",($H26*$G26/mmix1.count)) -> * | K26: =IF(OR($C26="",$H26=0),"*",($H26*$G26)) -> * | L26: =IF(($C26=""),"0",(ROUNDUP(($G26/20),0))) -> 0 | M26: =IF(OR($C26="",$H26=0),"*",$H26*($L26*20)) -> * | N26: =IF(($L26*20)<60,"*",($G26/60)) -> * | O26: =IF(OR($N26="*",$H26=0),"*",($H26-$R$17)*($N26*60)) -> * | P26: =IF(($L26*20)<120,"*",($G26/120)) -> * | Q26: =IF(OR($P26="*",$H26=0),"*",($H26-$R$18)*($P26*120)) -> * | R26: =IF(($L26*20)<220,"*",($G26/220)) -> * | S26: =IF(OR($R26="*",$H26=0),"*",($H26-$R$19)*($R26*220)) -> * | T26: =IF(($L26*20)<1080,"*",($G26/1080)) -> * | U26: =IF(OR($T26="*",$H26=0),"*",($H26-$R$20)*($T26*1080)) -> *
C27: =IF((mm1.2=""),"",mm1.2) ->  | G27: =IF(($C27=""),"*",IF((mm1r.2=""),"*",((mm1r.2*(total.hectares))*((mmix1.count))))) -> * | H27: * | I27: =IF(OR($C27="",$H27=0),"*",(($H27)*mm1r.2)) -> * | J27: * | K27: * | L27: 0 | M27: * | N27: * | O27: * | P27: * | Q27: * | R27: * | S27: * | T27: * | U27: *
C28: =IF((mm1.3=""),"",mm1.3) ->  | G28: =IF(($C28=""),"*",IF((mm1r.3=""),"*",((mm1r.3*(total.hectares))*((mmix1.count))))) -> * | H28: * | I28: =IF(OR($C28="",$H28=0),"*",(($H28)*mm1r.3)) -> * | J28: * | K28: * | L28: 0 | M28: * | N28: * | O28: * | P28: * | Q28: * | R28: * | S28: * | T28: * | U28: *
C29: =IF((mm1.4=""),"",mm1.4) ->  | G29: =IF(($C29=""),"*",IF((mm1r.4=""),"*",((mm1r.4*(total.hectares))*((mmix1.count))))) -> * | H29: * | I29: =IF(OR($C29="",$H29=0),"*",(($H29)*mm1r.4)) -> * | J29: * | K29: * | L29: 0 | M29: * | N29: * | O29: * | P29: * | Q29: * | R29: * | S29: * | T29: * | U29: *
C30: =IF((mm1.5=""),"",mm1.5) ->  | G30: =IF(($C30=""),"*",IF((mm1r.5=""),"*",((mm1r.5*(total.hectares))*((mmix1.count))))) -> * | H30: * | I30: =IF(OR($C30="",$H30=0),"*",(($H30)*mm1r.5)) -> * | J30: * | K30: * | L30: 0 | M30: * | N30: * | O30: * | P30: * | Q30: * | R30: * | S30: * | T30: * | U30: *
C31: =IF((mm1.6=""),"",mm1.6) ->  | G31: =IF(($C31=""),"*",IF((mm1r.6=""),"*",((mm1r.6*(total.hectares))*((mmix1.count))))) -> * | H31: * | I31: =IF(OR($C31="",$H31=0),"*",(($H31)*mm1r.6)) -> * | J31: * | K31: * | L31: 0 | M31: * | N31: * | O31: * | P31: * | Q31: * | R31: * | S31: * | T31: * | U31: *
C32: Mix-1 Sub-Total: | G32: =IF(SUM(G26:G31)=0,"*",SUM(G26:G31)) -> * | H32: * | I32: * | J32: * | K32: * | L32: * | M32: * | N32: =IF(SUM(N26:N31)=0,"*",SUM(N26:N31)) -> * | O32: =IF(SUM(O26:O31)=0,"*",SUM(O26:O31)) -> * | P32: * | Q32: =IF(SUM(Q26:Q31)=0,"*",SUM(Q26:Q31)) -> * | R32: * | S32: =IF(SUM(S26:S31)=0,"*",SUM(S26:S31)) -> * | T32: * | U32: =IF(SUM(U26:U31)=0,"*",SUM(U26:U31)) -> *
C34: MIX #2 | G34: Litres Needed | H34: Cost / L | I34: Cost / Hectare | J34: Cost / App | K34: Programme Cost | L34: WHOLE 20 L Cases & Case Cost | N34: 60 L Drums & Cost Equivalent | P34: 120 L Drums & Cost Equivalent | R34: 220 L Drums & Cost Equivalent | T34: 1,080 L Totes & Cost Equivalent
A36: =IF(($C36=id.255),3,IF(($C36=id.256),4,IF(($C36=id.215),5,IF(($C36=id.200),7,IF(($C36=id.285),10,IF(($C36=id.210),12,IF(($C36=id.106),13,IF(($C36=id.310),14,IF(($C36=id.141),15,IF(($C36=id.360),16,IF(($C36=id.245),17,IF(($C36=id.225),18,IF(($C36=id.192),19,IF(($C36=id.196),20,IF(($C36=id.330),21,IF(($C36=id.675),22,IF(($C36=id.730),23,IF(($C36=id.855),24,IF(($C36=id.180),28,IF(($C36=id.185),29,IF(($C36=id.195),30,IF(($C36=id.240),31,IF(($C36=id.300),32,IF(($C36=id.177),33,IF(($C36=id.860),35,IF(($C36=id.840),36,IF(($C36=id.865),37,IF(($C36=id.800),38,IF(($C36=id.600),41,IF(($C36=id.x1),43,IF(($C36=id.x2),44,"42"))))))))))))))))))))))))))))))) ->  | C36: =IF((mm2.1=""),"",mm2.1) ->  | G36: =IF(($C26=""),"*",IF((mm2r.1=""),"*",((mm2r.1*(total.hectares))*((mmix2.count))))) -> * | H36: =IF(($C36=""),"*",(INDIRECT("'PRODUCT DATA'!$D"&$A36&"")*global.discount)) -> * | I36: =IF(OR($C36="",$H36=0),"*",(($H36)*mm2r.1)) -> * | J36: =IF(OR($C36="",$H36=0),"*",($H36*$G36/mmix2.count)) -> * | K36: =IF(OR($C36="",$H36=0),"*",($H36*$G36)) -> * | L36: =IF(($C36=""),"0",(ROUNDUP(($G36/20),0))) -> 0 | M36: =IF(OR($C36="",$H36=0),"*",$H36*($L36*20)) -> * | N36: =IF(($L36*20)<60,"*",($G36/60)) -> * | O36: =IF(OR($N36="*",$H36=0),"*",($H36-$R$17)*($N36*60)) -> * | P36: =IF(($L36*20)<120,"*",($G36/120)) -> * | Q36: =IF(OR($P36="*",$H36=0),"*",($H36-$R$18)*($P36*120)) -> * | R36: =IF(($L36*20)<220,"*",($G36/220)) -> * | S36: =IF(OR($R36="*",$H36=0),"*",($H36-$R$19)*($R36*220)) -> * | T36: =IF(($L36*20)<1080,"*",($G36/1080)) -> * | U36: =IF(OR($T36="*",$H36=0),"*",($H36-$R$20)*($T36*1080)) -> *
C37: =IF((mm2.2=""),"",mm2.2) ->  | G37: =IF(($C27=""),"*",IF((mm2r.2=""),"*",((mm2r.2*(total.hectares))*((mmix2.count))))) -> * | H37: * | I37: =IF(OR($C37="",$H37=0),"*",(($H37)*mm2r.2)) -> * | J37: * | K37: * | L37: 0 | M37: * | N37: * | O37: * | P37: * | Q37: * | R37: * | S37: * | T37: * | U37: *
C38: =IF((mm2.3=""),"",mm2.3) ->  | G38: =IF(($C28=""),"*",IF((mm2r.3=""),"*",((mm2r.3*(total.hectares))*((mmix2.count))))) -> * | H38: * | I38: =IF(OR($C38="",$H38=0),"*",(($H38)*mm2r.3)) -> * | J38: * | K38: * | L38: 0 | M38: * | N38: * | O38: * | P38: * | Q38: * | R38: * | S38: * | T38: * | U38: *
C39: =IF((mm2.4=""),"",mm2.4) ->  | G39: =IF(($C29=""),"*",IF((mm2r.4=""),"*",((mm2r.4*(total.hectares))*((mmix2.count))))) -> * | H39: * | I39: =IF(OR($C39="",$H39=0),"*",(($H39)*mm2r.4)) -> * | J39: * | K39: * | L39: 0 | M39: * | N39: * | O39: * | P39: * | Q39: * | R39: * | S39: * | T39: * | U39: *
C40: =IF((mm2.5=""),"",mm2.5) ->  | G40: =IF(($C30=""),"*",IF((mm2r.5=""),"*",((mm2r.5*(total.hectares))*((mmix2.count))))) -> * | H40: * | I40: =IF(OR($C40="",$H40=0),"*",(($H40)*mm2r.5)) -> * | J40: * | K40: * | L40: 0 | M40: * | N40: * | O40: * | P40: * | Q40: * | R40: * | S40: * | T40: * | U40: *
C41: =IF((mm2.6=""),"",mm2.6) ->  | G41: =IF(($C31=""),"*",IF((mm2r.6=""),"*",((mm2r.6*(total.hectares))*((mmix2.count))))) -> * | H41: * | I41: =IF(OR($C41="",$H41=0),"*",(($H41)*mm2r.6)) -> * | J41: * | K41: * | L41: 0 | M41: * | N41: * | O41: * | P41: * | Q41: * | R41: * | S41: * | T41: * | U41: *
C42: Sub-Total: | G42: =IF(SUM(G36:G41)=0,"*",SUM(G36:G41)) -> * | H42: * | I42: * | J42: * | K42: * | L42: * | M42: * | N42: * | O42: * | P42: * | Q42: * | R42: * | S42: * | T42: * | U42: *
C44: MIX #3 | G44: Litres Needed | H44: Cost / L | I44: Cost / Hectare | J44: Cost / App | K44: Programme Cost | L44: WHOLE 20 L Cases & Case Cost | N44: 60 L Drums & Cost Equivalent | P44: 120 L Drums & Cost Equivalent | R44: 220 L Drums & Cost Equivalent | T44: 1,080 L Totes & Cost Equivalent
A46: =IF(($C46=id.255),3,IF(($C46=id.256),4,IF(($C46=id.215),5,IF(($C46=id.200),7,IF(($C46=id.285),10,IF(($C46=id.210),12,IF(($C46=id.106),13,IF(($C46=id.310),14,IF(($C46=id.141),15,IF(($C46=id.360),16,IF(($C46=id.245),17,IF(($C46=id.225),18,IF(($C46=id.192),19,IF(($C46=id.196),20,IF(($C46=id.330),21,IF(($C46=id.675),22,IF(($C46=id.730),23,IF(($C46=id.855),24,IF(($C46=id.180),28,IF(($C46=id.185),29,IF(($C46=id.195),30,IF(($C46=id.240),31,IF(($C46=id.300),32,IF(($C46=id.177),33,IF(($C46=id.860),35,IF(($C46=id.840),36,IF(($C46=id.865),37,IF(($C46=id.800),38,IF(($C46=id.600),41,IF(($C46=id.x1),43,IF(($C46=id.x2),44,"42"))))))))))))))))))))))))))))))) ->  | C46: =IF((mm3.1=""),"",mm3.1) ->  | G46: =IF(($C26=""),"*",IF((mm3r.1=""),"*",((mm3r.1*(total.hectares))*((mmix3.count))))) -> * | H46: =IF(($C46=""),"*",(INDIRECT("'PRODUCT DATA'!$D"&$A46&"")*global.discount)) -> * | I46: =IF(OR($C46="",$H46=0),"*",(($H46)*mm3r.1)) -> * | J46: =IF(OR($C46="",$H46=0),"*",($H46*$G46/mmix3.count)) -> * | K46: =IF(OR($C46="",$H46=0),"*",($H46*$G46)) -> * | L46: =IF(($C46=""),"0",(ROUNDUP(($G46/20),0))) -> 0 | M46: =IF(OR($C46="",$H46=0),"*",$H46*($L46*20)) -> * | N46: =IF(($L46*20)<60,"*",($G46/60)) -> * | O46: =IF(OR($N46="*",$H46=0),"*",($H46-$R$17)*($N46*60)) -> * | P46: =IF(($L46*20)<120,"*",($G46/120)) -> * | Q46: =IF(OR($P46="*",$H46=0),"*",($H46-$R$18)*($P46*120)) -> * | R46: =IF(($L46*20)<220,"*",($G46/220)) -> * | S46: =IF(OR($R46="*",$H46=0),"*",($H46-$R$19)*($R46*220)) -> * | T46: =IF(($L46*20)<1080,"*",($G46/1080)) -> * | U46: =IF(OR($T46="*",$H46=0),"*",($H46-$R$20)*($T46*1080)) -> *
C47: =IF((mm3.2=""),"",mm3.2) ->  | G47: =IF(($C27=""),"*",IF((mm3r.2=""),"*",((mm3r.2*(total.hectares))*((mmix3.count))))) -> * | H47: * | I47: * | J47: * | K47: * | L47: 0 | M47: * | N47: * | O47: * | P47: * | Q47: * | R47: * | S47: * | T47: * | U47: *
C48: =IF((mm3.3=""),"",mm3.3) ->  | G48: =IF(($C28=""),"*",IF((mm3r.3=""),"*",((mm3r.3*(total.hectares))*((mmix3.count))))) -> * | H48: * | I48: * | J48: * | K48: * | L48: 0 | M48: * | N48: * | O48: * | P48: * | Q48: * | R48: * | S48: * | T48: * | U48: *
C49: =IF((mm3.4=""),"",mm3.4) ->  | G49: =IF(($C29=""),"*",IF((mm3r.4=""),"*",((mm3r.4*(total.hectares))*((mmix3.count))))) -> * | H49: * | I49: * | J49: * | K49: * | L49: 0 | M49: * | N49: * | O49: * | P49: * | Q49: * | R49: * | S49: * | T49: * | U49: *
C50: =IF((mm3.5=""),"",mm3.5) ->  | G50: =IF(($C30=""),"*",IF((mm3r.5=""),"*",((mm3r.5*(total.hectares))*((mmix3.count))))) -> * | H50: * | I50: * | J50: * | K50: * | L50: 0 | M50: * | N50: * | O50: * | P50: * | Q50: * | R50: * | S50: * | T50: * | U50: *
C51: =IF((mm3.6=""),"",mm3.6) ->  | G51: =IF(($C31=""),"*",IF((mm3r.6=""),"*",((mm3r.6*(total.hectares))*((mmix3.count))))) -> * | H51: * | I51: * | J51: * | K51: * | L51: 0 | M51: * | N51: * | O51: * | P51: * | Q51: * | R51: * | S51: * | T51: * | U51: *
C52: Sub-Total: | G52: =IF(SUM(G46:G51)=0,"*",SUM(G46:G51)) -> * | H52: * | I52: * | J52: * | K52: * | L52: * | M52: * | N52: * | O52: * | P52: * | Q52: * | R52: * | S52: * | T52: * | U52: *
C54: MIX #4 | G54: Litres Needed | H54: Cost / L | I54: Cost / Hectare | J54: Cost / App | K54: Programme Cost | L54: WHOLE 20 L Cases & Case Cost | N54: 60 L Drums & Cost Equivalent | P54: 120 L Drums & Cost Equivalent | R54: 220 L Drums & Cost Equivalent | T54: 1,080 L Totes & Cost Equivalent
A56: =IF(($C56=id.255),3,IF(($C56=id.256),4,IF(($C56=id.215),5,IF(($C56=id.200),7,IF(($C56=id.285),10,IF(($C56=id.210),12,IF(($C56=id.106),13,IF(($C56=id.310),14,IF(($C56=id.141),15,IF(($C56=id.360),16,IF(($C56=id.245),17,IF(($C56=id.225),18,IF(($C56=id.192),19,IF(($C56=id.196),20,IF(($C56=id.330),21,IF(($C56=id.675),22,IF(($C56=id.730),23,IF(($C56=id.855),24,IF(($C56=id.180),28,IF(($C56=id.185),29,IF(($C56=id.195),30,IF(($C56=id.240),31,IF(($C56=id.300),32,IF(($C56=id.177),33,IF(($C56=id.860),35,IF(($C56=id.840),36,IF(($C56=id.865),37,IF(($C56=id.800),38,IF(($C56=id.600),41,IF(($C56=id.x1),43,IF(($C56=id.x2),44,"42"))))))))))))))))))))))))))))))) ->  | C56: =IF((mm4.1=""),"",mm4.1) ->  | G56: =IF(($C26=""),"*",IF((mm4r.1=""),"*",((mm4r.1*(total.hectares))*((mmix4.count))))) -> * | H56: =IF(($C56=""),"*",(INDIRECT("'PRODUCT DATA'!$D"&$A56&"")*global.discount)) -> * | I56: =IF(OR($C56="",$H56=0),"*",(($H56)*mm4r.1)) -> * | J56: =IF(OR($C56="",$H56=0),"*",($H56*$G56/mmix4.count)) -> * | K56: =IF(OR($C56="",$H56=0),"*",($H56*$G56)) -> * | L56: =IF(($C56=""),"0",(ROUNDUP(($G56/20),0))) -> 0 | M56: =IF(OR($C56="",$H56=0),"*",$H56*($L56*20)) -> * | N56: =IF(($L56*20)<60,"*",($G56/60)) -> * | O56: =IF(OR($N56="*",$H56=0),"*",($H56-$R$17)*($N56*60)) -> * | P56: =IF(($L56*20)<120,"*",($G56/120)) -> * | Q56: =IF(OR($P56="*",$H56=0),"*",($H56-$R$18)*($P56*120)) -> * | R56: =IF(($L56*20)<220,"*",($G56/220)) -> * | S56: =IF(OR($R56="*",$H56=0),"*",($H56-$R$19)*($R56*220)) -> * | T56: =IF(($L56*20)<1080,"*",($G56/1080)) -> * | U56: =IF(OR($T56="*",$H56=0),"*",($H56-$R$20)*($T56*1080)) -> *
C57: =IF((mm4.2=""),"",mm4.2) ->  | G57: =IF(($C27=""),"*",IF((mm4r.2=""),"*",((mm4r.2*(total.hectares))*((mmix4.count))))) -> * | H57: * | I57: =IF(OR($C57="",$H57=0),"*",(($H57)*mm4r.2)) -> * | J57: * | K57: * | L57: 0 | M57: * | N57: * | O57: * | P57: * | Q57: * | R57: * | S57: * | T57: * | U57: *
C58: =IF((mm4.3=""),"",mm4.3) ->  | G58: =IF(($C28=""),"*",IF((mm4r.3=""),"*",((mm4r.3*(total.hectares))*((mmix4.count))))) -> * | H58: * | I58: =IF(OR($C58="",$H58=0),"*",(($H58)*mm4r.3)) -> * | J58: * | K58: * | L58: 0 | M58: * | N58: * | O58: * | P58: * | Q58: * | R58: * | S58: * | T58: * | U58: *
C59: =IF((mm4.4=""),"",mm4.4) ->  | G59: =IF(($C29=""),"*",IF((mm4r.4=""),"*",((mm4r.4*(total.hectares))*((mmix4.count))))) -> * | H59: * | I59: =IF(OR($C59="",$H59=0),"*",(($H59)*mm4r.4)) -> * | J59: * | K59: * | L59: 0 | M59: * | N59: * | O59: * | P59: * | Q59: * | R59: * | S59: * | T59: * | U59: *
C60: =IF((mm4.5=""),"",mm4.5) ->  | G60: =IF(($C30=""),"*",IF((mm4r.5=""),"*",((mm4r.5*(total.hectares))*((mmix4.count))))) -> * | H60: * | I60: =IF(OR($C60="",$H60=0),"*",(($H60)*mm4r.5)) -> * | J60: * | K60: * | L60: 0 | M60: * | N60: * | O60: * | P60: * | Q60: * | R60: * | S60: * | T60: * | U60: *
C61: =IF((mm4.6=""),"",mm4.6) ->  | G61: =IF(($C31=""),"*",IF((mm4r.6=""),"*",((mm4r.6*(total.hectares))*((mmix4.count))))) -> * | H61: * | I61: =IF(OR($C61="",$H61=0),"*",(($H61)*mm4r.6)) -> * | J61: * | K61: * | L61: 0 | M61: * | N61: * | O61: * | P61: * | Q61: * | R61: * | S61: * | T61: * | U61: *
C62: Sub-Total: | G62: =IF(SUM(G56:G61)=0,"*",SUM(G56:G61)) -> * | H62: * | I62: * | J62: * | K62: * | L62: * | M62: * | N62: * | O62: * | P62: * | Q62: * | R62: * | S62: * | T62: * | U62: *
F64: Program Total kg | H64: Cost / kg | I64: Cost / Hectare | J64: Cost / App | K64: Programme Cost | L64: WHOLE Bags & Bag Cost
C66: SOLUBLE #1
A67: =IF(($C67=id.x3),45,"42") -> 42 | C67: =IF((ms1.1=""),"",ms1.1) ->  | F67: =IF(($C67=""),"*",IF((ms1r.1=""),"0",(((ms1r.1*(total.sqm)/1000))*((mspreader1.count))))) -> * | H67: =IF(($C67=""),"*",((INDIRECT("'PRODUCT DATA'!$D"&$A67&"")/INDIRECT("'PRODUCT DATA'!$H"&$A67&""))*global.discount)) -> * | I67: =IF(OR($C67="",$H67=0),"*",(((ms1r.1*10000)/1000)*$H69)) -> * | J67: =IF(OR($C67="",$H67=0),"*",($H67*$F67/mspreader1.count)) -> * | K67: =IF(OR($C67="",$H67=0),"*",($H67*$F67)) -> * | L67: =IF(($C67=""),"0",(ROUNDUP(($F67/INDIRECT("'PRODUCT DATA'!$H"&$A67&"")),0))) -> 0 | M67: =IF(OR($C67="",$H67=0),"*",$H67*($L67*INDIRECT("'PRODUCT DATA'!$H"&$A67&""))) -> *
C68: GRANULAR #1
A69: =IF(($C69=id.1220),47,IF(($C69=id.1270),48,IF(($C69=id.1200),49,IF(($C69=id.1340),50,IF(($C69=id.1240),51,IF(($C69=id.1440),52,IF(($C69=id.1400),53,IF(($C69=id.1410),54,IF(($C69=id.1430),55,IF(($C69=id.1420),56,IF(($C69=id.1320),62,IF(($C69=id.1360),63,IF(($C69=id.1370),64,IF(($C69=id.2020),65,IF(($C69=id.2000),66,IF(($C69=id.z1),68,IF(($C69=id.z2),69,"67"))))))))))))))))) ->  | C69: =IF((ms2.1=""),"",ms2.1) ->  | F69: =IF(($C69=""),"*",IF((ms2r.1=""),"0",(((ms2r.1*(total.sqm)/1000))*((mspreader2.count))))) -> * | H69: =IF(($C69=""),"*",((INDIRECT("'PRODUCT DATA'!$D"&$A69&"")/INDIRECT("'PRODUCT DATA'!$H"&$A69&""))*global.discount)) -> * | I69: =IF(OR($C69="",$H69=0),"*",(((ms2r.1*10000)/1000)*$H69)) -> * | J69: =IF(OR($C69="",$H69=0),"*",($H69*$F69/mspreader2.count)) -> * | K69: =IF(OR($C69="",$H69=0),"*",($H69*$F69)) -> * | L69: =IF(($C69=""),"0",(ROUNDUP(($F69/INDIRECT("'PRODUCT DATA'!$H"&$A69&"")),0))) -> 0 | M69: =IF(OR($C69="",$H69=0),"*",$H69*($L69*INDIRECT("'PRODUCT DATA'!$H"&$A69&""))) -> *
C70: GRANULAR #2
A71: =IF(($C71=id.1220),47,IF(($C71=id.1270),48,IF(($C71=id.1200),49,IF(($C71=id.1340),50,IF(($C71=id.1240),51,IF(($C71=id.1440),52,IF(($C71=id.1400),53,IF(($C71=id.1410),54,IF(($C71=id.1430),55,IF(($C71=id.1420),56,IF(($C71=id.1320),62,IF(($C71=id.1360),63,IF(($C71=id.1370),64,IF(($C71=id.2020),65,IF(($C71=id.2000),66,IF(($C71=id.z1),68,IF(($C71=id.z2),69,"67"))))))))))))))))) ->  | C71: =IF((ms3.1=""),"",ms3.1) ->  | F71: =IF(($C71=""),"*",IF((ms3r.1=""),"0",(((ms3r.1*(total.sqm)/1000))*((mspreader3.count))))) -> * | H71: =IF(($C71=""),"*",((INDIRECT("'PRODUCT DATA'!$D"&$A71&"")/INDIRECT("'PRODUCT DATA'!$H"&$A71&""))*global.discount)) -> * | I71: =IF(OR($C71="",$H71=0),"*",(((ms3r.1*10000)/1000)*$H69)) -> * | J71: =IF(OR($C71="",$H71=0),"*",($H71*$F71/mspreader3.count)) -> * | K71: =IF(OR($C71="",$H71=0),"*",($H71*$F71)) -> * | L71: =IF(($C71=""),"0",(ROUNDUP(($F71/INDIRECT("'PRODUCT DATA'!$H"&$A71&"")),0))) -> 0 | M71: =IF(OR($C71="",$H71=0),"*",$H71*($L71*INDIRECT("'PRODUCT DATA'!$H"&$A71&""))) -> *
C72: GRANULAR #3
A73: =IF(($C73=id.1220),47,IF(($C73=id.1270),48,IF(($C73=id.1200),49,IF(($C73=id.1340),50,IF(($C73=id.1240),51,IF(($C73=id.1440),52,IF(($C73=id.1400),53,IF(($C73=id.1410),54,IF(($C73=id.1430),55,IF(($C73=id.1420),56,IF(($C73=id.1320),62,IF(($C73=id.1360),63,IF(($C73=id.1370),64,IF(($C73=id.2020),65,IF(($C73=id.2000),66,IF(($C73=id.z1),68,IF(($C73=id.z2),69,"67"))))))))))))))))) ->  | C73: =IF((ms4.1=""),"",ms4.1) ->  | F73: =IF(($C73=""),"*",IF((ms4r.1=""),"0",(((ms4r.1*(total.sqm)/1000))*((mspreader4.count))))) -> * | H73: =IF(($C73=""),"*",((INDIRECT("'PRODUCT DATA'!$D"&$A73&"")/INDIRECT("'PRODUCT DATA'!$H"&$A73&""))*global.discount)) -> * | I73: =IF(OR($C73="",$H73=0),"*",(((ms4r.1*10000)/1000)*$H69)) -> * | J73: =IF(OR($C73="",$H73=0),"*",($H73*$F73/mspreader4.count)) -> * | K73: =IF(OR($C73="",$H73=0),"*",($H73*$F73)) -> * | L73: =IF(($C73=""),"0",(ROUNDUP(($F73/INDIRECT("'PRODUCT DATA'!$H"&$A73&"")),0))) -> 0 | M73: =IF(OR($C73="",$H73=0),"*",$H73*($L73*INDIRECT("'PRODUCT DATA'!$H"&$A73&""))) -> *

Sheet APPLICATION DATA - metric NZ (hidden)
C1: =VERSION -> version #BRANDT-D2401- | E1: metric measurments with elemental nutrients (P & K)
C2: PREPARED FOR | J2: START DATE | N2: END DATE
C5: PROGRAMME TITLE | J5: NOTES / COMMENTS
D9: KNOWN APPLICATION AREA | F9: conversion of area
F10: m2 | G10: Hectares
C11: Only select ONE area measurment >> | D11: m² | F11: *** | G11: =(E11/10000) -> 0.000 | J11: OTHER PROGRAMME DETAILS
D12: Hectares | E12: 1.250 | F12: =E12*10000 -> 12,500 | G12: *** | J12: Total Applications of Mix #1? | M12: 1 | Q12: Total Applications of Soluble #1?
F13: HECTARES covered in 1 tank load? | H13: (optional) | J13: Total Applications of Mix #2? | Q13: Total Applications of Granular #1?
F14: HECTARES covered in 1 spreader load? | H14: (optional) | J14: Total Applications of Mix #3? | Q14: Total Applications of Granular #2?
I15: Total Applications of Mix #4? | Q15: Total Applications of Granular #3?
C17: ENTIRE PROGRAMME Nutrient TARGET Concentrations / Kg per Hectare (optional)
C18: N | D18: P | E18: K | F18: Ca | G18: Mg | H18: S | I18: Fe | J18: Mn | K18: Zn | L18: Cu | M18: B | N18: Si | O18: Mo | P18: Co | Q18: HPO3
C22: MIX #1 | F22: L / Ha | G22: Kg of Nutrient per Ha
F23: RATE | G23: N | H23: P | I23: K | J23: Ca | K23: Mg | L23: S | M23: Fe | N23: Mn | O23: Zn | P23: Cu | Q23: B | R23: Si | S23: Mo | T23: Co | U23: HPO3
A24: =IF(($C24=id.255),3,IF(($C24=id.256),4,IF(($C24=id.215),5,IF(($C24=id.200),7,IF(($C24=id.285),10,IF(($C24=id.210),12,IF(($C24=id.106),13,IF(($C24=id.310),14,IF(($C24=id.141),15,IF(($C24=id.360),16,IF(($C24=id.245),17,IF(($C24=id.225),18,IF(($C24=id.192),19,IF(($C24=id.196),20,IF(($C24=id.330),21,IF(($C24=id.675),22,IF(($C24=id.730),23,IF(($C24=id.855),24,IF(($C24=id.180),28,IF(($C24=id.185),29,IF(($C24=id.195),30,IF(($C24=id.240),31,IF(($C24=id.300),32,IF(($C24=id.177),33,IF(($C24=id.860),35,IF(($C24=id.840),36,IF(($C24=id.865),37,IF(($C24=id.800),38,IF(($C24=id.600),41,IF(($C24=id.x1),43,IF(($C24=id.x2),44,"42"))))))))))))))))))))))))))))))) ->  | C24: Ultraplex® | F24: 10 | G24: =IF((INDIRECT("'PRODUCT DATA'!$L"&$A24&""))=0,"*",((INDIRECT("'PRODUCT DATA'!$H"&$A24&""))*(INDIRECT("'PRODUCT DATA'!$L"&$A24&"")))*($F24)) ->  | H24: =IF((INDIRECT("'PRODUCT DATA'!$N"&$A24&""))=0,"*",((INDIRECT("'PRODUCT DATA'!$H"&$A24&""))*(INDIRECT("'PRODUCT DATA'!$N"&$A24&"")))*($F24)) ->  | I24: =IF((INDIRECT("'PRODUCT DATA'!$P"&$A24&""))=0,"*",((INDIRECT("'PRODUCT DATA'!$H"&$A24&""))*(INDIRECT("'PRODUCT DATA'!$P"&$A24&"")))*($F24)) ->  | J24: =IF((INDIRECT("'PRODUCT DATA'!$Q"&$A24&""))=0,"*",((INDIRECT("'PRODUCT DATA'!$H"&$A24&""))*(INDIRECT("'PRODUCT DATA'!$Q"&$A24&"")))*($F24)) ->  | K24: =IF((INDIRECT("'PRODUCT DATA'!$R"&$A24&""))=0,"*",((INDIRECT("'PRODUCT DATA'!$H"&$A24&""))*(INDIRECT("'PRODUCT DATA'!$R"&$A24&"")))*($F24)) ->  | L24: =IF((INDIRECT("'PRODUCT DATA'!$S"&$A24&""))=0,"*",((INDIRECT("'PRODUCT DATA'!$H"&$A24&""))*(INDIRECT("'PRODUCT DATA'!$S"&$A24&"")))*($F24)) ->  | M24: =IF((INDIRECT("'PRODUCT DATA'!$T"&$A24&""))=0,"*",((INDIRECT("'PRODUCT DATA'!$H"&$A24&""))*(INDIRECT("'PRODUCT DATA'!$T"&$A24&"")))*($F24)) ->  | N24: =IF((INDIRECT("'PRODUCT DATA'!$U"&$A24&""))=0,"*",((INDIRECT("'PRODUCT DATA'!$H"&$A24&""))*(INDIRECT("'PRODUCT DATA'!$U"&$A24&"")))*($F24)) ->  | O24: =IF((INDIRECT("'PRODUCT DATA'!$V"&$A24&""))=0,"*",((INDIRECT("'PRODUCT DATA'!$H"&$A24&""))*(INDIRECT("'PRODUCT DATA'!$V"&$A24&"")))*($F24)) ->  | P24: =IF((INDIRECT("'PRODUCT DATA'!$W"&$A24&""))=0,"*",((INDIRECT("'PRODUCT DATA'!$H"&$A24&""))*(INDIRECT("'PRODUCT DATA'!$W"&$A24&"")))*($F24)) ->  | Q24: =IF((INDIRECT("'PRODUCT DATA'!$X"&$A24&""))=0,"*",((INDIRECT("'PRODUCT DATA'!$H"&$A24&""))*(INDIRECT("'PRODUCT DATA'!$X"&$A24&"")))*($F24)) ->  | R24: =IF((INDIRECT("'PRODUCT DATA'!$Y"&$A24&""))=0,"*",((INDIRECT("'PRODUCT DATA'!$H"&$A24&""))*(INDIRECT("'PRODUCT DATA'!$Y"&$A24&"")))*($F24)) ->  | S24: =IF((INDIRECT("'PRODUCT DATA'!$Z"&$A24&""))=0,"*",((INDIRECT("'PRODUCT DATA'!$H"&$A24&""))*(INDIRECT("'PRODUCT DATA'!$Z"&$A24&"")))*($F24)) ->  | T24: =IF((INDIRECT("'PRODUCT DATA'!$AA"&$A24&""))=0,"*",((INDIRECT("'PRODUCT DATA'!$H"&$A24&""))*(INDIRECT("'PRODUCT DATA'!$AA"&$A24&"")))*($F24)) ->  | U24: =IF((INDIRECT("'PRODUCT DATA'!$AB"&$A24&""))=0,"*",((INDIRECT("'PRODUCT DATA'!$H"&$A24&""))*(INDIRECT("'PRODUCT DATA'!$AB"&$A24&"")))*($F24)) -> 
C25: Gary's Green® | F25: 20
C32: Sub-Total (Each Application): | G32: =IF(SUM(G24:G31)=0,"0",SUM(G24:G31)) -> 
C33: Programme Sub-Total: | G33: =G32*$M$12 -> 
C37: MIX #2 | F37: L / Ha | G37: Kg of Nutrient per Ha
F38: RATE | G38: N | H38: P | I38: K | J38: Ca | K38: Mg | L38: S | M38: Fe | N38: Mn | O38: Zn | P38: Cu | Q38: B | R38: Si | S38: Mo | T38: Co | U38: HPO3
A39: =IF(($C39=id.255),3,IF(($C39=id.256),4,IF(($C39=id.215),5,IF(($C39=id.200),7,IF(($C39=id.285),10,IF(($C39=id.210),12,IF(($C39=id.106),13,IF(($C39=id.310),14,IF(($C39=id.141),15,IF(($C39=id.360),16,IF(($C39=id.245),17,IF(($C39=id.225),18,IF(($C39=id.192),19,IF(($C39=id.196),20,IF(($C39=id.330),21,IF(($C39=id.675),22,IF(($C39=id.730),23,IF(($C39=id.855),24,IF(($C39=id.180),28,IF(($C39=id.185),29,IF(($C39=id.195),30,IF(($C39=id.240),31,IF(($C39=id.300),32,IF(($C39=id.177),33,IF(($C39=id.860),35,IF(($C39=id.840),36,IF(($C39=id.865),37,IF(($C39=id.800),38,IF(($C39=id.600),41,IF(($C39=id.x1),43,IF(($C39=id.x2),44,"42"))))))))))))))))))))))))))))))) ->  | G39: =IF((INDIRECT("'PRODUCT DATA'!$L"&$A39&""))=0,"*",((INDIRECT("'PRODUCT DATA'!$H"&$A39&""))*(INDIRECT("'PRODUCT DATA'!$L"&$A39&"")))*($F39)) ->  | H39: =IF((INDIRECT("'PRODUCT DATA'!$N"&$A39&""))=0,"*",((INDIRECT("'PRODUCT DATA'!$H"&$A39&""))*(INDIRECT("'PRODUCT DATA'!$N"&$A39&"")))*($F39)) ->  | I39: =IF((INDIRECT("'PRODUCT DATA'!$P"&$A39&""))=0,"*",((INDIRECT("'PRODUCT DATA'!$H"&$A39&""))*(INDIRECT("'PRODUCT DATA'!$P"&$A39&"")))*($F39)) ->  | J39: =IF((INDIRECT("'PRODUCT DATA'!$Q"&$A39&""))=0,"*",((INDIRECT("'PRODUCT DATA'!$H"&$A39&""))*(INDIRECT("'PRODUCT DATA'!$Q"&$A39&"")))*($F39)) ->  | K39: =IF((INDIRECT("'PRODUCT DATA'!$R"&$A39&""))=0,"*",((INDIRECT("'PRODUCT DATA'!$H"&$A39&""))*(INDIRECT("'PRODUCT DATA'!$R"&$A39&"")))*($F39)) ->  | L39: =IF((INDIRECT("'PRODUCT DATA'!$S"&$A39&""))=0,"*",((INDIRECT("'PRODUCT DATA'!$H"&$A39&""))*(INDIRECT("'PRODUCT DATA'!$S"&$A39&"")))*($F39)) ->  | M39: =IF((INDIRECT("'PRODUCT DATA'!$T"&$A39&""))=0,"*",((INDIRECT("'PRODUCT DATA'!$H"&$A39&""))*(INDIRECT("'PRODUCT DATA'!$T"&$A39&"")))*($F39)) ->  | N39: =IF((INDIRECT("'PRODUCT DATA'!$U"&$A39&""))=0,"*",((INDIRECT("'PRODUCT DATA'!$H"&$A39&""))*(INDIRECT("'PRODUCT DATA'!$U"&$A39&"")))*($F39)) ->  | O39: =IF((INDIRECT("'PRODUCT DATA'!$V"&$A39&""))=0,"*",((INDIRECT("'PRODUCT DATA'!$H"&$A39&""))*(INDIRECT("'PRODUCT DATA'!$V"&$A39&"")))*($F39)) ->  | P39: =IF((INDIRECT("'PRODUCT DATA'!$W"&$A39&""))=0,"*",((INDIRECT("'PRODUCT DATA'!$H"&$A39&""))*(INDIRECT("'PRODUCT DATA'!$W"&$A39&"")))*($F39)) ->  | Q39: =IF((INDIRECT("'PRODUCT DATA'!$X"&$A39&""))=0,"*",((INDIRECT("'PRODUCT DATA'!$H"&$A39&""))*(INDIRECT("'PRODUCT DATA'!$X"&$A39&"")))*($F39)) ->  | R39: =IF((INDIRECT("'PRODUCT DATA'!$Y"&$A39&""))=0,"*",((INDIRECT("'PRODUCT DATA'!$H"&$A39&""))*(INDIRECT("'PRODUCT DATA'!$Y"&$A39&"")))*($F39)) ->  | S39: =IF((INDIRECT("'PRODUCT DATA'!$Z"&$A39&""))=0,"*",((INDIRECT("'PRODUCT DATA'!$H"&$A39&""))*(INDIRECT("'PRODUCT DATA'!$Z"&$A39&"")))*($F39)) ->  | T39: =IF((INDIRECT("'PRODUCT DATA'!$AA"&$A39&""))=0,"*",((INDIRECT("'PRODUCT DATA'!$H"&$A39&""))*(INDIRECT("'PRODUCT DATA'!$AA"&$A39&"")))*($F39)) ->  | U39: =IF((INDIRECT("'PRODUCT DATA'!$AB"&$A39&""))=0,"*",((INDIRECT("'PRODUCT DATA'!$H"&$A39&""))*(INDIRECT("'PRODUCT DATA'!$AB"&$A39&"")))*($F39)) -> 
C45: Sub-Total (Each Application): | G45: =IF(SUM(G39:G44)=0,"0",SUM(G39:G44)) -> 
C46: Programme Sub-Total: | G46: =G45*$M$13 -> 
C50: MIX #3 | F50: L / Ha | G50: Kg of Nutrient per Ha
F51: RATE | G51: N | H51: P | I51: K | J51: Ca | K51: Mg | L51: S | M51: Fe | N51: Mn | O51: Zn | P51: Cu | Q51: B | R51: Si | S51: Mo | T51: Co | U51: HPO3
A52: =IF(($C52=id.255),3,IF(($C52=id.256),4,IF(($C52=id.215),5,IF(($C52=id.200),7,IF(($C52=id.285),10,IF(($C52=id.210),12,IF(($C52=id.106),13,IF(($C52=id.310),14,IF(($C52=id.141),15,IF(($C52=id.360),16,IF(($C52=id.245),17,IF(($C52=id.225),18,IF(($C52=id.192),19,IF(($C52=id.196),20,IF(($C52=id.330),21,IF(($C52=id.675),22,IF(($C52=id.730),23,IF(($C52=id.855),24,IF(($C52=id.180),28,IF(($C52=id.185),29,IF(($C52=id.195),30,IF(($C52=id.240),31,IF(($C52=id.300),32,IF(($C52=id.177),33,IF(($C52=id.860),35,IF(($C52=id.840),36,IF(($C52=id.865),37,IF(($C52=id.800),38,IF(($C52=id.600),41,IF(($C52=id.x1),43,IF(($C52=id.x2),44,"42"))))))))))))))))))))))))))))))) ->  | G52: =IF((INDIRECT("'PRODUCT DATA'!$L"&$A52&""))=0,"*",((INDIRECT("'PRODUCT DATA'!$H"&$A52&""))*(INDIRECT("'PRODUCT DATA'!$L"&$A52&"")))*($F52)) ->  | H52: =IF((INDIRECT("'PRODUCT DATA'!$N"&$A52&""))=0,"*",((INDIRECT("'PRODUCT DATA'!$H"&$A52&""))*(INDIRECT("'PRODUCT DATA'!$N"&$A52&"")))*($F52)) ->  | I52: =IF((INDIRECT("'PRODUCT DATA'!$P"&$A52&""))=0,"*",((INDIRECT("'PRODUCT DATA'!$H"&$A52&""))*(INDIRECT("'PRODUCT DATA'!$P"&$A52&"")))*($F52)) ->  | J52: =IF((INDIRECT("'PRODUCT DATA'!$Q"&$A52&""))=0,"*",((INDIRECT("'PRODUCT DATA'!$H"&$A52&""))*(INDIRECT("'PRODUCT DATA'!$Q"&$A52&"")))*($F52)) ->  | K52: =IF((INDIRECT("'PRODUCT DATA'!$R"&$A52&""))=0,"*",((INDIRECT("'PRODUCT DATA'!$H"&$A52&""))*(INDIRECT("'PRODUCT DATA'!$R"&$A52&"")))*($F52)) ->  | L52: =IF((INDIRECT("'PRODUCT DATA'!$S"&$A52&""))=0,"*",((INDIRECT("'PRODUCT DATA'!$H"&$A52&""))*(INDIRECT("'PRODUCT DATA'!$S"&$A52&"")))*($F52)) ->  | M52: =IF((INDIRECT("'PRODUCT DATA'!$T"&$A52&""))=0,"*",((INDIRECT("'PRODUCT DATA'!$H"&$A52&""))*(INDIRECT("'PRODUCT DATA'!$T"&$A52&"")))*($F52)) ->  | N52: =IF((INDIRECT("'PRODUCT DATA'!$U"&$A52&""))=0,"*",((INDIRECT("'PRODUCT DATA'!$H"&$A52&""))*(INDIRECT("'PRODUCT DATA'!$U"&$A52&"")))*($F52)) ->  | O52: =IF((INDIRECT("'PRODUCT DATA'!$V"&$A52&""))=0,"*",((INDIRECT("'PRODUCT DATA'!$H"&$A52&""))*(INDIRECT("'PRODUCT DATA'!$V"&$A52&"")))*($F52)) ->  | P52: =IF((INDIRECT("'PRODUCT DATA'!$W"&$A52&""))=0,"*",((INDIRECT("'PRODUCT DATA'!$H"&$A52&""))*(INDIRECT("'PRODUCT DATA'!$W"&$A52&"")))*($F52)) ->  | Q52: =IF((INDIRECT("'PRODUCT DATA'!$X"&$A52&""))=0,"*",((INDIRECT("'PRODUCT DATA'!$H"&$A52&""))*(INDIRECT("'PRODUCT DATA'!$X"&$A52&"")))*($F52)) ->  | R52: =IF((INDIRECT("'PRODUCT DATA'!$Y"&$A52&""))=0,"*",((INDIRECT("'PRODUCT DATA'!$H"&$A52&""))*(INDIRECT("'PRODUCT DATA'!$Y"&$A52&"")))*($F52)) ->  | S52: =IF((INDIRECT("'PRODUCT DATA'!$Z"&$A52&""))=0,"*",((INDIRECT("'PRODUCT DATA'!$H"&$A52&""))*(INDIRECT("'PRODUCT DATA'!$Z"&$A52&"")))*($F52)) ->  | T52: =IF((INDIRECT("'PRODUCT DATA'!$AA"&$A52&""))=0,"*",((INDIRECT("'PRODUCT DATA'!$H"&$A52&""))*(INDIRECT("'PRODUCT DATA'!$AA"&$A52&"")))*($F52)) ->  | U52: =IF((INDIRECT("'PRODUCT DATA'!$AB"&$A52&""))=0,"*",((INDIRECT("'PRODUCT DATA'!$H"&$A52&""))*(INDIRECT("'PRODUCT DATA'!$AB"&$A52&"")))*($F52)) -> 
C58: Sub-Total (Each Application): | G58: =IF(SUM(G52:G57)=0,"0",SUM(G52:G57)) -> 
C59: Programme Sub-Total: | G59: =G58*$M$14 -> 
C62: MIX #4 | F62: L / Ha | G62: Kg of Nutrient per Ha
F63: RATE | G63: N | H63: P | I63: K | J63: Ca | K63: Mg | L63: S | M63: Fe | N63: Mn | O63: Zn | P63: Cu | Q63: B | R63: Si | S63: Mo | T63: Co | U63: HPO3
A64: =IF(($C64=id.255),3,IF(($C64=id.256),4,IF(($C64=id.215),5,IF(($C64=id.200),7,IF(($C64=id.285),10,IF(($C64=id.210),12,IF(($C64=id.106),13,IF(($C64=id.310),14,IF(($C64=id.141),15,IF(($C64=id.360),16,IF(($C64=id.245),17,IF(($C64=id.225),18,IF(($C64=id.192),19,IF(($C64=id.196),20,IF(($C64=id.330),21,IF(($C64=id.675),22,IF(($C64=id.730),23,IF(($C64=id.855),24,IF(($C64=id.180),28,IF(($C64=id.185),29,IF(($C64=id.195),30,IF(($C64=id.240),31,IF(($C64=id.300),32,IF(($C64=id.177),33,IF(($C64=id.860),35,IF(($C64=id.840),36,IF(($C64=id.865),37,IF(($C64=id.800),38,IF(($C64=id.600),41,IF(($C64=id.x1),43,IF(($C64=id.x2),44,"42"))))))))))))))))))))))))))))))) ->  | G64: =IF((INDIRECT("'PRODUCT DATA'!$L"&$A64&""))=0,"*",((INDIRECT("'PRODUCT DATA'!$H"&$A64&""))*(INDIRECT("'PRODUCT DATA'!$L"&$A64&"")))*($F64)) ->  | H64: =IF((INDIRECT("'PRODUCT DATA'!$N"&$A64&""))=0,"*",((INDIRECT("'PRODUCT DATA'!$H"&$A64&""))*(INDIRECT("'PRODUCT DATA'!$N"&$A64&"")))*($F64)) ->  | I64: =IF((INDIRECT("'PRODUCT DATA'!$P"&$A64&""))=0,"*",((INDIRECT("'PRODUCT DATA'!$H"&$A64&""))*(INDIRECT("'PRODUCT DATA'!$P"&$A64&"")))*($F64)) ->  | J64: =IF((INDIRECT("'PRODUCT DATA'!$Q"&$A64&""))=0,"*",((INDIRECT("'PRODUCT DATA'!$H"&$A64&""))*(INDIRECT("'PRODUCT DATA'!$Q"&$A64&"")))*($F64)) ->  | K64: =IF((INDIRECT("'PRODUCT DATA'!$R"&$A64&""))=0,"*",((INDIRECT("'PRODUCT DATA'!$H"&$A64&""))*(INDIRECT("'PRODUCT DATA'!$R"&$A64&"")))*($F64)) ->  | L64: =IF((INDIRECT("'PRODUCT DATA'!$S"&$A64&""))=0,"*",((INDIRECT("'PRODUCT DATA'!$H"&$A64&""))*(INDIRECT("'PRODUCT DATA'!$S"&$A64&"")))*($F64)) ->  | M64: =IF((INDIRECT("'PRODUCT DATA'!$T"&$A64&""))=0,"*",((INDIRECT("'PRODUCT DATA'!$H"&$A64&""))*(INDIRECT("'PRODUCT DATA'!$T"&$A64&"")))*($F64)) ->  | N64: =IF((INDIRECT("'PRODUCT DATA'!$U"&$A64&""))=0,"*",((INDIRECT("'PRODUCT DATA'!$H"&$A64&""))*(INDIRECT("'PRODUCT DATA'!$U"&$A64&"")))*($F64)) ->  | O64: =IF((INDIRECT("'PRODUCT DATA'!$V"&$A64&""))=0,"*",((INDIRECT("'PRODUCT DATA'!$H"&$A64&""))*(INDIRECT("'PRODUCT DATA'!$V"&$A64&"")))*($F64)) ->  | P64: =IF((INDIRECT("'PRODUCT DATA'!$W"&$A64&""))=0,"*",((INDIRECT("'PRODUCT DATA'!$H"&$A64&""))*(INDIRECT("'PRODUCT DATA'!$W"&$A64&"")))*($F64)) ->  | Q64: =IF((INDIRECT("'PRODUCT DATA'!$X"&$A64&""))=0,"*",((INDIRECT("'PRODUCT DATA'!$H"&$A64&""))*(INDIRECT("'PRODUCT DATA'!$X"&$A64&"")))*($F64)) ->  | R64: =IF((INDIRECT("'PRODUCT DATA'!$Y"&$A64&""))=0,"*",((INDIRECT("'PRODUCT DATA'!$H"&$A64&""))*(INDIRECT("'PRODUCT DATA'!$Y"&$A64&"")))*($F64)) ->  | S64: =IF((INDIRECT("'PRODUCT DATA'!$Z"&$A64&""))=0,"*",((INDIRECT("'PRODUCT DATA'!$H"&$A64&""))*(INDIRECT("'PRODUCT DATA'!$Z"&$A64&"")))*($F64)) ->  | T64: =IF((INDIRECT("'PRODUCT DATA'!$AA"&$A64&""))=0,"*",((INDIRECT("'PRODUCT DATA'!$H"&$A64&""))*(INDIRECT("'PRODUCT DATA'!$AA"&$A64&"")))*($F64)) ->  | U64: =IF((INDIRECT("'PRODUCT DATA'!$AB"&$A64&""))=0,"*",((INDIRECT("'PRODUCT DATA'!$H"&$A64&""))*(INDIRECT("'PRODUCT DATA'!$AB"&$A64&"")))*($F64)) -> 
C70: Sub-Total (Each Application): | G70: =IF(SUM(G64:G69)=0,"0",SUM(G64:G69)) -> 
C71: Programme Sub-Total: | G71: =G70*$M$15 -> 
F75: g / m2 | G75: Kg of Nutrient per Ha
C76: SOLUBLE #1 | F76: RATE | G76: N | H76: P | I76: K | J76: Ca | K76: Mg | L76: S | M76: Fe | N76: Mn | O76: Zn | P76: Cu | Q76: B | R76: Si | S76: Mo | T76: Co | U76: HPO3
A77: =IF(($C77=id.x3),45,"42") -> 42 | G77: =IF((INDIRECT("'PRODUCT DATA'!$L"&$A77&""))=0,"0",((INDIRECT("'PRODUCT DATA'!$L"&$A77&""))*($F77*10))) -> 0 | H77: =IF((INDIRECT("'PRODUCT DATA'!$N"&$A77&""))=0,"0",((INDIRECT("'PRODUCT DATA'!$N"&$A77&""))*($F77*10))) -> 0 | I77: =IF((INDIRECT("'PRODUCT DATA'!$P"&$A77&""))=0,"0",((INDIRECT("'PRODUCT DATA'!$P"&$A77&""))*($F77*10))) -> 0 | J77: =IF((INDIRECT("'PRODUCT DATA'!$Q"&$A77&""))=0,"0",((INDIRECT("'PRODUCT DATA'!$Q"&$A77&""))*($F77*10))) -> 0 | K77: =IF((INDIRECT("'PRODUCT DATA'!$R"&$A77&""))=0,"0",((INDIRECT("'PRODUCT DATA'!$R"&$A77&""))*($F77*10))) -> 0 | L77: =IF((INDIRECT("'PRODUCT DATA'!$S"&$A77&""))=0,"0",((INDIRECT("'PRODUCT DATA'!$S"&$A77&""))*($F77*10))) -> 0 | M77: =IF((INDIRECT("'PRODUCT DATA'!$T"&$A77&""))=0,"0",((INDIRECT("'PRODUCT DATA'!$T"&$A77&""))*($F77*10))) -> 0 | N77: =IF((INDIRECT("'PRODUCT DATA'!$U"&$A77&""))=0,"0",((INDIRECT("'PRODUCT DATA'!$U"&$A77&""))*($F77*10))) -> 0 | O77: =IF((INDIRECT("'PRODUCT DATA'!$V"&$A77&""))=0,"0",((INDIRECT("'PRODUCT DATA'!$V"&$A77&""))*($F77*10))) -> 0 | P77: =IF((INDIRECT("'PRODUCT DATA'!$W"&$A77&""))=0,"0",((INDIRECT("'PRODUCT DATA'!$W"&$A77&""))*($F77*10))) -> 0 | Q77: =IF((INDIRECT("'PRODUCT DATA'!$X"&$A77&""))=0,"0",((INDIRECT("'PRODUCT DATA'!$X"&$A77&""))*($F77*10))) -> 0 | R77: =IF((INDIRECT("'PRODUCT DATA'!$Y"&$A77&""))=0,"0",((INDIRECT("'PRODUCT DATA'!$Y"&$A77&""))*($F77*10))) -> 0 | S77: =IF((INDIRECT("'PRODUCT DATA'!$Z"&$A77&""))=0,"0",((INDIRECT("'PRODUCT DATA'!$Z"&$A77&""))*($F77*10))) -> 0 | T77: =IF((INDIRECT("'PRODUCT DATA'!$AA"&$A77&""))=0,"0",((INDIRECT("'PRODUCT DATA'!$AA"&$A77&""))*($F77*10))) -> 0 | U77: =IF((INDIRECT("'PRODUCT DATA'!$AB"&$A77&""))=0,"0",((INDIRECT("'PRODUCT DATA'!$AB"&$A77&""))*($F77*10))) -> 0
C78: Programme Sub-Total: | G78: =G77*$R$12 -> 0.000 | H78: 0.000 | I78: 0.000 | J78: 0.000 | K78: 0.000 | L78: 0.000 | M78: 0.000 | N78: 0.000 | O78: 0.000 | P78: 0.000 | Q78: 0.000 | R78: 0.000 | S78: 0.000 | T78: 0.000 | U78: 0.000
C80: GRANULAR #1 | F80: RATE
A81: =IF(($C81=id.1220),47,IF(($C81=id.1270),48,IF(($C81=id.1200),49,IF(($C81=id.1340),50,IF(($C81=id.1240),51,IF(($C81=id.1440),52,IF(($C81=id.1400),53,IF(($C81=id.1410),54,IF(($C81=id.1430),55,IF(($C81=id.1420),56,IF(($C81=id.1320),62,IF(($C81=id.1360),63,IF(($C81=id.1370),64,IF(($C81=id.2020),65,IF(($C81=id.2000),66,IF(($C81=id.z1),68,IF(($C81=id.z2),69,"67"))))))))))))))))) ->  | G81: =IF((INDIRECT("'PRODUCT DATA'!$L"&$A81&""))=0,"0",((INDIRECT("'PRODUCT DATA'!$L"&$A81&""))*($F81*10))) ->  | H81: =IF((INDIRECT("'PRODUCT DATA'!$N"&$A81&""))=0,"0",((INDIRECT("'PRODUCT DATA'!$N"&$A81&""))*($F81*10))) ->  | I81: =IF((INDIRECT("'PRODUCT DATA'!$P"&$A81&""))=0,"0",((INDIRECT("'PRODUCT DATA'!$P"&$A81&""))*($F81*10))) ->  | J81: =IF((INDIRECT("'PRODUCT DATA'!$Q"&$A81&""))=0,"0",((INDIRECT("'PRODUCT DATA'!$Q"&$A81&""))*($F81*10))) ->  | K81: =IF((INDIRECT("'PRODUCT DATA'!$R"&$A81&""))=0,"0",((INDIRECT("'PRODUCT DATA'!$R"&$A81&""))*($F81*10))) ->  | L81: =IF((INDIRECT("'PRODUCT DATA'!$S"&$A81&""))=0,"0",((INDIRECT("'PRODUCT DATA'!$S"&$A81&""))*($F81*10))) ->  | M81: =IF((INDIRECT("'PRODUCT DATA'!$T"&$A81&""))=0,"0",((INDIRECT("'PRODUCT DATA'!$T"&$A81&""))*($F81*10))) ->  | N81: =IF((INDIRECT("'PRODUCT DATA'!$U"&$A81&""))=0,"0",((INDIRECT("'PRODUCT DATA'!$U"&$A81&""))*($F81*10))) ->  | O81: =IF((INDIRECT("'PRODUCT DATA'!$V"&$A81&""))=0,"0",((INDIRECT("'PRODUCT DATA'!$V"&$A81&""))*($F81*10))) ->  | P81: =IF((INDIRECT("'PRODUCT DATA'!$W"&$A81&""))=0,"0",((INDIRECT("'PRODUCT DATA'!$W"&$A81&""))*($F81*10))) ->  | Q81: =IF((INDIRECT("'PRODUCT DATA'!$X"&$A81&""))=0,"0",((INDIRECT("'PRODUCT DATA'!$X"&$A81&""))*($F81*10))) ->  | R81: =IF((INDIRECT("'PRODUCT DATA'!$Y"&$A81&""))=0,"0",((INDIRECT("'PRODUCT DATA'!$Y"&$A81&""))*($F81*10))) ->  | S81: =IF((INDIRECT("'PRODUCT DATA'!$Z"&$A81&""))=0,"0",((INDIRECT("'PRODUCT DATA'!$Z"&$A81&""))*($F81*10))) ->  | T81: =IF((INDIRECT("'PRODUCT DATA'!$AA"&$A81&""))=0,"0",((INDIRECT("'PRODUCT DATA'!$AA"&$A81&""))*($F81*10))) ->  | U81: =IF((INDIRECT("'PRODUCT DATA'!$AB"&$A81&""))=0,"0",((INDIRECT("'PRODUCT DATA'!$AB"&$A81&""))*($F81*10))) -> 
C82: Programme Sub-Total: | G82: =G81*$R$13 -> 
C84: GRANULAR #2 | F84: RATE
A85: =IF(($C85=id.1220),47,IF(($C85=id.1270),48,IF(($C85=id.1200),49,IF(($C85=id.1340),50,IF(($C85=id.1240),51,IF(($C85=id.1440),52,IF(($C85=id.1400),53,IF(($C85=id.1410),54,IF(($C85=id.1430),55,IF(($C85=id.1420),56,IF(($C85=id.1320),62,IF(($C85=id.1360),63,IF(($C85=id.1370),64,IF(($C85=id.2020),65,IF(($C85=id.2000),66,IF(($C85=id.z1),68,IF(($C85=id.z2),69,"67"))))))))))))))))) ->  | G85: =IF((INDIRECT("'PRODUCT DATA'!$L"&$A85&""))=0,"0",((INDIRECT("'PRODUCT DATA'!$L"&$A85&""))*($F85*10))) ->  | H85: =IF((INDIRECT("'PRODUCT DATA'!$N"&$A85&""))=0,"0",((INDIRECT("'PRODUCT DATA'!$N"&$A85&""))*($F85*10))) ->  | I85: =IF((INDIRECT("'PRODUCT DATA'!$P"&$A85&""))=0,"0",((INDIRECT("'PRODUCT DATA'!$P"&$A85&""))*($F85*10))) ->  | J85: =IF((INDIRECT("'PRODUCT DATA'!$Q"&$A85&""))=0,"0",((INDIRECT("'PRODUCT DATA'!$Q"&$A85&""))*($F85*10))) ->  | K85: =IF((INDIRECT("'PRODUCT DATA'!$R"&$A85&""))=0,"0",((INDIRECT("'PRODUCT DATA'!$R"&$A85&""))*($F85*10))) ->  | L85: =IF((INDIRECT("'PRODUCT DATA'!$S"&$A85&""))=0,"0",((INDIRECT("'PRODUCT DATA'!$S"&$A85&""))*($F85*10))) ->  | M85: =IF((INDIRECT("'PRODUCT DATA'!$T"&$A85&""))=0,"0",((INDIRECT("'PRODUCT DATA'!$T"&$A85&""))*($F85*10))) ->  | N85: =IF((INDIRECT("'PRODUCT DATA'!$U"&$A85&""))=0,"0",((INDIRECT("'PRODUCT DATA'!$U"&$A85&""))*($F85*10))) ->  | O85: =IF((INDIRECT("'PRODUCT DATA'!$V"&$A85&""))=0,"0",((INDIRECT("'PRODUCT DATA'!$V"&$A85&""))*($F85*10))) ->  | P85: =IF((INDIRECT("'PRODUCT DATA'!$W"&$A85&""))=0,"0",((INDIRECT("'PRODUCT DATA'!$W"&$A85&""))*($F85*10))) ->  | Q85: =IF((INDIRECT("'PRODUCT DATA'!$X"&$A85&""))=0,"0",((INDIRECT("'PRODUCT DATA'!$X"&$A85&""))*($F85*10))) ->  | R85: =IF((INDIRECT("'PRODUCT DATA'!$Y"&$A85&""))=0,"0",((INDIRECT("'PRODUCT DATA'!$Y"&$A85&""))*($F85*10))) ->  | S85: =IF((INDIRECT("'PRODUCT DATA'!$Z"&$A85&""))=0,"0",((INDIRECT("'PRODUCT DATA'!$Z"&$A85&""))*($F85*10))) ->  | T85: =IF((INDIRECT("'PRODUCT DATA'!$AA"&$A85&""))=0,"0",((INDIRECT("'PRODUCT DATA'!$AA"&$A85&""))*($F85*10))) ->  | U85: =IF((INDIRECT("'PRODUCT DATA'!$AB"&$A85&""))=0,"0",((INDIRECT("'PRODUCT DATA'!$AB"&$A85&""))*($F85*10))) -> 
C86: Programme Sub-Total: | G86: =G85*$R$14 -> 
C88: GRANULAR #3 | F88: RATE
A89: =IF(($C89=id.1220),47,IF(($C89=id.1270),48,IF(($C89=id.1200),49,IF(($C89=id.1340),50,IF(($C89=id.1240),51,IF(($C89=id.1440),52,IF(($C89=id.1400),53,IF(($C89=id.1410),54,IF(($C89=id.1430),55,IF(($C89=id.1420),56,IF(($C89=id.1320),62,IF(($C89=id.1360),63,IF(($C89=id.1370),64,IF(($C89=id.2020),65,IF(($C89=id.2000),66,IF(($C89=id.z1),68,IF(($C89=id.z2),69,"67"))))))))))))))))) ->  | G89: =IF((INDIRECT("'PRODUCT DATA'!$L"&$A89&""))=0,"0",((INDIRECT("'PRODUCT DATA'!$L"&$A89&""))*($F89*10))) ->  | H89: =IF((INDIRECT("'PRODUCT DATA'!$N"&$A89&""))=0,"0",((INDIRECT("'PRODUCT DATA'!$N"&$A89&""))*($F89*10))) ->  | I89: =IF((INDIRECT("'PRODUCT DATA'!$P"&$A89&""))=0,"0",((INDIRECT("'PRODUCT DATA'!$P"&$A89&""))*($F89*10))) ->  | J89: =IF((INDIRECT("'PRODUCT DATA'!$Q"&$A89&""))=0,"0",((INDIRECT("'PRODUCT DATA'!$Q"&$A89&""))*($F89*10))) ->  | K89: =IF((INDIRECT("'PRODUCT DATA'!$R"&$A89&""))=0,"0",((INDIRECT("'PRODUCT DATA'!$R"&$A89&""))*($F89*10))) ->  | L89: =IF((INDIRECT("'PRODUCT DATA'!$S"&$A89&""))=0,"0",((INDIRECT("'PRODUCT DATA'!$S"&$A89&""))*($F89*10))) ->  | M89: =IF((INDIRECT("'PRODUCT DATA'!$T"&$A89&""))=0,"0",((INDIRECT("'PRODUCT DATA'!$T"&$A89&""))*($F89*10))) ->  | N89: =IF((INDIRECT("'PRODUCT DATA'!$U"&$A89&""))=0,"0",((INDIRECT("'PRODUCT DATA'!$U"&$A89&""))*($F89*10))) ->  | O89: =IF((INDIRECT("'PRODUCT DATA'!$V"&$A89&""))=0,"0",((INDIRECT("'PRODUCT DATA'!$V"&$A89&""))*($F89*10))) ->  | P89: =IF((INDIRECT("'PRODUCT DATA'!$W"&$A89&""))=0,"0",((INDIRECT("'PRODUCT DATA'!$W"&$A89&""))*($F89*10))) ->  | Q89: =IF((INDIRECT("'PRODUCT DATA'!$X"&$A89&""))=0,"0",((INDIRECT("'PRODUCT DATA'!$X"&$A89&""))*($F89*10))) ->  | R89: =IF((INDIRECT("'PRODUCT DATA'!$Y"&$A89&""))=0,"0",((INDIRECT("'PRODUCT DATA'!$Y"&$A89&""))*($F89*10))) ->  | S89: =IF((INDIRECT("'PRODUCT DATA'!$Z"&$A89&""))=0,"0",((INDIRECT("'PRODUCT DATA'!$Z"&$A89&""))*($F89*10))) ->  | T89: =IF((INDIRECT("'PRODUCT DATA'!$AA"&$A89&""))=0,"0",((INDIRECT("'PRODUCT DATA'!$AA"&$A89&""))*($F89*10))) ->  | U89: =IF((INDIRECT("'PRODUCT DATA'!$AB"&$A89&""))=0,"0",((INDIRECT("'PRODUCT DATA'!$AB"&$A89&""))*($F89*10))) -> 
C90: Programme Sub-Total: | G90: =G89*$R$15 -> 
V93: =id.255 -> 
V94: =id.215 -> 
V95: =id.200 -> 
V96: =id.285 -> 
V97: =id.315 -> 
V98: =id.106 -> 
V99: =id.310 -> 
V100: =id.141 -> 
V101: =id.245 -> 
V102: =id.225 -> 
V103: =id.192 -> 
V104: =id.196 -> 
V105: =id.330 -> 
V106: =id.675 -> 
V107: =id.180 -> 
V108: =id.185 -> 
V109: =id.195 -> 
V110: =id.240 -> 
V111: =id.300 -> 
V112: =id.178 -> 
V113: =id.177 -> 
V114: =id.860 -> 
V115: =id.840 -> 
V116: =id.800 -> 
V117: =id.650 -> 
V118: =id.600 -> 
V119: =id.x1 -> Custom Liquid 1
V120: =id.x2 -> Custom Liquid 2
V121: =id.x3 -> Custom SOLUBLE 1
V122: =id.1220 -> 
V123: =id.1270 -> 
V124: =id.1200 -> 
V125: =id.1340 -> 
V126: =id.1240 -> 
V127: =id.1360 -> 
V128: =id.1370 -> 
V129: =id.2020 -> 
V130: =id.2000 -> 
V131: =id.z1 -> Custom Granular 1
V132: =id.z2 -> Custom Granular 2
